Workbook

Sheet Notes
A1: StochasticDistanceOscillator.xlsm; Traders Tip spreadsheet created for the June 2023 Issue
A2: Coded beginning 2023-March-03 by Ronald McAllister (rpmac_xltt@sprynet.com)
A4: This Workbook demonstrates an EXCEL version of the ideas presented
A5: by Vitali Apirin in an article titled "The Stochastic Distance Oscillator",
A6: which originally appeared in the June 2023 issue of
A7: "Technical Analysis of Stocks and Commodities" magazine.
A33: ERROR 9 (already fixed in this spreadsheet)
A34: On or about Jan 29, 2020 Yahoo Finance changed the format of the split factor expression used their historical data downloads.
A35: The Split expression went from using "/" as in "New Share Number/Old Share Number",
A36: to using ":" as in "New Share Number:Old Share Number".
A37: This caused the then current version of my VBA code to fail with a "Runtime Error '9': subscript out of range".
A39: Fix for this ERROR 9
A40: For T-Tip spreadsheets from September 2018 up to present:
A41: Selecting the Debug option takes one into the VBA at the code line which causes the failure:
A42: CellArray(C_A_RowNdx, C_A_ColNdx + 1) = SplitFactors(1)
A43: Two lines above the failing VBA line is a line that reads:
A44: SplitFactors = Split(CsvColumns(CsvColNdx), "/")
A45: Change the / to a :
A46: The corrected line should now read
A47: SplitFactors = Split(CsvColumns(CsvColNdx), ":")
A49: If you are fixing several spreadsheets and do not want to use the failure to find the fix location,
A50: you can use VBA’s FIND dialog (Ctrl F) to look for the substring
A51: SplitFactors =
A52: Do include one space and the equal sign in your FIND string
A53: Select the "Current Project" option
A54: There should only be one instance.
A56: T-Tip spreadsheets prior to the September 2018 spreadsheet do not hard fail.
A58: They just get weird results in the split columns of the Input Price Data tab (soft fail).
A59: These older spreadsheets used different data retrieval and formatting logic.
A61: To fix these older spreadsheets:
A62: In the VBA editor, use find (CTRL-F).
A63: Select the "Current Project" option, and search for the following:
A64: OtherChar:="/"
A65: You are looking for a hit in a line reading:
A66: Other:=True, OtherChar:="/", _
A67: This line is part of a multiline block of code starting with a line that reads:
A68: SplitRange.Offset(0, 1).Resize(SpRows, 1).TextToColumns
A69: Change the / to a : so that the line reads
A70: Other:=True, OtherChar:=":", _
A73: 2019-04-04 Finally came up with a mechanism to align the left location and overall length of the cursor scroll bar so that the left most and right most
A74: scroll bar thumb positions visually align reasonably well with the left and right ends of the price chart horizontal axis.
A75: Makes it a little easier to visually align the Thumb and thus the cursor with points of interest on the charts.
A77: Older:
B78: My sincere apologies to our Macintosh based readers: Neither MSXML nor WinHttpRequest are supported in your environment. So as it stands this version of the spreadsheet will not work for you.
B79: See "Why this approach does not work for Macintosh" below.
B80: I am investigating cURL as a non-Querytable based approach for the Macintosh environment.
A82: The new Yahoo Finance history download interface has changed rather radically. The biggest hurdle being a pseudo-security requirement of adding a
B83: crumb character string to any URL requesting any type of history download. That crumb must match up (by way of some sort of hash algorithm) with
B84: the Yahoo Finance cookie that must also be sent with any request to the new Yahoo History down load interface.
B86: A crumb value is returned, buried in the HTML for any of what I call the "entry level" Yahoo Finance web pages (no crumb security requirement for entry level pages).
B87: A crumb may come with other Yahoo Finance pages. A crumb may even accompany some of the secured pages as well. I have not checked.
B89: Entry level pages are the top level pages of the various Yahoo Finance dialogs and include: Quote Lookup, Stock Summary Quote, and any of the pages
B90: with links in the horizontal row with the "Summary" link on the quote summary page such as Options, Historical Data, and the rest.
B92: To date I have found no way to get at this crumb value using any native EXCEL capabilities.
B94: So this crumb requirement effectively shuts out any solution that attempts to exclusively use built-in facilities of EXCEL, which is to say a purely Querytables solution.
B96: The approach built for this Traders Tip spreadsheet uses WINHTTP calls to Load the InputPriceData worksheet.
B98: First I call to get the HTML text for the Yahoo Summary Quote page using the requested symbol. From this HTML text I extract the full company name,
B99: the market it trades, the market status and time stamp, and finally the associated crumb string. There is a bunch of other useful bits buried in this HTML
B100: text that do not necessarily appear on the web page your browser presents. Perhaps some day I will go after and build a worksheet with these other bits.
B102: Next I add the freshly extracted crumb string to the URLs I use in three separate WINHTTP calls to retrieve Price history, Split history, and Dividend history respectively.
B104: From there VBA code proceeds as in the past to fill in the cell formulas and formatting that make the "prettied up" InputPriceData sheet.
A106: Why this approach works for Windows:
B107: WINHTTP maintains a temporary computer memory cache where cookies are maintained for as long as the WINHTTP object is instantiated.
B108: WINHTTP updates this cache any time a "set cookie" header accompanies a web response.
B109: Subsequent WINHTTP calls automatically search this cache for cookies and add any "appropriate" cookies to the headers
B110: of any web requests that get sent out.
B111: This cookie handling automation means that even if the response to our WINHTTP call for the Summary web page includes a new version of
B112: the Yahoo Finance cookie, the imbedded Crumb value will always match the cookie newly installed in the cache!
A115: Why this approach does not work for Macintosh:
B116: For what it is worth, the Macintosh version of the MS Office suite of products do in fact maintain a special, shared amongst themselves only, cookie cache.
B117: They automate cookie handling into and from this cache JUST for the Office products and any Querytable activity they might originate.
B119: This cache is not tied to, nor shared with, any browser that might be installed on the MAC. And I have not found anything with HTTP capabilities similar to
B120: MSXML that can work with that Office product cookie cache.
B122: When working in the MAC EXCEL environment, I have not yet become conversant with a Mac based WINHTTP like capability.
B123: So l currently have no mechanism to replicate the non-Querytable data retrieval process I am using in Windows environments.
B124: A software product called CURL has been suggested as providing this capability in the MAC environment.
B125: A version of CURL is available for the Windows So some day I may explore its capabilities and how to access those capabilities from VBA.
A127: Calculation and Chart Worksheet Usage Comments:
C128: In General, Items in Bolded BLUE are items you may freely change to play what-if games.
C129: Be sure to have a backup copy of the spreadsheet before you alter anything else.
A131: Features carried forward from the June 2016 version of my T-Tips Template
A132: Added a pair of buttons near cell F12 that will allow the user to step the charting window forward or backward one bar for each click.
A133: I find this to be a good way to test my understanding of the author's ideas as I step through the evolution of the price behavior and the indicators.
B135: First: In the "Help! I would like to plot data" area.
B136: Added button to resolve #NA problems by locating the bar in the input data with a slightly more recent date than what the user actually requested.
B137: I find this particularly useful when I have a general idea of where I want to be date wise. Now I can pick a set of dates "out of the air".
B138: If either (or both) of my date specifications fall between dates that are available in the price history,
B139: this button will resolve them to the dates of the nearest, slightly more recent input bars.
B140: I can then refine my data interval search as necessary from there.
B141: Really great when working with Weekly or Monthly studies!
C142: 2016Jun11 - added logic to the "I would like to chart.." button to detect #N/A values and terminate
C143: gracefully with a message instead of blowing up in the charting logic.
B145: Second: In the "Price Chart Windowing Controls" area. (A11 and A12)
B146: When retrieving data for a new symbol or when changing from daily to weekly or monthly data, there was the possibility that the
B147: residual settings in A11 and A12 would fall outside of the number bars available on the input data tab after the new data retrieval.
B148: In certain combinations, this could create a serious error in the chart sizing logic and crash the spreadsheet.
B149: I have taken this opportunity to update the validity checking logic used in the chart sizing macros
B150: to adjust these values as necessary so that they fall within the boundaries of the newly retrieved input data.
A151: Features carried forward from the October 2015 Traders Tips Template
B152: Improved automation: changes to any of the following will automatically initiate calculations appropriate to reflect a change.
C153: Changing either of cells A11 (pan) or A12 (zoom) will automatically initiate the same chart sizing macros that the manual
C154: "Set Chart" button uses.

Sheet InputPriceData
A1: HANG SENG INDEX (^HSI) -HKSE (Daily)
M2: To retrieve data for symbols traded on non US Exchanges, | IJ2: 241.79
A3: Request Online Yahoo History for: | F3: Market State == > | G3: At close: | H3: 16:09:00 | I3: HKT | M3: you will need to append the dot-suffix for the exchange to the symbol.
A4: Symbol | B4: ^HSI | D4: Valid | I4: =OFFSET(I4,-2,0,1,1) -> 0 | M4: The following links provide a description of how to use the exchange suffix
A5: From | B5: 1959-08-11T19:24:26 | D5: Data | M5: along with a list of suffixes for the major world exchanges. | AD5: Trailing 12 Div return (Cur Close)
A6: To | B6: =NOW() -> 2023-04-18T11:22:44.290 | D6: Types | E6: =VLOOKUP(B7,D7:E10,2,FALSE) -> d | M6: https://help.yahoo.com/kb/finance/SLN2310.html
A7: Data Type | B7: Daily | D7: Daily | E7: d | M7: And
A8: Crumb | D8: Weekly | E8: w | M8: https://www.stockmarketeye.com/users-guide/ticker-symbols-and-data-providers/data-providers.html
A9: Available Data | D9: Monthly | E9: m
A10: Bar Count: | B10: 8961 | M10: You may search on “exchange suffixes” for additional discussions | AD10: =OFFSET(AC15,1,0,1,1)/OFFSET(N15,1,0,1,1) -> 0
A11: From: | B11: =IF(B10<=0,"",OFFSET(B15,B10,IF(HistReqDataType="v",1,0),1,1)) -> 1986-12-31 | W11: Trailing 12 Month Dividend Returns
A12: To: | B12: =IF(B10<=0,"",IF(HistReqDataType="v",OFFSET(B15,2,1,1,1),OFFSET(B15,1,0,1,1))) -> 2023-04-18 | E12: 252 | F12: Holiday (market closed) dates have been filtered out. | W12: Raw Close price on Dividend date | X12: Div Year and Month | Y12: Looking for year ago Div Year and Month | Z12: Year ago Div Date we found | AA12: row offset to year ago div Date | AB12: Same month flag | AC12: Trailing 12 Div Total | AD12: Trailing 12 Div return
Q13: Split History | S13: 0 | T13: Running | U13: Dividend History
B14: Raw Data Values | H14: Adjusted | I14: Price Adjust | J14: Vol Adjust | K14: Adjusted Values | P14: Last | Q14: Effective | R14: Shares | T14: Vol Adjust | V14: 0
A15: RelRow | B15: Date | C15: Open | D15: High | E15: Low | F15: Close | G15: Volume | H15: Close | I15: Factor | J15: Factor | K15: Open | L15: High | M15: Low | N15: Close | O15: Volume | P15: Trade | Q15: 45035 | R15: New | S15: Old | T15: 1 | U15: Date | V15: $ / Share
A16: 1 | B16: 2023-04-18 | C16: 20643.41016 | D16: 20742.39062 | E16: 20559.08008 | F16: 20650.50977 | G16: 0 | H16: 20650.50977 | I16: =IF(F16=0,1,H16/F16) -> 1 | J16: =INDEX(OFFSET($T$15,0,0,$S$13+1,1),MATCH(B16,OFFSET($Q$15,0,0,$S$13+1,1),-1)) -> 1 | K16: =ROUND($I16*C16,2) -> 20643.41 | L16: =ROUND($I16*D16,2) -> 20742.39 | M16: 20559.08 | N16: 20650.51 | O16: =G16*J16 -> 0
A17: 2 | B17: 2023-04-17 | C17: 20374.50977 | D17: 20864.74023 | E17: 20299.15039 | F17: 20782.44922 | G17: 3411232600 | H17: 20782.44922 | I17: =IF(F17=0,1,H17/F17) -> 1 | J17: =INDEX(OFFSET($T$15,0,0,$S$13+1,1),MATCH(B17,OFFSET($Q$15,0,0,$S$13+1,1),-1)) -> 1 | K17: =ROUND($I17*C17,2) -> 20374.51 | L17: =ROUND($I17*D17,2) -> 20864.74 | M17: =ROUND($I17*E17,2) -> 20299.15 | N17: =ROUND($I17*F17,2) -> 20782.45 | O17: =G17*J17 -> 3411232600
A18: 3 | B18: 2023-04-14 | C18: 20422.7207 | D18: 20482.67969 | E18: 20297.16016 | F18: 20438.81055 | G18: 2086262200 | H18: 20438.81055 | I18: 1 | J18: 1 | K18: 20422.72 | L18: 20482.68 | M18: 20297.16 | N18: 20438.81 | O18: 2086262200
A19: 4 | B19: 2023-04-13 | C19: 19977.96094 | D19: 20344.48047 | E19: 19885.5293 | F19: 20344.48047 | G19: 2329727600 | H19: 20344.48047 | I19: 1 | J19: 1 | K19: 19977.96 | L19: 20344.48 | M19: 19885.53 | N19: 20344.48 | O19: 2329727600
A20: 5 | B20: 2023-04-12 | C20: 20481.5293 | D20: 20494.81055 | E20: 20236.91992 | F20: 20309.85938 | G20: 2351926700 | H20: 20309.85938 | I20: 1 | J20: 1 | K20: 20481.53 | L20: 20494.81 | M20: 20236.92 | N20: 20309.86 | O20: 2351926700
A21: 6 | B21: 2023-04-11 | C21: 20566.58984 | D21: 20750.73047 | E21: 20293.36914 | F21: 20485.24023 | G21: 3064229800 | H21: 20485.24023 | I21: 1 | J21: 1 | K21: 20566.59 | L21: 20750.73 | M21: 20293.37 | N21: 20485.24 | O21: 3064229800
A22: 7 | B22: 2023-04-06 | C22: 20146.2207 | D22: 20343.85938 | E22: 20099.48047 | F22: 20331.19922 | G22: 2143238700 | H22: 20331.19922 | I22: 1 | J22: 1 | K22: 20146.22 | L22: 20343.86 | M22: 20099.48 | N22: 20331.2 | O22: 2143238700
A23: 8 | B23: 2023-04-04 | C23: 20364.35938 | D23: 20364.35938 | E23: 20126.90039 | F23: 20274.58984 | G23: 2415282800 | H23: 20274.58984 | I23: 1 | J23: 1 | K23: 20364.36 | L23: 20364.36 | M23: 20126.9 | N23: 20274.59 | O23: 2415282800
A24: 9 | B24: 2023-04-03 | C24: 20379.5 | D24: 20475.42969 | E24: 20226.94922 | F24: 20409.17969 | G24: 2651152300 | H24: 20409.17969 | I24: 1 | J24: 1 | K24: 20379.5 | L24: 20475.43 | M24: 20226.95 | N24: 20409.18 | O24: 2651152300
A25: 10 | B25: 2023-03-31 | C25: 20583.88086 | D25: 20721.9707 | E25: 20357.41016 | F25: 20400.10938 | G25: 3044982800 | H25: 20400.10938 | I25: 1 | J25: 1 | K25: 20583.88 | L25: 20721.97 | M25: 20357.41 | N25: 20400.11 | O25: 3044982800
A26: 11 | B26: 2023-03-30 | C26: 20216.78906 | D26: 20320.01953 | E26: 20017.16992 | F26: 20309.13086 | G26: 2981984600 | H26: 20309.13086 | I26: 1 | J26: 1 | K26: 20216.79 | L26: 20320.02 | M26: 20017.17 | N26: 20309.13 | O26: 2981984600
A27: 12 | B27: 2023-03-29 | C27: 20348.64062 | D27: 20437.68945 | E27: 20107.73047 | F27: 20192.40039 | G27: 2597427400 | H27: 20192.40039 | I27: 1 | J27: 1 | K27: 20348.64 | L27: 20437.69 | M27: 20107.73 | N27: 20192.4 | O27: 2597427400
A28: 13 | B28: 2023-03-28 | C28: 19688.31055 | D28: 19875.10938 | E28: 19559.4707 | F28: 19784.65039 | G28: 1935094200 | H28: 19784.65039 | I28: 1 | J28: 1 | K28: 19688.31 | L28: 19875.11 | M28: 19559.47 | N28: 19784.65 | O28: 1935094200
A29: 14 | B29: 2023-03-27 | C29: 19851.78906 | D29: 19938.76953 | E29: 19509.49023 | F29: 19567.68945 | G29: 2503607400 | H29: 19567.68945 | I29: 1 | J29: 1 | K29: 19851.79 | L29: 19938.77 | M29: 19509.49 | N29: 19567.69 | O29: 2503607400
A30: 15 | B30: 2023-03-24 | C30: 19919.65039 | D30: 20118.28906 | E30: 19834.44922 | F30: 19915.67969 | G30: 2306894000 | H30: 19915.67969 | I30: 1 | J30: 1 | K30: 19919.65 | L30: 20118.29 | M30: 19834.45 | N30: 19915.68 | O30: 2306894000
A31: 16 | B31: 2023-03-23 | C31: 19619.74023 | D31: 20051.25977 | E31: 19523.5 | F31: 20049.64062 | G31: 2531213200 | H31: 20049.64062 | I31: 1 | J31: 1 | K31: 19619.74 | L31: 20051.26 | M31: 19523.5 | N31: 20049.64 | O31: 2531213200
A32: 17 | B32: 2023-03-22 | C32: 19428.35938 | D32: 19775.68945 | E32: 19428.35938 | F32: 19591.42969 | G32: 2364133200 | H32: 19591.42969 | I32: 1 | J32: 1 | K32: 19428.36 | L32: 19775.69 | M32: 19428.36 | N32: 19591.43 | O32: 2364133200
A33: 18 | B33: 2023-03-21 | C33: 19118.86914 | D33: 19295.64062 | E33: 19018.09961 | F33: 19258.75977 | G33: 1929683800 | H33: 19258.75977 | I33: 1 | J33: 1 | K33: 19118.87 | L33: 19295.64 | M33: 19018.1 | N33: 19258.76 | O33: 1929683800
A34: 19 | B34: 2023-03-20 | C34: 19352.90039 | D34: 19382.9707 | E34: 18829.10938 | F34: 19000.71094 | G34: 2839042600 | H34: 19000.71094 | I34: 1 | J34: 1 | K34: 19352.9 | L34: 19382.97 | M34: 18829.11 | N34: 19000.71 | O34: 2839042600
A35: 20 | B35: 2023-03-17 | C35: 19439.83984 | D35: 19597.17969 | E35: 19303.28906 | F35: 19518.58984 | G35: 4332277000 | H35: 19518.58984 | I35: 1 | J35: 1 | K35: 19439.84 | L35: 19597.18 | M35: 19303.29 | N35: 19518.59 | O35: 4332277000
A36: 21 | B36: 2023-03-16 | C36: 19197.9707 | D36: 19388.76953 | E36: 19109.07031 | F36: 19203.91016 | G36: 3047393400 | H36: 19203.91016 | I36: 1 | J36: 1 | K36: 19197.97 | L36: 19388.77 | M36: 19109.07 | N36: 19203.91 | O36: 3047393400
A37: 22 | B37: 2023-03-15 | C37: 19523.49023 | D37: 19745.43945 | E37: 19431.08984 | F37: 19539.86914 | G37: 2633910800 | H37: 19539.86914 | I37: 1 | J37: 1 | K37: 19523.49 | L37: 19745.44 | M37: 19431.09 | N37: 19539.87 | O37: 2633910800
A38: 23 | B38: 2023-03-14 | C38: 19524.50977 | D38: 19639.51953 | E38: 19122.82031 | F38: 19247.96094 | G38: 3027393700 | H38: 19247.96094 | I38: 1 | J38: 1 | K38: 19524.51 | L38: 19639.52 | M38: 19122.82 | N38: 19247.96 | O38: 3027393700
A39: 24 | B39: 2023-03-13 | C39: 19411.88086 | D39: 19791.64062 | E39: 19390.38086 | F39: 19695.9707 | G39: 3133740000 | H39: 19695.9707 | I39: 1 | J39: 1 | K39: 19411.88 | L39: 19791.64 | M39: 19390.38 | N39: 19695.97 | O39: 3133740000
A40: 25 | B40: 2023-03-10 | C40: 19580.7793 | D40: 19637.7207 | E40: 19281.9707 | F40: 19319.91992 | G40: 3587989800 | H40: 19319.91992 | I40: 1 | J40: 1 | K40: 19580.78 | L40: 19637.72 | M40: 19281.97 | N40: 19319.92 | O40: 3587989800
A41: 26 | B41: 2023-03-09 | C41: 20082.41992 | D41: 20157.24023 | E41: 19907.58008 | F41: 19925.74023 | G41: 2193340400 | H41: 19925.74023 | I41: 1 | J41: 1 | K41: 20082.42 | L41: 20157.24 | M41: 19907.58 | N41: 19925.74 | O41: 2193340400
A42: 27 | B42: 2023-03-08 | C42: 20256.89062 | D42: 20269.92969 | E42: 19969.4707 | F42: 20051.25 | G42: 2643542900 | H42: 20051.25 | I42: 1 | J42: 1 | K42: 20256.89 | L42: 20269.93 | M42: 19969.47 | N42: 20051.25 | O42: 2643542900
A43: 28 | B43: 2023-03-07 | C43: 20606.83008 | D43: 21005.66016 | E43: 20358.7793 | F43: 20534.48047 | G43: 3634829700 | H43: 20534.48047 | I43: 1 | J43: 1 | K43: 20606.83 | L43: 21005.66 | M43: 20358.78 | N43: 20534.48 | O43: 3634829700
A44: 29 | B44: 2023-03-06 | C44: 20437.86914 | D44: 20702.75 | E44: 20410 | F44: 20603.18945 | G44: 2485355800 | H44: 20603.18945 | I44: 1 | J44: 1 | K44: 20437.87 | L44: 20702.75 | M44: 20410 | N44: 20603.19 | O44: 2485355800
A45: 30 | B45: 2023-03-03 | C45: 20703.14062 | D45: 20727.25 | E45: 20498.16016 | F45: 20567.53906 | G45: 2226145400 | H45: 20567.53906 | I45: 1 | J45: 1 | K45: 20703.14 | L45: 20727.25 | M45: 20498.16 | N45: 20567.54 | O45: 2226145400
A46: 31 | B46: 2023-03-02 | C46: 20390.01953 | D46: 20548.57031 | E46: 20321.25 | F46: 20429.46094 | G46: 1992565500 | H46: 20429.46094 | I46: 1 | J46: 1 | K46: 20390.02 | L46: 20548.57 | M46: 20321.25 | N46: 20429.46 | O46: 1992565500
A47: 32 | B47: 2023-03-01 | C47: 19849.9707 | D47: 20674.07031 | E47: 19849.9707 | F47: 20619.71094 | G47: 2889639700 | H47: 20619.71094 | I47: 1 | J47: 1 | K47: 19849.97 | L47: 20674.07 | M47: 19849.97 | N47: 20619.71 | O47: 2889639700
A48: 33 | B48: 2023-02-28 | C48: 20020.16992 | D48: 20185.05078 | E48: 19783.07031 | F48: 19785.93945 | G48: 2751875300 | H48: 19785.93945 | I48: 1 | J48: 1 | K48: 20020.17 | L48: 20185.05 | M48: 19783.07 | N48: 19785.94 | O48: 2751875300
A49: 34 | B49: 2023-02-27 | C49: 19821.0293 | D49: 20086.5293 | E49: 19804.56055 | F49: 19943.50977 | G49: 1897627300 | H49: 19943.50977 | I49: 1 | J49: 1 | K49: 19821.03 | L49: 20086.53 | M49: 19804.56 | N49: 19943.51 | O49: 1897627300
A50: 35 | B50: 2023-02-24 | C50: 20223.66992 | D50: 20233.64062 | E50: 20006.7793 | F50: 20010.03906 | G50: 2061880100 | H50: 20010.03906 | I50: 1 | J50: 1 | K50: 20223.67 | L50: 20233.64 | M50: 20006.78 | N50: 20010.04 | O50: 2061880100
A51: 36 | B51: 2023-02-23 | C51: 20339.15039 | D51: 20601.2207 | E51: 20323.24023 | F51: 20351.34961 | G51: 1729748400 | H51: 20351.34961 | I51: 1 | J51: 1 | K51: 20339.15 | L51: 20601.22 | M51: 20323.24 | N51: 20351.35 | O51: 1729748400
A52: 37 | B52: 2023-02-22 | C52: 20512.49023 | D52: 20620.98047 | E52: 20344.85938 | F52: 20423.83984 | G52: 1766388300 | H52: 20423.83984 | I52: 1 | J52: 1 | K52: 20512.49 | L52: 20620.98 | M52: 20344.86 | N52: 20423.84 | O52: 1766388300
A53: 38 | B53: 2023-02-21 | C53: 20859.5 | D53: 20941.30078 | E53: 20503.05078 | F53: 20529.49023 | G53: 2004601100 | H53: 20529.49023 | I53: 1 | J53: 1 | K53: 20859.5 | L53: 20941.3 | M53: 20503.05 | N53: 20529.49 | O53: 2004601100
A54: 39 | B54: 2023-02-20 | C54: 20681.4707 | D54: 20973.66992 | E54: 20606.84961 | F54: 20886.96094 | G54: 1915367500 | H54: 20886.96094 | I54: 1 | J54: 1 | K54: 20681.47 | L54: 20973.67 | M54: 20606.85 | N54: 20886.96 | O54: 1915367500
A55: 40 | B55: 2023-02-17 | C55: 20958.63086 | D55: 21056.67969 | E55: 20703.74023 | F55: 20719.81055 | G55: 1631650800 | H55: 20719.81055 | I55: 1 | J55: 1 | K55: 20958.63 | L55: 21056.68 | M55: 20703.74 | N55: 20719.81 | O55: 1631650800
A56: 41 | B56: 2023-02-16 | C56: 20947.07031 | D56: 21306.53906 | E56: 20887.69922 | F56: 20987.66992 | G56: 2180463800 | H56: 20987.66992 | I56: 1 | J56: 1 | K56: 20947.07 | L56: 21306.54 | M56: 20887.7 | N56: 20987.67 | O56: 2180463800
A57: 42 | B57: 2023-02-15 | C57: 21116.83984 | D57: 21117.58008 | E57: 20726.83008 | F57: 20812.16992 | G57: 2143024200 | H57: 20812.16992 | I57: 1 | J57: 1 | K57: 21116.84 | L57: 21117.58 | M57: 20726.83 | N57: 20812.17 | O57: 2143024200
A58: 43 | B58: 2023-02-14 | C58: 21235.91992 | D58: 21237.88086 | E58: 21074.93945 | F58: 21113.75977 | G58: 1408732200 | H58: 21113.75977 | I58: 1 | J58: 1 | K58: 21235.92 | L58: 21237.88 | M58: 21074.94 | N58: 21113.76 | O58: 1408732200
A59: 44 | B59: 2023-02-13 | C59: 20910.08008 | D59: 21230.15039 | E59: 20799.91016 | F59: 21164.41992 | G59: 1772634000 | H59: 21164.41992 | I59: 1 | J59: 1 | K59: 20910.08 | L59: 21230.15 | M59: 20799.91 | N59: 21164.42 | O59: 1772634000
A60: 45 | B60: 2023-02-10 | C60: 21559.43945 | D60: 21579.99023 | E60: 21157.51953 | F60: 21190.41992 | G60: 1782692000 | H60: 21190.41992 | I60: 1 | J60: 1 | K60: 21559.44 | L60: 21579.99 | M60: 21157.52 | N60: 21190.42 | O60: 1782692000
A61: 46 | B61: 2023-02-09 | C61: 21154.25 | D61: 21637.55078 | E61: 21151.26953 | F61: 21624.35938 | G61: 1933829700 | H61: 21624.35938 | I61: 1 | J61: 1 | K61: 21154.25 | L61: 21637.55 | M61: 21151.27 | N61: 21624.36 | O61: 1933829700
A62: 47 | B62: 2023-02-08 | C62: 21283.90039 | D62: 21443.48047 | E62: 21178.86914 | F62: 21283.51953 | G62: 1894498900 | H62: 21283.51953 | I62: 1 | J62: 1 | K62: 21283.9 | L62: 21443.48 | M62: 21178.87 | N62: 21283.52 | O62: 1894498900
A63: 48 | B63: 2023-02-07 | C63: 21288.39062 | D63: 21512.21094 | E63: 21259.21094 | F63: 21298.69922 | G63: 1777942000 | H63: 21298.69922 | I63: 1 | J63: 1 | K63: 21288.39 | L63: 21512.21 | M63: 21259.21 | N63: 21298.7 | O63: 1777942000
A64: 49 | B64: 2023-02-06 | C64: 21349.16992 | D64: 21349.16992 | E64: 21085.7207 | F64: 21222.16016 | G64: 2314469800 | H64: 21222.16016 | I64: 1 | J64: 1 | K64: 21349.17 | L64: 21349.17 | M64: 21085.72 | N64: 21222.16 | O64: 2314469800
A65: 50 | B65: 2023-02-03 | C65: 21811.08008 | D65: 21820.7793 | E65: 21459.65039 | F65: 21660.4707 | G65: 2414664700 | H65: 21660.4707 | I65: 1 | J65: 1 | K65: 21811.08 | L65: 21820.78 | M65: 21459.65 | N65: 21660.47 | O65: 2414664700
A66: 51 | B66: 2023-02-02 | C66: 22276.23047 | D66: 22311.96094 | E66: 21930.5293 | F66: 21958.35938 | G66: 2401245600 | H66: 21958.35938 | I66: 1 | J66: 1 | K66: 22276.23 | L66: 22311.96 | M66: 21930.53 | N66: 21958.36 | O66: 2401245600
A67: 52 | B67: 2023-02-01 | C67: 21920.80078 | D67: 22072.17969 | E67: 21703.59961 | F67: 22072.17969 | G67: 2548571000 | H67: 22072.17969 | I67: 1 | J67: 1 | K67: 21920.8 | L67: 22072.18 | M67: 21703.6 | N67: 22072.18 | O67: 2548571000
A68: 53 | B68: 2023-01-31 | C68: 22190.26953 | D68: 22284.32031 | E68: 21631.55078 | F68: 21842.33008 | G68: 3304372200 | H68: 21842.33008 | I68: 1 | J68: 1 | K68: 22190.27 | L68: 22284.32 | M68: 21631.55 | N68: 21842.33 | O68: 3304372200
A69: 54 | B69: 2023-01-30 | C69: 22579.88086 | D69: 22623.81055 | E69: 21992.50977 | F69: 22069.73047 | G69: 3802780400 | H69: 22069.73047 | I69: 1 | J69: 1 | K69: 22579.88 | L69: 22623.81 | M69: 21992.51 | N69: 22069.73 | O69: 3802780400
A70: 55 | B70: 2023-01-27 | C70: 22614.91992 | D70: 22700.84961 | E70: 22483.7793 | F70: 22688.90039 | G70: 2012141000 | H70: 22688.90039 | I70: 1 | J70: 1 | K70: 22614.92 | L70: 22700.85 | M70: 22483.78 | N70: 22688.9 | O70: 2012141000
A71: 56 | B71: 2023-01-26 | C71: 22386.36914 | D71: 22566.7793 | E71: 22329.07031 | F71: 22566.7793 | G71: 2455079700 | H71: 22566.7793 | I71: 1 | J71: 1 | K71: 22386.37 | L71: 22566.78 | M71: 22329.07 | N71: 22566.78 | O71: 2455079700
A72: 57 | B72: 2023-01-20 | C72: 21812.46094 | D72: 22051.76953 | E72: 21754.34961 | F72: 22044.65039 | G72: 1956241900 | H72: 22044.65039 | I72: 1 | J72: 1 | K72: 21812.46 | L72: 22051.77 | M72: 21754.35 | N72: 22044.65 | O72: 1956241900
A73: 58 | B73: 2023-01-19 | C73: 21452.25977 | D73: 21754.08008 | E73: 21383.0293 | F73: 21650.98047 | G73: 1664915500 | H73: 21650.98047 | I73: 1 | J73: 1 | K73: 21452.26 | L73: 21754.08 | M73: 21383.03 | N73: 21650.98 | O73: 1664915500
A74: 59 | B74: 2023-01-18 | C74: 21514.80078 | D74: 21691.66992 | E74: 21422.18945 | F74: 21678 | G74: 2485346700 | H74: 21678 | I74: 1 | J74: 1 | K74: 21514.8 | L74: 21691.67 | M74: 21422.19 | N74: 21678 | O74: 2485346700
A75: 60 | B75: 2023-01-17 | C75: 21678.05078 | D75: 21797.61914 | E75: 21417.25 | F75: 21577.64062 | G75: 2307534200 | H75: 21577.64062 | I75: 1 | J75: 1 | K75: 21678.05 | L75: 21797.62 | M75: 21417.25 | N75: 21577.64 | O75: 2307534200
A76: 61 | B76: 2023-01-16 | C76: 21818.65039 | D76: 21947.55078 | E76: 21572.50977 | F76: 21746.7207 | G76: 2559091800 | H76: 21746.7207 | I76: 1 | J76: 1 | K76: 21818.65 | L76: 21947.55 | M76: 21572.51 | N76: 21746.72 | O76: 2559091800
A77: 62 | B77: 2023-01-13 | C77: 21605.07031 | D77: 21770.08008 | E77: 21474.98047 | F77: 21738.66016 | G77: 2463604200 | H77: 21738.66016 | I77: 1 | J77: 1 | K77: 21605.07 | L77: 21770.08 | M77: 21474.98 | N77: 21738.66 | O77: 2463604200
A78: 63 | B78: 2023-01-12 | C78: 21599.82031 | D78: 21698.93945 | E78: 21223.83984 | F78: 21514.09961 | G78: 2834627500 | H78: 21514.09961 | I78: 1 | J78: 1 | K78: 21599.82 | L78: 21698.94 | M78: 21223.84 | N78: 21514.1 | O78: 2834627500
A79: 64 | B79: 2023-01-11 | C79: 21463.82031 | D79: 21686.30078 | E79: 21327.41016 | F79: 21436.05078 | G79: 2971313200 | H79: 21436.05078 | I79: 1 | J79: 1 | K79: 21463.82 | L79: 21686.3 | M79: 21327.41 | N79: 21436.05 | O79: 2971313200
A80: 65 | B80: 2023-01-10 | C80: 21370.41992 | D80: 21395.41992 | E80: 21187.73047 | F80: 21331.46094 | G80: 2543159700 | H80: 21331.46094 | I80: 1 | J80: 1 | K80: 21370.42 | L80: 21395.42 | M80: 21187.73 | N80: 21331.46 | O80: 2543159700
A81: 66 | B81: 2023-01-09 | C81: 21295.93945 | D81: 21470.68945 | E81: 21216.91992 | F81: 21388.33984 | G81: 2697924400 | H81: 21388.33984 | I81: =IF(F81=0,1,H81/F81) -> 1 | J81: =INDEX(OFFSET($T$15,0,0,$S$13+1,1),MATCH(B81,OFFSET($Q$15,0,0,$S$13+1,1),-1)) -> 1 | K81: =ROUND($I81*C81,2) -> 21295.94 | L81: =ROUND($I81*D81,2) -> 21470.69 | M81: =ROUND($I81*E81,2) -> 21216.92 | N81: =ROUND($I81*F81,2) -> 21388.34 | O81: =G81*J81 -> 2697924400
A82: 67 | B82: 2023-01-06 | C82: 21220.89062 | D82: 21282.71094 | E82: 20862.76953 | F82: 20991.64062 | G82: 2754459500 | H82: 20991.64062 | I82: 1 | J82: 1 | K82: 21220.89 | L82: 21282.71 | M82: 20862.77 | N82: 20991.64 | O82: 2754459500
A83: 68 | B83: 2023-01-05 | C83: 21295.86914 | D83: 21396.08984 | E83: 20962.40039 | F83: 21052.16992 | G83: 2875372400 | H83: 21052.16992 | I83: 1 | J83: 1 | K83: 21295.87 | L83: 21396.09 | M83: 20962.4 | N83: 21052.17 | O83: 2875372400
A84: 69 | B84: 2023-01-04 | C84: 20319.98047 | D84: 20793.10938 | E84: 20233.39062 | F84: 20793.10938 | G84: 3015986300 | H84: 20793.10938 | I84: 1 | J84: 1 | K84: 20319.98 | L84: 20793.11 | M84: 20233.39 | N84: 20793.11 | O84: 3015986300
A85: 70 | B85: 2023-01-03 | C85: 19570.42969 | D85: 20212.55078 | E85: 19303.73047 | F85: 20145.28906 | G85: 2286651100 | H85: 20145.28906 | I85: 1 | J85: 1 | K85: 19570.43 | L85: 20212.55 | M85: 19303.73 | N85: 20145.29 | O85: 2286651100
A86: 71 | B86: 2022-12-30 | C86: 20030.84961 | D86: 20073.91992 | E86: 19781.41016 | F86: 19781.41016 | G86: 1747706800 | H86: 19781.41016 | I86: 1 | J86: 1 | K86: 20030.85 | L86: 20073.92 | M86: 19781.41 | N86: 19781.41 | O86: 1747706800
A87: 72 | B87: 2022-12-29 | C87: 19648.40039 | D87: 19764.51953 | E87: 19539.83984 | F87: 19741.14062 | G87: 2902362900 | H87: 19741.14062 | I87: 1 | J87: 1 | K87: 19648.4 | L87: 19764.52 | M87: 19539.84 | N87: 19741.14 | O87: 2902362900
A88: 73 | B88: 2022-12-28 | C88: 19787.93945 | D88: 20099.76953 | E88: 19787.93945 | F88: 19898.91016 | G88: 2823780600 | H88: 19898.91016 | I88: 1 | J88: 1 | K88: 19787.94 | L88: 20099.77 | M88: 19787.94 | N88: 19898.91 | O88: 2823780600
A89: 74 | B89: 2022-12-23 | C89: 19382.23047 | D89: 19686.76953 | E89: 19380.4707 | F89: 19593.06055 | G89: 1363741800 | H89: 19593.06055 | I89: 1 | J89: 1 | K89: 19382.23 | L89: 19686.77 | M89: 19380.47 | N89: 19593.06 | O89: 1363741800
A90: 75 | B90: 2022-12-22 | C90: 19537.44922 | D90: 19735 | E90: 19475.67969 | F90: 19679.2207 | G90: 1939795100 | H90: 19679.2207 | I90: 1 | J90: 1 | K90: 19537.45 | L90: 19735 | M90: 19475.68 | N90: 19679.22 | O90: 1939795100
A91: 76 | B91: 2022-12-21 | C91: 19190.91016 | D91: 19255.74023 | E91: 19063.30078 | F91: 19160.49023 | G91: 1348431000 | H91: 19160.49023 | I91: 1 | J91: 1 | K91: 19190.91 | L91: 19255.74 | M91: 19063.3 | N91: 19160.49 | O91: 1348431000
A92: 77 | B92: 2022-12-20 | C92: 19156.93945 | D92: 19283.14062 | E92: 18885.19922 | F92: 19094.80078 | G92: 1938516900 | H92: 19094.80078 | I92: 1 | J92: 1 | K92: 19156.94 | L92: 19283.14 | M92: 18885.2 | N92: 19094.8 | O92: 1938516900
A93: 78 | B93: 2022-12-19 | C93: 19472.21094 | D93: 19786.28906 | E93: 19255.94922 | F93: 19352.81055 | G93: 2238224700 | H93: 19352.81055 | I93: 1 | J93: 1 | K93: 19472.21 | L93: 19786.29 | M93: 19255.95 | N93: 19352.81 | O93: 2238224700
A94: 79 | B94: 2022-12-16 | C94: 19343.69922 | D94: 19621.13086 | E94: 19130.5293 | F94: 19450.66992 | G94: 2875978600 | H94: 19450.66992 | I94: 1 | J94: 1 | K94: 19343.7 | L94: 19621.13 | M94: 19130.53 | N94: 19450.67 | O94: 2875978600
A95: 80 | B95: 2022-12-15 | C95: 19612.66992 | D95: 19675.67969 | E95: 19233.85938 | F95: 19368.58984 | G95: 2243394000 | H95: 19368.58984 | I95: 1 | J95: 1 | K95: 19612.67 | L95: 19675.68 | M95: 19233.86 | N95: 19368.59 | O95: 2243394000
A96: 81 | B96: 2022-12-14 | C96: 19775.33008 | D96: 19859.75 | E96: 19528.71094 | F96: 19673.44922 | G96: 2758656100 | H96: 19673.44922 | I96: 1 | J96: 1 | K96: 19775.33 | L96: 19859.75 | M96: 19528.71 | N96: 19673.45 | O96: 2758656100
A97: 82 | B97: 2022-12-13 | C97: 19458.01953 | D97: 19707.75 | E97: 19382.30078 | F97: 19596.19922 | G97: 2584117300 | H97: 19596.19922 | I97: 1 | J97: 1 | K97: 19458.02 | L97: 19707.75 | M97: 19382.3 | N97: 19596.2 | O97: 2584117300
A98: 83 | B98: 2022-12-12 | C98: 19594.51953 | D98: 19718.08008 | E98: 19366.2207 | F98: 19463.63086 | G98: 3115198500 | H98: 19463.63086 | I98: 1 | J98: 1 | K98: 19594.52 | L98: 19718.08 | M98: 19366.22 | N98: 19463.63 | O98: 3115198500
A99: 84 | B99: 2022-12-09 | C99: 19484.23047 | D99: 19926.48047 | E99: 19404.5 | F99: 19900.86914 | G99: 4023277500 | H99: 19900.86914 | I99: 1 | J99: 1 | K99: 19484.23 | L99: 19926.48 | M99: 19404.5 | N99: 19900.87 | O99: 4023277500
A100: 85 | B100: 2022-12-08 | C100: 18965.05078 | D100: 19521.59961 | E100: 18965.05078 | F100: 19450.23047 | G100: 2856166600 | H100: 19450.23047 | I100: 1 | J100: 1 | K100: 18965.05 | L100: 19521.6 | M100: 18965.05 | N100: 19450.23 | O100: 2856166600
A101: 86 | B101: 2022-12-07 | C101: 19380.80078 | D101: 19737.31055 | E101: 18799.81055 | F101: 18814.82031 | G101: 5308866200 | H101: 18814.82031 | I101: 1 | J101: 1 | K101: 19380.8 | L101: 19737.31 | M101: 18799.81 | N101: 18814.82 | O101: 5308866200
A102: 87 | B102: 2022-12-06 | C102: 19211.69922 | D102: 19569.66992 | E102: 19202.86914 | F102: 19441.17969 | G102: 3552078500 | H102: 19441.17969 | I102: 1 | J102: 1 | K102: 19211.7 | L102: 19569.67 | M102: 19202.87 | N102: 19441.18 | O102: 3552078500
A103: 88 | B103: 2022-12-05 | C103: 19221.67969 | D103: 19539.59961 | E103: 19035.14062 | F103: 19518.28906 | G103: 4890142300 | H103: 19518.28906 | I103: 1 | J103: 1 | K103: 19221.68 | L103: 19539.6 | M103: 19035.14 | N103: 19518.29 | O103: 4890142300
A104: 89 | B104: 2022-12-02 | C104: 18785.2793 | D104: 18841.2207 | E104: 18530.82031 | F104: 18675.34961 | G104: 3757394000 | H104: 18675.34961 | I104: 1 | J104: 1 | K104: 18785.28 | L104: 18841.22 | M104: 18530.82 | N104: 18675.35 | O104: 3757394000
A105: 90 | B105: 2022-12-01 | C105: 19058.90039 | D105: 19237.44922 | E105: 18679.34961 | F105: 18736.43945 | G105: 4262000300 | H105: 18736.43945 | I105: 1 | J105: 1 | K105: 19058.9 | L105: 19237.45 | M105: 18679.35 | N105: 18736.44 | O105: 4262000300
A106: 91 | B106: 2022-11-30 | C106: 18141.56055 | D106: 18645.34961 | E106: 18052.32031 | F106: 18597.23047 | G106: 5359650800 | H106: 18597.23047 | I106: 1 | J106: 1 | K106: 18141.56 | L106: 18645.35 | M106: 18052.32 | N106: 18597.23 | O106: 5359650800
A107: 92 | B107: 2022-11-29 | C107: 17558.59961 | D107: 18204.67969 | E107: 17536.44922 | F107: 18204.67969 | G107: 4273394700 | H107: 18204.67969 | I107: 1 | J107: 1 | K107: 17558.6 | L107: 18204.68 | M107: 17536.45 | N107: 18204.68 | O107: 4273394700
A108: 93 | B108: 2022-11-28 | C108: 17000.23047 | D108: 17364.21094 | E108: 16833.67969 | F108: 17297.93945 | G108: 2799254000 | H108: 17297.93945 | I108: 1 | J108: 1 | K108: 17000.23 | L108: 17364.21 | M108: 16833.68 | N108: 17297.94 | O108: 2799254000
A109: 94 | B109: 2022-11-25 | C109: 17673.19922 | D109: 17673.19922 | E109: 17412.03906 | F109: 17573.58008 | G109: 3176711400 | H109: 17573.58008 | I109: 1 | J109: 1 | K109: 17673.2 | L109: 17673.2 | M109: 17412.04 | N109: 17573.58 | O109: 3176711400
A110: 95 | B110: 2022-11-24 | C110: 17684.5293 | D110: 17759.24023 | E110: 17517.11914 | F110: 17660.90039 | G110: 2910419300 | H110: 17660.90039 | I110: 1 | J110: 1 | K110: 17684.53 | L110: 17759.24 | M110: 17517.12 | N110: 17660.9 | O110: 2910419300
A111: 96 | B111: 2022-11-23 | C111: 17460.90039 | D111: 17640.83984 | E111: 17375.96094 | F111: 17523.81055 | G111: 2423764400 | H111: 17523.81055 | I111: 1 | J111: 1 | K111: 17460.9 | L111: 17640.84 | M111: 17375.96 | N111: 17523.81 | O111: 2423764400
A112: 97 | B112: 2022-11-22 | C112: 17625.18945 | D112: 17751.92969 | E112: 17287.59961 | F112: 17424.41016 | G112: 3024902000 | H112: 17424.41016 | I112: 1 | J112: 1 | K112: 17625.19 | L112: 17751.93 | M112: 17287.6 | N112: 17424.41 | O112: 3024902000
A113: 98 | B113: 2022-11-21 | C113: 17654.15039 | D113: 17746.33984 | E113: 17389.44922 | F113: 17655.91016 | G113: 2230983500 | H113: 17655.91016 | I113: 1 | J113: 1 | K113: 17654.15 | L113: 17746.34 | M113: 17389.45 | N113: 17655.91 | O113: 2230983500
A114: 99 | B114: 2022-11-18 | C114: 18316.35938 | D114: 18378.06055 | E114: 17910.18945 | F114: 17992.53906 | G114: 2792874200 | H114: 17992.53906 | I114: 1 | J114: 1 | K114: 18316.36 | L114: 18378.06 | M114: 17910.19 | N114: 17992.54 | O114: 2792874200
A115: 100 | B115: 2022-11-17 | C115: 18071.59961 | D115: 18220.81055 | E115: 17711.83984 | F115: 18045.66016 | G115: 2930448500 | H115: 18045.66016 | I115: 1 | J115: 1 | K115: 18071.6 | L115: 18220.81 | M115: 17711.84 | N115: 18045.66 | O115: 2930448500
A116: 101 | B116: 2022-11-16 | C116: 18169.21094 | D116: 18414.08984 | E116: 18031.86914 | F116: 18256.48047 | G116: 3918387100 | H116: 18256.48047 | I116: 1 | J116: 1 | K116: 18169.21 | L116: 18414.09 | M116: 18031.87 | N116: 18256.48 | O116: 3918387100
A117: 102 | B117: 2022-11-15 | C117: 17665.80078 | D117: 18356.7793 | E117: 17552.30078 | F117: 18343.11914 | G117: 4900022200 | H117: 18343.11914 | I117: 1 | J117: 1 | K117: 17665.8 | L117: 18356.78 | M117: 17552.3 | N117: 18343.12 | O117: 4900022200
A118: 103 | B118: 2022-11-14 | C118: 17999.25977 | D118: 18011.64062 | E118: 17518.88086 | F118: 17619.71094 | G118: 5547517900 | H118: 17619.71094 | I118: 1 | J118: 1 | K118: 17999.26 | L118: 18011.64 | M118: 17518.88 | N118: 17619.71 | O118: 5547517900
A119: 104 | B119: 2022-11-11 | C119: 17120.05078 | D119: 17368.03906 | E119: 16829 | F119: 17325.66016 | G119: 5112566000 | H119: 17325.66016 | I119: 1 | J119: 1 | K119: 17120.05 | L119: 17368.04 | M119: 16829 | N119: 17325.66 | O119: 5112566000
A120: 105 | B120: 2022-11-10 | C120: 16138.21973 | D120: 16138.21973 | E120: 15945.20019 | F120: 16081.04004 | G120: 2204747800 | H120: 16081.04004 | I120: 1 | J120: 1 | K120: 16138.22 | L120: 16138.22 | M120: 15945.2 | N120: 16081.04 | O120: 2204747800
A121: 106 | B121: 2022-11-09 | C121: 16552.80078 | D121: 16730.19922 | E121: 16213.03027 | F121: 16358.51953 | G121: 3270965100 | H121: 16358.51953 | I121: 1 | J121: 1 | K121: 16552.8 | L121: 16730.2 | M121: 16213.03 | N121: 16358.52 | O121: 3270965100
A122: 107 | B122: 2022-11-08 | C122: 16640.59961 | D122: 16719.00977 | E122: 16429.81055 | F122: 16557.31055 | G122: 2071208700 | H122: 16557.31055 | I122: 1 | J122: 1 | K122: 16640.6 | L122: 16719.01 | M122: 16429.81 | N122: 16557.31 | O122: 2071208700
A123: 108 | B123: 2022-11-07 | C123: 16031.79004 | D123: 16821.89062 | E123: 15980.84961 | F123: 16595.91016 | G123: 3227830100 | H123: 16595.91016 | I123: 1 | J123: 1 | K123: 16031.79 | L123: 16821.89 | M123: 15980.85 | N123: 16595.91 | O123: 3227830100
A124: 109 | B124: 2022-11-04 | C124: 15442.75977 | D124: 16513.16016 | E124: 15442.75977 | F124: 16161.13965 | G124: 3951121100 | H124: 16161.13965 | I124: 1 | J124: 1 | K124: 15442.76 | L124: 16513.16 | M124: 15442.76 | N124: 16161.14 | O124: 3951121100
A125: 110 | B125: 2022-11-03 | C125: 15477.74023 | D125: 15623.17969 | E125: 15301.66992 | F125: 15339.49023 | G125: 2544805200 | H125: 15339.49023 | I125: 1 | J125: 1 | K125: 15477.74 | L125: 15623.18 | M125: 15301.67 | N125: 15339.49 | O125: 2544805200
A126: 111 | B126: 2022-11-02 | C126: 15389.54981 | D126: 15867.24023 | E126: 15276.75977 | F126: 15827.16992 | G126: 2774638200 | H126: 15827.16992 | I126: 1 | J126: 1 | K126: 15389.55 | L126: 15867.24 | M126: 15276.76 | N126: 15827.17 | O126: 2774638200
A127: 112 | B127: 2022-11-01 | C127: 14859.91992 | D127: 15632.84961 | E127: 14859.91992 | F127: 15455.26953 | G127: 3787359000 | H127: 15455.26953 | I127: 1 | J127: 1 | K127: 14859.92 | L127: 15632.85 | M127: 14859.92 | N127: 15455.27 | O127: 3787359000
A128: 113 | B128: 2022-10-31 | C128: 14830.69043 | D128: 15113.15039 | E128: 14597.30957 | F128: 14687.01953 | G128: 4183641700 | H128: 14687.01953 | I128: 1 | J128: 1 | K128: 14830.69 | L128: 15113.15 | M128: 14597.31 | N128: 14687.02 | O128: 4183641700
A129: 114 | B129: 2022-10-28 | C129: 15424.94043 | D129: 15441.99023 | E129: 14770.08984 | F129: 14863.05957 | G129: 3051258500 | H129: 14863.05957 | I129: 1 | J129: 1 | K129: 15424.94 | L129: 15441.99 | M129: 14770.09 | N129: 14863.06 | O129: 3051258500
A130: 115 | B130: 2022-10-27 | C130: 15721.26953 | D130: 15833.28027 | E130: 15410.96973 | F130: 15427.94043 | G130: 2526173200 | H130: 15427.94043 | I130: 1 | J130: 1 | K130: 15721.27 | L130: 15833.28 | M130: 15410.97 | N130: 15427.94 | O130: 2526173200
A131: 116 | B131: 2022-10-26 | C131: 15096.32031 | D131: 15584.05957 | E131: 15041.40039 | F131: 15317.66992 | G131: 2718640800 | H131: 15317.66992 | I131: 1 | J131: 1 | K131: 15096.32 | L131: 15584.06 | M131: 15041.4 | N131: 15317.67 | O131: 2718640800
A132: 117 | B132: 2022-10-25 | C132: 15242.09961 | D132: 15435.37012 | E132: 14947.38965 | F132: 15165.58984 | G132: 3275325600 | H132: 15165.58984 | I132: 1 | J132: 1 | K132: 15242.1 | L132: 15435.37 | M132: 14947.39 | N132: 15165.59 | O132: 3275325600
A133: 118 | B133: 2022-10-24 | C133: 15894.75 | D133: 15993.87988 | E133: 15082.83984 | F133: 15180.69043 | G133: 3597357500 | H133: 15180.69043 | I133: 1 | J133: 1 | K133: 15894.75 | L133: 15993.88 | M133: 15082.84 | N133: 15180.69 | O133: 3597357500
A134: 119 | B134: 2022-10-21 | C134: 16331.11035 | D134: 16359.04004 | E134: 16137.17969 | F134: 16211.12012 | G134: 2052413100 | H134: 16211.12012 | I134: 1 | J134: 1 | K134: 16331.11 | L134: 16359.04 | M134: 16137.18 | N134: 16211.12 | O134: 2052413100
A135: 120 | B135: 2022-10-20 | C135: 16230.79004 | D135: 16452.9707 | E135: 16010.71973 | F135: 16280.21973 | G135: 2295268600 | H135: 16280.21973 | I135: 1 | J135: 1 | K135: 16230.79 | L135: 16452.97 | M135: 16010.72 | N135: 16280.22 | O135: 2295268600
A136: 121 | B136: 2022-10-19 | C136: 16805.91016 | D136: 16923.11914 | E136: 16508.36914 | F136: 16511.2793 | G136: 1713974900 | H136: 16511.2793 | I136: 1 | J136: 1 | K136: 16805.91 | L136: 16923.12 | M136: 16508.37 | N136: 16511.28 | O136: 1713974900
A137: 122 | B137: 2022-10-18 | C137: 16860.19922 | D137: 16914.58008 | E137: 16558.41016 | F137: 16914.58008 | G137: 1971282000 | H137: 16914.58008 | I137: 1 | J137: 1 | K137: 16860.2 | L137: 16914.58 | M137: 16558.41 | N137: 16914.58 | O137: 1971282000
A138: 123 | B138: 2022-10-17 | C138: 16479.74023 | D138: 16754.51953 | E138: 16308.95019 | F138: 16612.90039 | G138: 2061247900 | H138: 16612.90039 | I138: 1 | J138: 1 | K138: 16479.74 | L138: 16754.52 | M138: 16308.95 | N138: 16612.9 | O138: 2061247900
A139: 124 | B139: 2022-10-14 | C139: 16671.67969 | D139: 17028.67969 | E139: 16535.36914 | F139: 16587.68945 | G139: 2322665100 | H139: 16587.68945 | I139: 1 | J139: 1 | K139: 16671.68 | L139: 17028.68 | M139: 16535.37 | N139: 16587.69 | O139: 2322665100
A140: 125 | B140: 2022-10-13 | C140: 16700.65039 | D140: 16736.58984 | E140: 16389.10938 | F140: 16389.10938 | G140: 2241934000 | H140: 16389.10938 | I140: 1 | J140: 1 | K140: 16700.65 | L140: 16736.59 | M140: 16389.11 | N140: 16389.11 | O140: 2241934000
A141: 126 | B141: 2022-10-12 | C141: 16758.26953 | D141: 17040.69922 | E141: 16438.59961 | F141: 16701.0293 | G141: 2407431400 | H141: 16701.0293 | I141: 1 | J141: 1 | K141: 16758.27 | L141: 17040.7 | M141: 16438.6 | N141: 16701.03 | O141: 2407431400
A142: 127 | B142: 2022-10-11 | C142: 17194.73047 | D142: 17206.50977 | E142: 16789.9707 | F142: 16832.35938 | G142: 1797693500 | H142: 16832.35938 | I142: 1 | J142: 1 | K142: 17194.73 | L142: 17206.51 | M142: 16789.97 | N142: 16832.36 | O142: 1797693500
A143: 128 | B143: 2022-10-10 | C143: 17449.35938 | D143: 17449.35938 | E143: 17174.60938 | F143: 17216.66016 | G143: 1771824300 | H143: 17216.66016 | I143: 1 | J143: 1 | K143: 17449.36 | L143: 17449.36 | M143: 17174.61 | N143: 17216.66 | O143: 1771824300
A144: 129 | B144: 2022-10-07 | C144: 17851.61914 | D144: 17881.86914 | E144: 17717.73047 | F144: 17740.05078 | G144: 1129251000 | H144: 17740.05078 | I144: 1 | J144: 1 | K144: 17851.62 | L144: 17881.87 | M144: 17717.73 | N144: 17740.05 | O144: 1129251000
A145: 130 | B145: 2022-10-06 | C145: 18100.48047 | D145: 18143.84961 | E145: 17958.14062 | F145: 18012.15039 | G145: 1082368000 | H145: 18012.15039 | I145: =IF(F145=0,1,H145/F145) -> 1 | J145: =INDEX(OFFSET($T$15,0,0,$S$13+1,1),MATCH(B145,OFFSET($Q$15,0,0,$S$13+1,1),-1)) -> 1 | K145: =ROUND($I145*C145,2) -> 18100.48 | L145: =ROUND($I145*D145,2) -> 18143.85 | M145: =ROUND($I145*E145,2) -> 17958.14 | N145: =ROUND($I145*F145,2) -> 18012.15 | O145: =G145*J145 -> 1082368000
A146: 131 | B146: 2022-10-05 | C146: 17811.9707 | D146: 18164.19922 | E146: 17682.84961 | F146: 18087.9707 | G146: 2256107700 | H146: 18087.9707 | I146: 1 | J146: 1 | K146: 17811.97 | L146: 18164.2 | M146: 17682.85 | N146: 18087.97 | O146: 2256107700
A147: 132 | B147: 2022-10-03 | C147: 17050.25 | D147: 17252.10938 | E147: 16906.96094 | F147: 17079.50977 | G147: 1361001600 | H147: 17079.50977 | I147: 1 | J147: 1 | K147: 17050.25 | L147: 17252.11 | M147: 16906.96 | N147: 17079.51 | O147: 1361001600
A148: 133 | B148: 2022-09-30 | C148: 17165.92969 | D148: 17344.81055 | E148: 17016.2793 | F148: 17222.83008 | G148: 2113942500 | H148: 17222.83008 | I148: 1 | J148: 1 | K148: 17165.93 | L148: 17344.81 | M148: 17016.28 | N148: 17222.83 | O148: 2113942500
A149: 134 | B149: 2022-09-29 | C149: 17570.16992 | D149: 17629.66992 | E149: 17046.83008 | F149: 17165.86914 | G149: 2534665600 | H149: 17165.86914 | I149: 1 | J149: 1 | K149: 17570.17 | L149: 17629.67 | M149: 17046.83 | N149: 17165.87 | O149: 2534665600
A150: 135 | B150: 2022-09-28 | C150: 17703.39062 | D150: 17703.39062 | E150: 17184.53906 | F150: 17250.88086 | G150: 2948457300 | H150: 17250.88086 | I150: 1 | J150: 1 | K150: 17703.39 | L150: 17703.39 | M150: 17184.54 | N150: 17250.88 | O150: 2948457300
A151: 136 | B151: 2022-09-27 | C151: 17838.65039 | D151: 17904.21094 | E151: 17648.41992 | F151: 17860.31055 | G151: 1900500000 | H151: 17860.31055 | I151: 1 | J151: 1 | K151: 17838.65 | L151: 17904.21 | M151: 17648.42 | N151: 17860.31 | O151: 1900500000
A152: 137 | B152: 2022-09-26 | C152: 17781.86914 | D152: 18077.64062 | E152: 17727.40039 | F152: 17855.14062 | G152: 2557096600 | H152: 17855.14062 | I152: 1 | J152: 1 | K152: 17781.87 | L152: 18077.64 | M152: 17727.4 | N152: 17855.14 | O152: 2557096600
A153: 138 | B153: 2022-09-23 | C153: 18055.58984 | D153: 18165.94922 | E153: 17926.28906 | F153: 17933.26953 | G153: 1776795400 | H153: 17933.26953 | I153: 1 | J153: 1 | K153: 18055.59 | L153: 18165.95 | M153: 17926.29 | N153: 17933.27 | O153: 1776795400
A154: 139 | B154: 2022-09-22 | C154: 18080.92969 | D154: 18195.08984 | E154: 17965.33008 | F154: 18147.94922 | G154: 1729134100 | H154: 18147.94922 | I154: 1 | J154: 1 | K154: 18080.93 | L154: 18195.09 | M154: 17965.33 | N154: 18147.95 | O154: 1729134100
A155: 140 | B155: 2022-09-21 | C155: 18638.84961 | D155: 18638.84961 | E155: 18434.65039 | F155: 18444.61914 | G155: 1629375400 | H155: 18444.61914 | I155: 1 | J155: 1 | K155: 18638.85 | L155: 18638.85 | M155: 18434.65 | N155: 18444.62 | O155: 1629375400
A156: 141 | B156: 2022-09-20 | C156: 18700.67969 | D156: 18861.4707 | E156: 18685.46094 | F156: 18781.41992 | G156: 1478169400 | H156: 18781.41992 | I156: 1 | J156: 1 | K156: 18700.68 | L156: 18861.47 | M156: 18685.46 | N156: 18781.42 | O156: 1478169400
A157: 142 | B157: 2022-09-19 | C157: 18695.34961 | D157: 18697.08984 | E157: 18494.53906 | F157: 18565.9707 | G157: 1745749500 | H157: 18565.9707 | I157: 1 | J157: 1 | K157: 18695.35 | L157: 18697.09 | M157: 18494.54 | N157: 18565.97 | O157: 1745749500
A158: 143 | B158: 2022-09-16 | C158: 18732.43945 | D158: 18905.2793 | E158: 18678.2207 | F158: 18761.68945 | G158: 2793919500 | H158: 18761.68945 | I158: 1 | J158: 1 | K158: 18732.44 | L158: 18905.28 | M158: 18678.22 | N158: 18761.69 | O158: 2793919500
A159: 144 | B159: 2022-09-15 | C159: 18833.90039 | D159: 19013.0293 | E159: 18833.90039 | F159: 18930.38086 | G159: 1797327700 | H159: 18930.38086 | I159: 1 | J159: 1 | K159: 18833.9 | L159: 19013.03 | M159: 18833.9 | N159: 18930.38 | O159: 1797327700
A160: 145 | B160: 2022-09-14 | C160: 18933.30078 | D160: 18989.2207 | E160: 18797.78906 | F160: 18847.09961 | G160: 1731976600 | H160: 18847.09961 | I160: 1 | J160: 1 | K160: 18933.3 | L160: 18989.22 | M160: 18797.79 | N160: 18847.1 | O160: 1731976600
A161: 146 | B161: 2022-09-13 | C161: 19404.64062 | D161: 19492.06055 | E161: 19296.25 | F161: 19326.85938 | G161: 1787223000 | H161: 19326.85938 | I161: 1 | J161: 1 | K161: 19404.64 | L161: 19492.06 | M161: 19296.25 | N161: 19326.86 | O161: 1787223000
A162: 147 | B162: 2022-09-09 | C162: 18893.65039 | D162: 19417.56055 | E162: 18893.65039 | F162: 19362.25 | G162: 1994834000 | H162: 19362.25 | I162: 1 | J162: 1 | K162: 18893.65 | L162: 19417.56 | M162: 18893.65 | N162: 19362.25 | O162: 1994834000
A163: 148 | B163: 2022-09-08 | C163: 19043.83984 | D163: 19075.74023 | E163: 18803.75977 | F163: 18854.61914 | G163: 1718131700 | H163: 18854.61914 | I163: 1 | J163: 1 | K163: 19043.84 | L163: 19075.74 | M163: 18803.76 | N163: 18854.62 | O163: 1718131700
A164: 149 | B164: 2022-09-07 | C164: 18915.86914 | D164: 19068.90039 | E164: 18818.7793 | F164: 19044.30078 | G164: 1839592500 | H164: 19044.30078 | I164: 1 | J164: 1 | K164: 18915.87 | L164: 19068.9 | M164: 18818.78 | N164: 19044.3 | O164: 1839592500
A165: 150 | B165: 2022-09-06 | C165: 19261.69922 | D165: 19358.01953 | E165: 19107.59961 | F165: 19202.73047 | G165: 1716319000 | H165: 19202.73047 | I165: 1 | J165: 1 | K165: 19261.7 | L165: 19358.02 | M165: 19107.6 | N165: 19202.73 | O165: 1716319000
A166: 151 | B166: 2022-09-05 | C166: 19299.08984 | D166: 19299.08984 | E166: 19064.78906 | F166: 19225.69922 | G166: 2181084500 | H166: 19225.69922 | I166: 1 | J166: 1 | K166: 19299.09 | L166: 19299.09 | M166: 19064.79 | N166: 19225.7 | O166: 2181084500
A167: 152 | B167: 2022-09-02 | C167: 19572.4707 | D167: 19630.80078 | E167: 19342.49023 | F167: 19452.08984 | G167: 2095560800 | H167: 19452.08984 | I167: 1 | J167: 1 | K167: 19572.47 | L167: 19630.8 | M167: 19342.49 | N167: 19452.09 | O167: 2095560800
A168: 153 | B168: 2022-09-01 | C168: 19761.7207 | D168: 19839.50977 | E168: 19532.85938 | F168: 19597.31055 | G168: 2000258900 | H168: 19597.31055 | I168: 1 | J168: 1 | K168: 19761.72 | L168: 19839.51 | M168: 19532.86 | N168: 19597.31 | O168: 2000258900
A169: 154 | B169: 2022-08-31 | C169: 19589.84961 | D169: 20173.01953 | E169: 19564.83984 | F169: 19954.39062 | G169: 2783305100 | H169: 19954.39062 | I169: 1 | J169: 1 | K169: 19589.85 | L169: 20173.02 | M169: 19564.84 | N169: 19954.39 | O169: 2783305100
A170: 155 | B170: 2022-08-30 | C170: 20062.73047 | D170: 20062.73047 | E170: 19645.57031 | F170: 19949.0293 | G170: 1658925400 | H170: 19949.0293 | I170: 1 | J170: 1 | K170: 20062.73 | L170: 20062.73 | M170: 19645.57 | N170: 19949.03 | O170: 1658925400
A171: 156 | B171: 2022-08-29 | C171: 19960.28906 | D171: 20073.93945 | E171: 19889.66992 | F171: 20023.2207 | G171: 1595204700 | H171: 20023.2207 | I171: 1 | J171: 1 | K171: 19960.29 | L171: 20073.94 | M171: 19889.67 | N171: 20023.22 | O171: 1595204700
A172: 157 | B172: 2022-08-26 | C172: 20138.68945 | D172: 20185.15039 | E172: 20050.9707 | F172: 20170.03906 | G172: 1868937800 | H172: 20170.03906 | I172: 1 | J172: 1 | K172: 20138.69 | L172: 20185.15 | M172: 20050.97 | N172: 20170.04 | O172: 1868937800
A173: 158 | B173: 2022-08-25 | C173: 19418.46094 | D173: 19990.31055 | E173: 19418.46094 | F173: 19968.38086 | G173: 1684299400 | H173: 19968.38086 | I173: 1 | J173: 1 | K173: 19418.46 | L173: 19990.31 | M173: 19418.46 | N173: 19968.38 | O173: 1684299400
A174: 159 | B174: 2022-08-24 | C174: 19542.24023 | D174: 19542.24023 | E174: 19189.53906 | F174: 19268.74023 | G174: 1997568500 | H174: 19268.74023 | I174: 1 | J174: 1 | K174: 19542.24 | L174: 19542.24 | M174: 19189.54 | N174: 19268.74 | O174: 1997568500
A175: 160 | B175: 2022-08-23 | C175: 19644.23047 | D175: 19701.55078 | E175: 19377.08984 | F175: 19503.25 | G175: 1847479400 | H175: 19503.25 | I175: 1 | J175: 1 | K175: 19644.23 | L175: 19701.55 | M175: 19377.09 | N175: 19503.25 | O175: 1847479400
A176: 161 | B176: 2022-08-22 | C176: 19572.41992 | D176: 19825.92969 | E176: 19564.18945 | F176: 19656.98047 | G176: 1596111900 | H176: 19656.98047 | I176: 1 | J176: 1 | K176: 19572.42 | L176: 19825.93 | M176: 19564.19 | N176: 19656.98 | O176: 1596111900
A177: 162 | B177: 2022-08-19 | C177: 19656.80078 | D177: 19898.17969 | E177: 19656.80078 | F177: 19773.0293 | G177: 1399802300 | H177: 19773.0293 | I177: 1 | J177: 1 | K177: 19656.8 | L177: 19898.18 | M177: 19656.8 | N177: 19773.03 | O177: 1399802300
A178: 163 | B178: 2022-08-18 | C178: 19991.93945 | D178: 19991.93945 | E178: 19675.46094 | F178: 19763.91016 | G178: 1586624700 | H178: 19763.91016 | I178: 1 | J178: 1 | K178: 19991.94 | L178: 19991.94 | M178: 19675.46 | N178: 19763.91 | O178: 1586624700
A179: 164 | B179: 2022-08-17 | C179: 19995.76953 | D179: 20069.84961 | E179: 19800.58008 | F179: 19922.44922 | G179: 1411797700 | H179: 19922.44922 | I179: 1 | J179: 1 | K179: 19995.77 | L179: 20069.85 | M179: 19800.58 | N179: 19922.45 | O179: 1411797700
A180: 165 | B180: 2022-08-16 | C180: 20107.14062 | D180: 20173.40039 | E180: 19662.60938 | F180: 19830.51953 | G180: 1947792800 | H180: 19830.51953 | I180: 1 | J180: 1 | K180: 20107.14 | L180: 20173.4 | M180: 19662.61 | N180: 19830.52 | O180: 1947792800
A181: 166 | B181: 2022-08-15 | C181: 20038.48047 | D181: 20260.66016 | E181: 19984.03906 | F181: 20040.85938 | G181: 1393358500 | H181: 20040.85938 | I181: 1 | J181: 1 | K181: 20038.48 | L181: 20260.66 | M181: 19984.04 | N181: 20040.86 | O181: 1393358500
A182: 167 | B182: 2022-08-12 | C182: 20158.28906 | D182: 20208.01953 | E182: 20011.38086 | F182: 20175.61914 | G182: 1567854600 | H182: 20175.61914 | I182: 1 | J182: 1 | K182: 20158.29 | L182: 20208.02 | M182: 20011.38 | N182: 20175.62 | O182: 1567854600
A183: 168 | B183: 2022-08-11 | C183: 19840.57031 | D183: 20082.42969 | E183: 19789.96094 | F183: 20082.42969 | G183: 1600822900 | H183: 20082.42969 | I183: 1 | J183: 1 | K183: 19840.57 | L183: 20082.43 | M183: 19789.96 | N183: 20082.43 | O183: 1600822900
A184: 169 | B184: 2022-08-10 | C184: 19956.50977 | D184: 19956.50977 | E184: 19469.10938 | F184: 19610.83984 | G184: 1730318000 | H184: 19610.83984 | I184: 1 | J184: 1 | K184: 19956.51 | L184: 19956.51 | M184: 19469.11 | N184: 19610.84 | O184: 1730318000
A185: 170 | B185: 2022-08-09 | C185: 20039.30078 | D185: 20250.86914 | E185: 19856.23047 | F185: 20003.43945 | G185: 1497207600 | H185: 20003.43945 | I185: 1 | J185: 1 | K185: 20039.3 | L185: 20250.87 | M185: 19856.23 | N185: 20003.44 | O185: 1497207600
A186: 171 | B186: 2022-08-08 | C186: 20065.34961 | D186: 20171.89062 | E186: 19954.03906 | F186: 20045.76953 | G186: 1376942200 | H186: 20045.76953 | I186: 1 | J186: 1 | K186: 20065.35 | L186: 20171.89 | M186: 19954.04 | N186: 20045.77 | O186: 1376942200
A187: 172 | B187: 2022-08-05 | C187: 20283.58984 | D187: 20283.58984 | E187: 20096.53906 | F187: 20201.93945 | G187: 1635424000 | H187: 20201.93945 | I187: 1 | J187: 1 | K187: 20283.59 | L187: 20283.59 | M187: 20096.54 | N187: 20201.94 | O187: 1635424000
A188: 173 | B188: 2022-08-04 | C188: 20011.25 | D188: 20216.58008 | E188: 19995.46094 | F188: 20174.03906 | G188: 1924409500 | H188: 20174.03906 | I188: 1 | J188: 1 | K188: 20011.25 | L188: 20216.58 | M188: 19995.46 | N188: 20174.04 | O188: 1924409500
A189: 174 | B189: 2022-08-03 | C189: 19865.68945 | D189: 19921.91016 | E189: 19685.48047 | F189: 19767.08984 | G189: 1789743100 | H189: 19767.08984 | I189: 1 | J189: 1 | K189: 19865.69 | L189: 19921.91 | M189: 19685.48 | N189: 19767.09 | O189: 1789743100
A190: 175 | B190: 2022-08-02 | C190: 19943.16016 | D190: 19943.16016 | E190: 19515.53906 | F190: 19689.21094 | G190: 2291211500 | H190: 19689.21094 | I190: 1 | J190: 1 | K190: 19943.16 | L190: 19943.16 | M190: 19515.54 | N190: 19689.21 | O190: 2291211500
A191: 176 | B191: 2022-08-01 | C191: 20026.59961 | D191: 20251.42969 | E191: 19883.91992 | F191: 20165.83984 | G191: 1970707400 | H191: 20165.83984 | I191: 1 | J191: 1 | K191: 20026.6 | L191: 20251.43 | M191: 19883.92 | N191: 20165.84 | O191: 1970707400
A192: 177 | B192: 2022-07-29 | C192: 20647.44922 | D192: 20647.44922 | E192: 20050.05078 | F192: 20156.50977 | G192: 2181726400 | H192: 20156.50977 | I192: 1 | J192: 1 | K192: 20647.45 | L192: 20647.45 | M192: 20050.05 | N192: 20156.51 | O192: 2181726400
A193: 178 | B193: 2022-07-28 | C193: 20705.46094 | D193: 20772.63086 | E193: 20533.41992 | F193: 20622.67969 | G193: 1965166200 | H193: 20622.67969 | I193: 1 | J193: 1 | K193: 20705.46 | L193: 20772.63 | M193: 20533.42 | N193: 20622.68 | O193: 1965166200
A194: 179 | B194: 2022-07-27 | C194: 20684.48047 | D194: 20770.09961 | E194: 20572.41992 | F194: 20670.03906 | G194: 1729858600 | H194: 20670.03906 | I194: 1 | J194: 1 | K194: 20684.48 | L194: 20770.1 | M194: 20572.42 | N194: 20670.04 | O194: 1729858600
A195: 180 | B195: 2022-07-26 | C195: 20676.67969 | D195: 20952.44922 | E195: 20631.82031 | F195: 20905.88086 | G195: 1701166300 | H195: 20905.88086 | I195: 1 | J195: 1 | K195: 20676.68 | L195: 20952.45 | M195: 20631.82 | N195: 20905.88 | O195: 1701166300
A196: 181 | B196: 2022-07-25 | C196: 20516.33984 | D196: 20595.08984 | E196: 20353.67969 | F196: 20562.93945 | G196: 1377192600 | H196: 20562.93945 | I196: 1 | J196: 1 | K196: 20516.34 | L196: 20595.09 | M196: 20353.68 | N196: 20562.94 | O196: 1377192600
A197: 182 | B197: 2022-07-22 | C197: 20717.4707 | D197: 20788.46094 | E197: 20513.80078 | F197: 20609.14062 | G197: 1327660200 | H197: 20609.14062 | I197: 1 | J197: 1 | K197: 20717.47 | L197: 20788.46 | M197: 20513.8 | N197: 20609.14 | O197: 1327660200
A198: 183 | B198: 2022-07-21 | C198: 20811.59961 | D198: 20827.60938 | E198: 20527.34961 | F198: 20574.63086 | G198: 1760411700 | H198: 20574.63086 | I198: 1 | J198: 1 | K198: 20811.6 | L198: 20827.61 | M198: 20527.35 | N198: 20574.63 | O198: 1760411700
A199: 184 | B199: 2022-07-20 | C199: 20968.41992 | D199: 21111.7793 | E199: 20884.91992 | F199: 20890.2207 | G199: 1405277200 | H199: 20890.2207 | I199: 1 | J199: 1 | K199: 20968.42 | L199: 21111.78 | M199: 20884.92 | N199: 20890.22 | O199: 1405277200
A200: 185 | B200: 2022-07-19 | C200: 20719.19922 | D200: 20758.71094 | E200: 20549.43945 | F200: 20661.06055 | G200: 1287501200 | H200: 20661.06055 | I200: 1 | J200: 1 | K200: 20719.2 | L200: 20758.71 | M200: 20549.44 | N200: 20661.06 | O200: 1287501200
... 4300 more rows

Sheet CalculationsAndCharts
A1: StochasticDistanceOscillator.xlsm | D1: (SDO)
A2: =InputPriceData!A1 -> HANG SENG INDEX (^HSI) -HKSE (Daily)
A4: User Charting Controls | E4: Click to Shift Chart One Bar:
A5: Data Control | C5: FALSE
A6: =InputPriceData!$B$10 -> 8961 | B6: Available Input Data Rows | E6: Earliest: | F6: =OFFSET(InputPriceData!B15,CalculationsAndCharts!A6,0,1,1) -> 1986-12-31
A7: =MAX(A33:A56896) -> 1250 | B7: Available Calculation Rows | E7: Latest: | F7: =OFFSET(InputPriceData!B15,1,0,1,1) -> 2023-04-18
A8: =MIN(AvailableInputRows-DataPanRows,A7) -> 1250 | B8: Logically Available for Calc / Plot | E8: $ Change: | F8: =G33-G34 -> 475.910156
A10: Historical Price Windowing Specifications | F10: Click to Shift
A11: 1123 | B11: Input Data Offset (Pan) | F11: Points to Plot
A12: 440 | B12: Data Points to Plot (Zoom)
B13: First: | C13: =OFFSET(B32,A12,0,1,1) -> 2016-12-09
B14: ="Last: " & IF(OFFSET(InputPriceData!P15,1+A11,0,1,1)="","",TEXT(OFFSET(InputPriceData!P15,1+A11,0,1,1),"H:MM AM/PM")) -> Last: | C14: =B33 -> 2018-09-21
A15: User Controls
A16: SDO | F16: Line @
A17: 200 | B17: Look Back Period | E17: Over Bought | F17: 40
A18: 12 | B18: Dist Period | E18: Over Sold | F18: -40
A19: 3 | B19: Smooth Periods | C19: =2/(A19+1) -> 0.5
A24: 200 | B24: Price EMA | C24: =2/(A24+1) -> 0.009950248756
A25: Help! I would like to plot data
A26: From | B26: 2016-12-09 | C26: =OFFSET(InputPriceData!$A$15,MATCH(B26,OFFSET(InputPriceData!B15,1,0,InputPriceData!$B$10,1),0),0,1,1)-C27 -> 440 | E26: 284
A27: To | B27: 2018-09-21 | C27: =OFFSET(InputPriceData!$A$15,MATCH(B27,OFFSET(InputPriceData!$B$15,1,0,InputPriceData!$B$10,1),0),0,1,1)-1 -> 1123 | E27: =$A$12-$E$26+1 -> 157
H28: Value @ Cursor => | I28: =OFFSET(A32,$E$27,0,1,1)&"(RR)" -> 157(RR) | J28: =OFFSET($B$32,E27,0,1,1) -> 2018-02-02 | K28: =TEXT(OFFSET(D32,$E$27,0,1,1),"#,##0.00")&"(o)" -> 32,569.01(o) | L28: =TEXT(OFFSET(E32,$E$27,0,1,1),"#,##0.00")&"(h)" -> 32,778.51(h) | M28: =TEXT(OFFSET(F32,$E$27,0,1,1),"#,##0.00")&"(l)" -> 32,321.42(l) | N28: =TEXT(OFFSET(G32,$E$27,0,1,1),"#,##0.00")&"(c)" -> 32,601.78(c) | O28: =TEXT(OFFSET(C32,$E$27,0,1,1),"#,##0.00,,""M""")&"(v)" -> 2,571.37M(v)
E29: Cursor ==> | BE29: Work Area For Chart Cursors
B30: =LogicallyAvailableRows -> 1250 | C30: <== Calculation Rel Row Limits ==> | H30: =$B$30-$A$24+1 -> 1051 | I30: =B30-A18 -> 1238 | J30: =I30-A17+1 -> 1039 | N30: =J30-$A$19+1 -> 1037
A31: Rel Row | BC31: Used To Color Vol Bars
B32: Date | C32: Volume | D32: Open | E32: High | F32: Low | G32: Close | H32: ="EMA["&$A$24&"]" -> EMA[200] | I32: ="Dist("&$A$18&")" -> Dist(12) | J32: ="MaxD("&$A$18&","&$A$17&")" -> MaxD(12,200) | K32: ="MinD("&$A$18&","&A17&")" -> MinD(12,200) | L32: ="D("&$A$17&","&$A$18&")" -> D(200,12) | M32: ="DD("&$A$17&","&$A$18&")" -> DD(200,12) | N32: ="EMA(DD("&$A$17&","&$A$18&"),"&$A$19&")" -> EMA(DD(200,12),3) | O32: ="SDO("&$A$17&","&$A$18&","&$A$19&")" -> SDO(200,12,3) | P32: ="Over Bought("&$F$17&")" -> Over Bought(40) | Q32: ="Over Sold("&$F$18&")" -> Over Sold(-40) | BC32: Up Vol | BD32: Dn Vol | BE32: Volume Cursor | BF32: =MAX(OFFSET(C33,0,0,A12,1)) -> 5531270100 | BG32: Price Chart Cursor | BI32: Indicator01Cursor | BK32: Indicator02Cursor | BM32: Indicator03Cursor | BO32: Indicator04Cursor | BQ32: Indicator05Cursor | BS32: Indicator06Cursor | BU32: Indicator07Cursor | BW32: Indicator08Cursor
A33: 1 | B33: =IF($A33>$A$8,"",OFFSET(InputPriceData!$B$15,$A33+$A$11,0,1,1)) -> 2018-09-21 | C33: =IF($A33>$A$8,"",OFFSET(InputPriceData!$G$15,CalculationsAndCharts!$A33+$A$11,IF($C$5,8,0),1,1)) -> 2777208200 | D33: =IF(A33>$A$8,"",OFFSET(InputPriceData!$C$15,CalculationsAndCharts!$A33+$A$11,IF($C$5,8,0),1,1)) -> 27712.34961 | E33: =IF(A33>$A$8,"",OFFSET(InputPriceData!$D$15,CalculationsAndCharts!$A33+$A$11,IF($C$5,8,0),1,1)) -> 27965.96094 | F33: =IF(A33>$A$8,"",OFFSET(InputPriceData!$E$15,CalculationsAndCharts!$A33+$A$11,IF($C$5,8,0),1,1)) -> 27536.26953 | G33: =IF(A33>$A$8,"",OFFSET(InputPriceData!$F$15,CalculationsAndCharts!$A33+$A$11,IF($C$5,8,0),1,1)) -> 27953.58008 | H33: =IF($A33>H$30,NA(),IF($A33=H$30,$G33,$C$24*($G33-H34)+H34)) -> 28816.71282 | I33: =IF(A33>$I$30,NA(),ABS(G33-OFFSET(G33,$A$18,0,1,1))) -> 709.730469 | J33: =IF(A33>$J$30,NA(),MAX(OFFSET($I33,0,0,$A$17,1))) -> 3451.271484 | K33: =IF(A33>$J$30,NA(),MIN(OFFSET($I33,0,0,$A$17,1))) -> 2.220703 | L33: =IF(A33>$J$30,NA(),(I33-K33)/(J33-K33)) -> 0.2051317336 | M33: =IF(A33>$J$30,NA(),IF(G33>OFFSET(G33,$A$18,0,1,1),L33,IF(G33<OFFSET(G33,$A$18,0,1,1),-L33,0))) -> 0.2051317336 | N33: =IF(A33>$N$30,NA(),IF($A33=N$30,AVERAGE(OFFSET($M33,0,0,$A$19,1)),$C$19*($M33-N34)+N34)) -> 0.01862677855 | O33: =IF(A33>$N$30,NA(),N33*100) -> 1.862677855 | P33: =$F$17 -> 40 | Q33: =$F$18 -> -40 | BC33: =IF(G33>=G34,C33,NA()) -> 2777208200 | BD33: =IF(G33<G34,C33,NA()) ->  | BE33: =$E$27 -> 157 | BF33: 0 | BG33: =$E$27 -> 157 | BH33: 21338.87959 | BI33: =$E$27 -> 157 | BJ33: 0 | BK33: =$E$27 -> 157 | BL33: -100 | BM33: =$E$27 -> 157 | BO33: =$E$27 -> 157 | BP33: 0 | BQ33: 157 | BS33: 157 | BT33: 0 | BU33: 157 | BV33: 0 | BW33: 157
A34: 2 | B34: =IF($A34>$A$8,"",OFFSET(InputPriceData!$B$15,$A34+$A$11,0,1,1)) -> 2018-09-20 | C34: =IF($A34>$A$8,"",OFFSET(InputPriceData!$G$15,CalculationsAndCharts!$A34+$A$11,IF($C$5,8,0),1,1)) -> 1399791400 | D34: =IF(A34>$A$8,"",OFFSET(InputPriceData!$C$15,CalculationsAndCharts!$A34+$A$11,IF($C$5,8,0),1,1)) -> 27605.7207 | E34: =IF(A34>$A$8,"",OFFSET(InputPriceData!$D$15,CalculationsAndCharts!$A34+$A$11,IF($C$5,8,0),1,1)) -> 27628.18945 | F34: =IF(A34>$A$8,"",OFFSET(InputPriceData!$E$15,CalculationsAndCharts!$A34+$A$11,IF($C$5,8,0),1,1)) -> 27327.23047 | G34: =IF(A34>$A$8,"",OFFSET(InputPriceData!$F$15,CalculationsAndCharts!$A34+$A$11,IF($C$5,8,0),1,1)) -> 27477.66992 | H34: 28825.38752 | I34: 495.669922 | J34: 3451.271484 | K34: 2.220703 | L34: 0.1430681223 | M34: -0.1430681223 | N34: -0.1678781765 | O34: -16.78781765 | P34: =$F$17 -> 40 | Q34: =$F$18 -> -40 | BC34: =IF(G34>=G35,C34,NA()) -> 1399791400 | BD34: =IF(G34<G35,C34,NA()) ->  | BE34: =$E$27 -> 157 | BF34: =CEILING(BF32,10^INT(LOG10(BF32))/8) -> 5625000000 | BG34: =$E$27 -> 157 | BH34: 33634.01885 | BI34: =$E$27 -> 157 | BJ34: 3461.277755 | BK34: =$E$27 -> 157 | BL34: 100 | BM34: 157 | BN34: 0 | BO34: 157 | BP34: 100 | BQ34: 157 | BR34: 0 | BS34: 157 | BT34: 0 | BU34: 157 | BV34: 0 | BW34: 157 | BX34: 0
A35: 3 | B35: =IF(A35>$A$8,"",OFFSET(InputPriceData!B$15,$A35+$A$11,0,1,1)) -> 2018-09-19 | C35: =IF(A35>$A$8,"",OFFSET(InputPriceData!G$15,CalculationsAndCharts!$A35+$A$11,IF($C$5,8,0),1,1)) -> 1874196000 | D35: =IF(A35>$A$8,"",OFFSET(InputPriceData!C$15,CalculationsAndCharts!$A35+$A$11,IF($C$5,8,0),1,1)) -> 27170.01953 | E35: =IF(A35>$A$8,"",OFFSET(InputPriceData!D$15,CalculationsAndCharts!$A35+$A$11,IF($C$5,8,0),1,1)) -> 27488.34961 | F35: =IF(A35>$A$8,"",OFFSET(InputPriceData!E$15,CalculationsAndCharts!$A35+$A$11,IF($C$5,8,0),1,1)) -> 27085.78906 | G35: =IF(A35>$A$8,"",OFFSET(InputPriceData!F$15,CalculationsAndCharts!$A35+$A$11,IF($C$5,8,0),1,1)) -> 27407.36914 | H35: 28838.93242 | I35: 305.169922 | J35: 3451.271484 | K35: 2.220703 | L35: 0.08783553454 | M35: -0.08783553454 | N35: -0.1926882307 | O35: -19.26882307 | P35: 40 | Q35: -40 | BC35: 1874196000
A36: 4 | B36: =IF(A36>$A$8,"",OFFSET(InputPriceData!B$15,$A36+$A$11,0,1,1)) -> 2018-09-18 | C36: =IF(A36>$A$8,"",OFFSET(InputPriceData!G$15,CalculationsAndCharts!$A36+$A$11,IF($C$5,8,0),1,1)) -> 1810262900 | D36: =IF(A36>$A$8,"",OFFSET(InputPriceData!C$15,CalculationsAndCharts!$A36+$A$11,IF($C$5,8,0),1,1)) -> 26846.33008 | E36: =IF(A36>$A$8,"",OFFSET(InputPriceData!D$15,CalculationsAndCharts!$A36+$A$11,IF($C$5,8,0),1,1)) -> 27156.55078 | F36: =IF(A36>$A$8,"",OFFSET(InputPriceData!E$15,CalculationsAndCharts!$A36+$A$11,IF($C$5,8,0),1,1)) -> 26648.99023 | G36: =IF(A36>$A$8,"",OFFSET(InputPriceData!F$15,CalculationsAndCharts!$A36+$A$11,IF($C$5,8,0),1,1)) -> 27084.66016 | H36: 28853.31999 | I36: 803.890625 | J36: 3451.271484 | K36: 2.220703 | L36: 0.2324320437 | M36: -0.2324320437 | N36: -0.2975409269 | O36: -29.75409269 | P36: 40 | Q36: -40 | BC36: 1810262900
A37: 5 | B37: =IF(A37>$A$8,"",OFFSET(InputPriceData!B$15,$A37+$A$11,0,1,1)) -> 2018-09-17 | C37: =IF(A37>$A$8,"",OFFSET(InputPriceData!G$15,CalculationsAndCharts!$A37+$A$11,IF($C$5,8,0),1,1)) -> 1262149500 | D37: =IF(A37>$A$8,"",OFFSET(InputPriceData!C$15,CalculationsAndCharts!$A37+$A$11,IF($C$5,8,0),1,1)) -> 27029.91016 | E37: =IF(A37>$A$8,"",OFFSET(InputPriceData!D$15,CalculationsAndCharts!$A37+$A$11,IF($C$5,8,0),1,1)) -> 27037.48047 | F37: =IF(A37>$A$8,"",OFFSET(InputPriceData!E$15,CalculationsAndCharts!$A37+$A$11,IF($C$5,8,0),1,1)) -> 26763.21094 | G37: =IF(A37>$A$8,"",OFFSET(InputPriceData!F$15,CalculationsAndCharts!$A37+$A$11,IF($C$5,8,0),1,1)) -> 26932.84961 | H37: 28871.09546 | I37: 1231.201172 | J37: 3451.271484 | K37: 2.220703 | L37: 0.3563242605 | M37: -0.3563242605 | N37: -0.36264981 | O37: -36.264981 | P37: 40 | Q37: -40 | BD37: 1262149500
A38: 6 | B38: =IF(A38>$A$8,"",OFFSET(InputPriceData!B$15,$A38+$A$11,0,1,1)) -> 2018-09-14 | C38: =IF(A38>$A$8,"",OFFSET(InputPriceData!G$15,CalculationsAndCharts!$A38+$A$11,IF($C$5,8,0),1,1)) -> 1707220300 | D38: =IF(A38>$A$8,"",OFFSET(InputPriceData!C$15,CalculationsAndCharts!$A38+$A$11,IF($C$5,8,0),1,1)) -> 27229.78906 | E38: =IF(A38>$A$8,"",OFFSET(InputPriceData!D$15,CalculationsAndCharts!$A38+$A$11,IF($C$5,8,0),1,1)) -> 27340.01953 | F38: =IF(A38>$A$8,"",OFFSET(InputPriceData!E$15,CalculationsAndCharts!$A38+$A$11,IF($C$5,8,0),1,1)) -> 27027.44922 | G38: =IF(A38>$A$8,"",OFFSET(InputPriceData!F$15,CalculationsAndCharts!$A38+$A$11,IF($C$5,8,0),1,1)) -> 27286.41016 | H38: 28890.57532 | I38: 1130.029297 | J38: 3451.271484 | K38: 2.220703 | L38: 0.3269910087 | M38: -0.3269910087 | N38: -0.3689753596 | O38: -36.89753596 | P38: 40 | Q38: -40 | BC38: 1707220300
A39: 7 | B39: =IF(A39>$A$8,"",OFFSET(InputPriceData!B$15,$A39+$A$11,0,1,1)) -> 2018-09-13 | C39: =IF(A39>$A$8,"",OFFSET(InputPriceData!G$15,CalculationsAndCharts!$A39+$A$11,IF($C$5,8,0),1,1)) -> 2336699600 | D39: =IF(A39>$A$8,"",OFFSET(InputPriceData!C$15,CalculationsAndCharts!$A39+$A$11,IF($C$5,8,0),1,1)) -> 26798.39062 | E39: =IF(A39>$A$8,"",OFFSET(InputPriceData!D$15,CalculationsAndCharts!$A39+$A$11,IF($C$5,8,0),1,1)) -> 27014.49023 | F39: =IF(A39>$A$8,"",OFFSET(InputPriceData!E$15,CalculationsAndCharts!$A39+$A$11,IF($C$5,8,0),1,1)) -> 26648.76953 | G39: =IF(A39>$A$8,"",OFFSET(InputPriceData!F$15,CalculationsAndCharts!$A39+$A$11,IF($C$5,8,0),1,1)) -> 27014.49023 | H39: 28906.69758 | I39: 1337.128907 | J39: 3451.271484 | K39: 2.220703 | L39: 0.3870364018 | M39: -0.3870364018 | N39: -0.4109597105 | O39: -41.09597105 | P39: 40 | Q39: -40 | BC39: 2336699600
A40: 8 | B40: =IF(A40>$A$8,"",OFFSET(InputPriceData!B$15,$A40+$A$11,0,1,1)) -> 2018-09-12 | C40: =IF(A40>$A$8,"",OFFSET(InputPriceData!G$15,CalculationsAndCharts!$A40+$A$11,IF($C$5,8,0),1,1)) -> 2255883500 | D40: =IF(A40>$A$8,"",OFFSET(InputPriceData!C$15,CalculationsAndCharts!$A40+$A$11,IF($C$5,8,0),1,1)) -> 26462.82031 | E40: =IF(A40>$A$8,"",OFFSET(InputPriceData!D$15,CalculationsAndCharts!$A40+$A$11,IF($C$5,8,0),1,1)) -> 26468.91016 | F40: =IF(A40>$A$8,"",OFFSET(InputPriceData!E$15,CalculationsAndCharts!$A40+$A$11,IF($C$5,8,0),1,1)) -> 26219.56055 | G40: =IF(A40>$A$8,"",OFFSET(InputPriceData!F$15,CalculationsAndCharts!$A40+$A$11,IF($C$5,8,0),1,1)) -> 26345.03906 | H40: 28925.71474 | I40: 1926.230468 | J40: 3451.271484 | K40: 2.220703 | L40: 0.557837471 | M40: -0.557837471 | N40: -0.4348830191 | O40: -43.48830191 | P40: 40 | Q40: -40 | BC40: =IF(G40>=G41,C40,NA()) ->  | BD40: =IF(G40<G41,C40,NA()) -> 2255883500
A41: 9 | B41: =IF(A41>$A$8,"",OFFSET(InputPriceData!B$15,$A41+$A$11,0,1,1)) -> 2018-09-11 | C41: =IF(A41>$A$8,"",OFFSET(InputPriceData!G$15,CalculationsAndCharts!$A41+$A$11,IF($C$5,8,0),1,1)) -> 1688227600 | D41: =IF(A41>$A$8,"",OFFSET(InputPriceData!C$15,CalculationsAndCharts!$A41+$A$11,IF($C$5,8,0),1,1)) -> 26611.92969 | E41: =IF(A41>$A$8,"",OFFSET(InputPriceData!D$15,CalculationsAndCharts!$A41+$A$11,IF($C$5,8,0),1,1)) -> 26690.65039 | F41: =IF(A41>$A$8,"",OFFSET(InputPriceData!E$15,CalculationsAndCharts!$A41+$A$11,IF($C$5,8,0),1,1)) -> 26394.86914 | G41: =IF(A41>$A$8,"",OFFSET(InputPriceData!F$15,CalculationsAndCharts!$A41+$A$11,IF($C$5,8,0),1,1)) -> 26422.55078 | H41: 28951.65118 | I41: 1249.31836 | J41: 3451.271484 | K41: 2.220703 | L41: 0.3615770646 | M41: -0.3615770646 | N41: -0.3119285672 | O41: -31.19285672 | P41: 40 | Q41: -40 | BD41: 1688227600
A42: 10 | B42: =IF(A42>$A$8,"",OFFSET(InputPriceData!B$15,$A42+$A$11,0,1,1)) -> 2018-09-10 | C42: =IF(A42>$A$8,"",OFFSET(InputPriceData!G$15,CalculationsAndCharts!$A42+$A$11,IF($C$5,8,0),1,1)) -> 2045973800 | D42: =IF(A42>$A$8,"",OFFSET(InputPriceData!C$15,CalculationsAndCharts!$A42+$A$11,IF($C$5,8,0),1,1)) -> 26922.26953 | E42: =IF(A42>$A$8,"",OFFSET(InputPriceData!D$15,CalculationsAndCharts!$A42+$A$11,IF($C$5,8,0),1,1)) -> 26926.63086 | F42: =IF(A42>$A$8,"",OFFSET(InputPriceData!E$15,CalculationsAndCharts!$A42+$A$11,IF($C$5,8,0),1,1)) -> 26453.28906 | G42: =IF(A42>$A$8,"",OFFSET(InputPriceData!F$15,CalculationsAndCharts!$A42+$A$11,IF($C$5,8,0),1,1)) -> 26613.41992 | H42: 28977.06928 | I42: 1177.041016 | J42: 3451.271484 | K42: 2.220703 | L42: 0.3406213441 | M42: -0.3406213441 | N42: -0.2622800698 | O42: -26.22800698 | P42: 40 | Q42: -40 | BD42: 2045973800
A43: 11 | B43: =IF(A43>$A$8,"",OFFSET(InputPriceData!B$15,$A43+$A$11,0,1,1)) -> 2018-09-07 | C43: =IF(A43>$A$8,"",OFFSET(InputPriceData!G$15,CalculationsAndCharts!$A43+$A$11,IF($C$5,8,0),1,1)) -> 2859939000 | D43: =IF(A43>$A$8,"",OFFSET(InputPriceData!C$15,CalculationsAndCharts!$A43+$A$11,IF($C$5,8,0),1,1)) -> 26895.86914 | E43: =IF(A43>$A$8,"",OFFSET(InputPriceData!D$15,CalculationsAndCharts!$A43+$A$11,IF($C$5,8,0),1,1)) -> 27196.57031 | F43: =IF(A43>$A$8,"",OFFSET(InputPriceData!E$15,CalculationsAndCharts!$A43+$A$11,IF($C$5,8,0),1,1)) -> 26669.58008 | G43: =IF(A43>$A$8,"",OFFSET(InputPriceData!F$15,CalculationsAndCharts!$A43+$A$11,IF($C$5,8,0),1,1)) -> 26973.4707 | H43: 29000.82455 | I43: 954.109375 | J43: 3451.271484 | K43: 2.220703 | L43: 0.2759856936 | M43: -0.2759856936 | N43: -0.1839387954 | O43: -18.39387954 | P43: 40 | Q43: -40 | BD43: 2859939000
A44: 12 | B44: =IF(A44>$A$8,"",OFFSET(InputPriceData!B$15,$A44+$A$11,0,1,1)) -> 2018-09-06 | C44: =IF(A44>$A$8,"",OFFSET(InputPriceData!G$15,CalculationsAndCharts!$A44+$A$11,IF($C$5,8,0),1,1)) -> 2172071800 | D44: =IF(A44>$A$8,"",OFFSET(InputPriceData!C$15,CalculationsAndCharts!$A44+$A$11,IF($C$5,8,0),1,1)) -> 27069.21094 | E44: =IF(A44>$A$8,"",OFFSET(InputPriceData!D$15,CalculationsAndCharts!$A44+$A$11,IF($C$5,8,0),1,1)) -> 27268.39062 | F44: =IF(A44>$A$8,"",OFFSET(InputPriceData!E$15,CalculationsAndCharts!$A44+$A$11,IF($C$5,8,0),1,1)) -> 26818.82031 | G44: =IF(A44>$A$8,"",OFFSET(InputPriceData!F$15,CalculationsAndCharts!$A44+$A$11,IF($C$5,8,0),1,1)) -> 26974.82031 | H44: 29021.19996 | I44: 777.96875 | J44: 3451.271484 | K44: 2.220703 | L44: 0.224916389 | M44: -0.224916389 | N44: -0.0918918973 | O44: -9.18918973 | P44: 40 | Q44: -40 | BD44: 2172071800
A45: 13 | B45: =IF(A45>$A$8,"",OFFSET(InputPriceData!B$15,$A45+$A$11,0,1,1)) -> 2018-09-05 | C45: =IF(A45>$A$8,"",OFFSET(InputPriceData!G$15,CalculationsAndCharts!$A45+$A$11,IF($C$5,8,0),1,1)) -> 1913637000 | D45: =IF(A45>$A$8,"",OFFSET(InputPriceData!C$15,CalculationsAndCharts!$A45+$A$11,IF($C$5,8,0),1,1)) -> 27789.01953 | E45: =IF(A45>$A$8,"",OFFSET(InputPriceData!D$15,CalculationsAndCharts!$A45+$A$11,IF($C$5,8,0),1,1)) -> 27861.99023 | F45: =IF(A45>$A$8,"",OFFSET(InputPriceData!E$15,CalculationsAndCharts!$A45+$A$11,IF($C$5,8,0),1,1)) -> 27208.33984 | G45: =IF(A45>$A$8,"",OFFSET(InputPriceData!F$15,CalculationsAndCharts!$A45+$A$11,IF($C$5,8,0),1,1)) -> 27243.84961 | H45: 29041.76659 | I45: 354.169922 | J45: 3451.271484 | K45: 2.220703 | L45: 0.1020423419 | M45: -0.1020423419 | N45: 0.04113259436 | O45: 4.113259436 | P45: 40 | Q45: -40 | BC45: =IF(G45>=G46,C45,NA()) ->  | BD45: =IF(G45<G46,C45,NA()) -> 1913637000
A46: 14 | B46: =IF(A46>$A$8,"",OFFSET(InputPriceData!B$15,$A46+$A$11,0,1,1)) -> 2018-09-04 | C46: =IF(A46>$A$8,"",OFFSET(InputPriceData!G$15,CalculationsAndCharts!$A46+$A$11,IF($C$5,8,0),1,1)) -> 1102334700 | D46: =IF(A46>$A$8,"",OFFSET(InputPriceData!C$15,CalculationsAndCharts!$A46+$A$11,IF($C$5,8,0),1,1)) -> 27619.17969 | E46: =IF(A46>$A$8,"",OFFSET(InputPriceData!D$15,CalculationsAndCharts!$A46+$A$11,IF($C$5,8,0),1,1)) -> 27984.89062 | F46: =IF(A46>$A$8,"",OFFSET(InputPriceData!E$15,CalculationsAndCharts!$A46+$A$11,IF($C$5,8,0),1,1)) -> 27563.78906 | G46: =IF(A46>$A$8,"",OFFSET(InputPriceData!F$15,CalculationsAndCharts!$A46+$A$11,IF($C$5,8,0),1,1)) -> 27973.33984 | H46: 29059.83611 | I46: 759.929688 | J46: 3451.271484 | K46: 2.220703 | L46: 0.2196862363 | M46: 0.2196862363 | N46: 0.1843075306 | O46: 18.43075306 | P46: 40 | Q46: -40 | BC46: 1102334700
A47: 15 | B47: =IF(A47>$A$8,"",OFFSET(InputPriceData!B$15,$A47+$A$11,0,1,1)) -> 2018-09-03 | C47: =IF(A47>$A$8,"",OFFSET(InputPriceData!G$15,CalculationsAndCharts!$A47+$A$11,IF($C$5,8,0),1,1)) -> 1396877700 | D47: =IF(A47>$A$8,"",OFFSET(InputPriceData!C$15,CalculationsAndCharts!$A47+$A$11,IF($C$5,8,0),1,1)) -> 27809.44922 | E47: =IF(A47>$A$8,"",OFFSET(InputPriceData!D$15,CalculationsAndCharts!$A47+$A$11,IF($C$5,8,0),1,1)) -> 27822.18945 | F47: =IF(A47>$A$8,"",OFFSET(InputPriceData!E$15,CalculationsAndCharts!$A47+$A$11,IF($C$5,8,0),1,1)) -> 27577.03906 | G47: =IF(A47>$A$8,"",OFFSET(InputPriceData!F$15,CalculationsAndCharts!$A47+$A$11,IF($C$5,8,0),1,1)) -> 27712.53906 | H47: 29070.75567 | I47: 612.478516 | J47: 3451.271484 | K47: 2.220703 | L47: 0.1769350038 | M47: 0.1769350038 | N47: 0.1489288249 | O47: 14.89288249 | P47: 40 | Q47: -40 | BD47: 1396877700
A48: 16 | B48: =IF(A48>$A$8,"",OFFSET(InputPriceData!B$15,$A48+$A$11,0,1,1)) -> 2018-08-31 | C48: =IF(A48>$A$8,"",OFFSET(InputPriceData!G$15,CalculationsAndCharts!$A48+$A$11,IF($C$5,8,0),1,1)) -> 1923264400 | D48: =IF(A48>$A$8,"",OFFSET(InputPriceData!C$15,CalculationsAndCharts!$A48+$A$11,IF($C$5,8,0),1,1)) -> 27798.21094 | E48: =IF(A48>$A$8,"",OFFSET(InputPriceData!D$15,CalculationsAndCharts!$A48+$A$11,IF($C$5,8,0),1,1)) -> 27962.0293 | F48: =IF(A48>$A$8,"",OFFSET(InputPriceData!E$15,CalculationsAndCharts!$A48+$A$11,IF($C$5,8,0),1,1)) -> 27720.32031 | G48: =IF(A48>$A$8,"",OFFSET(InputPriceData!F$15,CalculationsAndCharts!$A48+$A$11,IF($C$5,8,0),1,1)) -> 27888.55078 | H48: 29084.40609 | I48: 564.960937 | J48: 3451.271484 | K48: 2.220703 | L48: 0.1631580019 | M48: 0.1631580019 | N48: 0.120922646 | O48: 12.0922646 | P48: 40 | Q48: -40 | BD48: 1923264400
A49: 17 | B49: =IF(A49>$A$8,"",OFFSET(InputPriceData!B$15,$A49+$A$11,0,1,1)) -> 2018-08-30 | C49: =IF(A49>$A$8,"",OFFSET(InputPriceData!G$15,CalculationsAndCharts!$A49+$A$11,IF($C$5,8,0),1,1)) -> 1292190100 | D49: =IF(A49>$A$8,"",OFFSET(InputPriceData!C$15,CalculationsAndCharts!$A49+$A$11,IF($C$5,8,0),1,1)) -> 28533.92969 | E49: =IF(A49>$A$8,"",OFFSET(InputPriceData!D$15,CalculationsAndCharts!$A49+$A$11,IF($C$5,8,0),1,1)) -> 28533.92969 | F49: =IF(A49>$A$8,"",OFFSET(InputPriceData!E$15,CalculationsAndCharts!$A49+$A$11,IF($C$5,8,0),1,1)) -> 28121.40039 | G49: =IF(A49>$A$8,"",OFFSET(InputPriceData!F$15,CalculationsAndCharts!$A49+$A$11,IF($C$5,8,0),1,1)) -> 28164.05078 | H49: 29096.42473 | I49: 411.121093 | J49: 3451.271484 | K49: 2.220703 | L49: 0.1185544708 | M49: 0.1185544708 | N49: 0.07868729003 | O49: 7.868729003 | P49: 40 | Q49: -40 | BD49: 1292190100
A50: 18 | B50: =IF(A50>$A$8,"",OFFSET(InputPriceData!B$15,$A50+$A$11,0,1,1)) -> 2018-08-29 | C50: =IF(A50>$A$8,"",OFFSET(InputPriceData!G$15,CalculationsAndCharts!$A50+$A$11,IF($C$5,8,0),1,1)) -> 1365810400 | D50: =IF(A50>$A$8,"",OFFSET(InputPriceData!C$15,CalculationsAndCharts!$A50+$A$11,IF($C$5,8,0),1,1)) -> 28362.83984 | E50: =IF(A50>$A$8,"",OFFSET(InputPriceData!D$15,CalculationsAndCharts!$A50+$A$11,IF($C$5,8,0),1,1)) -> 28485.83008 | F50: =IF(A50>$A$8,"",OFFSET(InputPriceData!E$15,CalculationsAndCharts!$A50+$A$11,IF($C$5,8,0),1,1)) -> 28272.13086 | G50: =IF(A50>$A$8,"",OFFSET(InputPriceData!F$15,CalculationsAndCharts!$A50+$A$11,IF($C$5,8,0),1,1)) -> 28416.43945 | H50: 29105.79533 | I50: 479.86914 | J50: 3451.271484 | K50: 2.220703 | L50: 0.138486925 | M50: 0.138486925 | N50: 0.03882010929 | O50: 3.882010929 | P50: 40 | Q50: -40 | BC50: 1365810400
A51: 19 | B51: =IF(A51>$A$8,"",OFFSET(InputPriceData!B$15,$A51+$A$11,0,1,1)) -> 2018-08-28 | C51: =IF(A51>$A$8,"",OFFSET(InputPriceData!G$15,CalculationsAndCharts!$A51+$A$11,IF($C$5,8,0),1,1)) -> 1651324700 | D51: =IF(A51>$A$8,"",OFFSET(InputPriceData!C$15,CalculationsAndCharts!$A51+$A$11,IF($C$5,8,0),1,1)) -> 28530.89062 | E51: =IF(A51>$A$8,"",OFFSET(InputPriceData!D$15,CalculationsAndCharts!$A51+$A$11,IF($C$5,8,0),1,1)) -> 28579.64062 | F51: =IF(A51>$A$8,"",OFFSET(InputPriceData!E$15,CalculationsAndCharts!$A51+$A$11,IF($C$5,8,0),1,1)) -> 28234.5293 | G51: =IF(A51>$A$8,"",OFFSET(InputPriceData!F$15,CalculationsAndCharts!$A51+$A$11,IF($C$5,8,0),1,1)) -> 28351.61914 | H51: 29112.72353 | I51: 15 | J51: 3451.271484 | K51: 2.220703 | L51: 0.003705163482 | M51: -0.003705163482 | N51: -0.06084670646 | O51: -6.084670646 | P51: 40 | Q51: -40 | BC51: 1651324700
A52: 20 | B52: =IF(A52>$A$8,"",OFFSET(InputPriceData!B$15,$A52+$A$11,0,1,1)) -> 2018-08-27 | C52: =IF(A52>$A$8,"",OFFSET(InputPriceData!G$15,CalculationsAndCharts!$A52+$A$11,IF($C$5,8,0),1,1)) -> 2133548500 | D52: =IF(A52>$A$8,"",OFFSET(InputPriceData!C$15,CalculationsAndCharts!$A52+$A$11,IF($C$5,8,0),1,1)) -> 28016.66016 | E52: =IF(A52>$A$8,"",OFFSET(InputPriceData!D$15,CalculationsAndCharts!$A52+$A$11,IF($C$5,8,0),1,1)) -> 28289.06055 | F52: =IF(A52>$A$8,"",OFFSET(InputPriceData!E$15,CalculationsAndCharts!$A52+$A$11,IF($C$5,8,0),1,1)) -> 27956.03906 | G52: =IF(A52>$A$8,"",OFFSET(InputPriceData!F$15,CalculationsAndCharts!$A52+$A$11,IF($C$5,8,0),1,1)) -> 28271.26953 | H52: 29120.37282 | I52: 336.03125 | J52: 3451.271484 | K52: 2.220703 | L52: 0.09678330886 | M52: -0.09678330886 | N52: -0.1179882494 | O52: -11.79882494 | P52: 40 | Q52: -40 | BC52: 2133548500
A53: 21 | B53: =IF(A53>$A$8,"",OFFSET(InputPriceData!B$15,$A53+$A$11,0,1,1)) -> 2018-08-24 | C53: =IF(A53>$A$8,"",OFFSET(InputPriceData!G$15,CalculationsAndCharts!$A53+$A$11,IF($C$5,8,0),1,1)) -> 1492245200 | D53: =IF(A53>$A$8,"",OFFSET(InputPriceData!C$15,CalculationsAndCharts!$A53+$A$11,IF($C$5,8,0),1,1)) -> 27565.98047 | E53: =IF(A53>$A$8,"",OFFSET(InputPriceData!D$15,CalculationsAndCharts!$A53+$A$11,IF($C$5,8,0),1,1)) -> 27830.91016 | F53: =IF(A53>$A$8,"",OFFSET(InputPriceData!E$15,CalculationsAndCharts!$A53+$A$11,IF($C$5,8,0),1,1)) -> 27532.06055 | G53: =IF(A53>$A$8,"",OFFSET(InputPriceData!F$15,CalculationsAndCharts!$A53+$A$11,IF($C$5,8,0),1,1)) -> 27671.86914 | H53: 29128.90652 | I53: 687.271484 | J53: 3451.271484 | K53: 2.220703 | L53: 0.1986200913 | M53: -0.1986200913 | N53: -0.13919319 | O53: -13.919319 | P53: 40 | Q53: -40 | BD53: 1492245200
A54: 22 | B54: =IF(A54>$A$8,"",OFFSET(InputPriceData!B$15,$A54+$A$11,0,1,1)) -> 2018-08-23 | C54: =IF(A54>$A$8,"",OFFSET(InputPriceData!G$15,CalculationsAndCharts!$A54+$A$11,IF($C$5,8,0),1,1)) -> 1462580600 | D54: =IF(A54>$A$8,"",OFFSET(InputPriceData!C$15,CalculationsAndCharts!$A54+$A$11,IF($C$5,8,0),1,1)) -> 28005.33008 | E54: =IF(A54>$A$8,"",OFFSET(InputPriceData!D$15,CalculationsAndCharts!$A54+$A$11,IF($C$5,8,0),1,1)) -> 28051.65039 | F54: =IF(A54>$A$8,"",OFFSET(InputPriceData!E$15,CalculationsAndCharts!$A54+$A$11,IF($C$5,8,0),1,1)) -> 27659.21094 | G54: =IF(A54>$A$8,"",OFFSET(InputPriceData!F$15,CalculationsAndCharts!$A54+$A$11,IF($C$5,8,0),1,1)) -> 27790.46094 | H54: 29143.55011 | I54: 458.419921 | J54: 3451.271484 | K54: 2.220703 | L54: 0.1322680491 | M54: -0.1322680491 | N54: -0.07976628877 | O54: -7.976628877 | P54: 40 | Q54: -40 | BD54: 1462580600
A55: 23 | B55: =IF(A55>$A$8,"",OFFSET(InputPriceData!B$15,$A55+$A$11,0,1,1)) -> 2018-08-22 | C55: =IF(A55>$A$8,"",OFFSET(InputPriceData!G$15,CalculationsAndCharts!$A55+$A$11,IF($C$5,8,0),1,1)) -> 1784465100 | D55: =IF(A55>$A$8,"",OFFSET(InputPriceData!C$15,CalculationsAndCharts!$A55+$A$11,IF($C$5,8,0),1,1)) -> 27836.67969 | E55: =IF(A55>$A$8,"",OFFSET(InputPriceData!D$15,CalculationsAndCharts!$A55+$A$11,IF($C$5,8,0),1,1)) -> 27954.51953 | F55: =IF(A55>$A$8,"",OFFSET(InputPriceData!E$15,CalculationsAndCharts!$A55+$A$11,IF($C$5,8,0),1,1)) -> 27579.80078 | G55: =IF(A55>$A$8,"",OFFSET(InputPriceData!F$15,CalculationsAndCharts!$A55+$A$11,IF($C$5,8,0),1,1)) -> 27927.58008 | H55: 29157.149 | I55: 108.019531 | J55: 3451.271484 | K55: 2.220703 | L55: 0.03067476669 | M55: 0.03067476669 | N55: -0.02726452846 | O55: -2.726452846 | P55: 40 | Q55: -40 | BC55: 1784465100
A56: 24 | B56: =IF(A56>$A$8,"",OFFSET(InputPriceData!B$15,$A56+$A$11,0,1,1)) -> 2018-08-21 | C56: =IF(A56>$A$8,"",OFFSET(InputPriceData!G$15,CalculationsAndCharts!$A56+$A$11,IF($C$5,8,0),1,1)) -> 1699480400 | D56: =IF(A56>$A$8,"",OFFSET(InputPriceData!C$15,CalculationsAndCharts!$A56+$A$11,IF($C$5,8,0),1,1)) -> 27670.53906 | E56: =IF(A56>$A$8,"",OFFSET(InputPriceData!D$15,CalculationsAndCharts!$A56+$A$11,IF($C$5,8,0),1,1)) -> 27771.30078 | F56: =IF(A56>$A$8,"",OFFSET(InputPriceData!E$15,CalculationsAndCharts!$A56+$A$11,IF($C$5,8,0),1,1)) -> 27526.30078 | G56: =IF(A56>$A$8,"",OFFSET(InputPriceData!F$15,CalculationsAndCharts!$A56+$A$11,IF($C$5,8,0),1,1)) -> 27752.78906 | H56: 29169.50647 | I56: 76.46875 | J56: 3451.271484 | K56: 2.220703 | L56: 0.02152709592 | M56: 0.02152709592 | N56: -0.08520382361 | O56: -8.520382361 | P56: 40 | Q56: -40 | BC56: 1699480400
A57: 25 | B57: =IF(A57>$A$8,"",OFFSET(InputPriceData!B$15,$A57+$A$11,0,1,1)) -> 2018-08-20 | C57: =IF(A57>$A$8,"",OFFSET(InputPriceData!G$15,CalculationsAndCharts!$A57+$A$11,IF($C$5,8,0),1,1)) -> 1660834700 | D57: =IF(A57>$A$8,"",OFFSET(InputPriceData!C$15,CalculationsAndCharts!$A57+$A$11,IF($C$5,8,0),1,1)) -> 27273.7793 | E57: =IF(A57>$A$8,"",OFFSET(InputPriceData!D$15,CalculationsAndCharts!$A57+$A$11,IF($C$5,8,0),1,1)) -> 27609.80078 | F57: =IF(A57>$A$8,"",OFFSET(InputPriceData!E$15,CalculationsAndCharts!$A57+$A$11,IF($C$5,8,0),1,1)) -> 27209.2207 | G57: =IF(A57>$A$8,"",OFFSET(InputPriceData!F$15,CalculationsAndCharts!$A57+$A$11,IF($C$5,8,0),1,1)) -> 27598.01953 | H57: 29183.74484 | I57: 116.541016 | J57: 3451.271484 | K57: 2.220703 | L57: 0.03314544211 | M57: -0.03314544211 | N57: -0.1919347431 | O57: -19.19347431 | P57: 40 | Q57: -40 | BC57: 1660834700
A58: 26 | B58: =IF(A58>$A$8,"",OFFSET(InputPriceData!B$15,$A58+$A$11,0,1,1)) -> 2018-08-17 | C58: =IF(A58>$A$8,"",OFFSET(InputPriceData!G$15,CalculationsAndCharts!$A58+$A$11,IF($C$5,8,0),1,1)) -> 1557764000 | D58: =IF(A58>$A$8,"",OFFSET(InputPriceData!C$15,CalculationsAndCharts!$A58+$A$11,IF($C$5,8,0),1,1)) -> 27388.57031 | E58: =IF(A58>$A$8,"",OFFSET(InputPriceData!D$15,CalculationsAndCharts!$A58+$A$11,IF($C$5,8,0),1,1)) -> 27450.83984 | F58: =IF(A58>$A$8,"",OFFSET(InputPriceData!E$15,CalculationsAndCharts!$A58+$A$11,IF($C$5,8,0),1,1)) -> 27101.09961 | G58: =IF(A58>$A$8,"",OFFSET(InputPriceData!F$15,CalculationsAndCharts!$A58+$A$11,IF($C$5,8,0),1,1)) -> 27213.41016 | H58: 29199.68178 | I58: 1127.330078 | J58: 3451.271484 | K58: 2.220703 | L58: 0.3262084111 | M58: -0.3262084111 | N58: -0.3507240442 | O58: -35.07240442 | P58: 40 | Q58: -40 | BC58: 1557764000
A59: 27 | B59: =IF(A59>$A$8,"",OFFSET(InputPriceData!B$15,$A59+$A$11,0,1,1)) -> 2018-08-16 | C59: =IF(A59>$A$8,"",OFFSET(InputPriceData!G$15,CalculationsAndCharts!$A59+$A$11,IF($C$5,8,0),1,1)) -> 2138210600 | D59: =IF(A59>$A$8,"",OFFSET(InputPriceData!C$15,CalculationsAndCharts!$A59+$A$11,IF($C$5,8,0),1,1)) -> 26871.10938 | E59: =IF(A59>$A$8,"",OFFSET(InputPriceData!D$15,CalculationsAndCharts!$A59+$A$11,IF($C$5,8,0),1,1)) -> 27405.25 | F59: =IF(A59>$A$8,"",OFFSET(InputPriceData!E$15,CalculationsAndCharts!$A59+$A$11,IF($C$5,8,0),1,1)) -> 26871.10938 | G59: =IF(A59>$A$8,"",OFFSET(InputPriceData!F$15,CalculationsAndCharts!$A59+$A$11,IF($C$5,8,0),1,1)) -> 27100.06055 | H59: 29219.64431 | I59: 1482.949219 | J59: 3451.271484 | K59: 2.220703 | L59: 0.4293147912 | M59: -0.4293147912 | N59: -0.3752396773 | O59: -37.52396773 | P59: 40 | Q59: -40 | BD59: 2138210600
A60: 28 | B60: =IF(A60>$A$8,"",OFFSET(InputPriceData!B$15,$A60+$A$11,0,1,1)) -> 2018-08-15 | C60: =IF(A60>$A$8,"",OFFSET(InputPriceData!G$15,CalculationsAndCharts!$A60+$A$11,IF($C$5,8,0),1,1)) -> 1913746300 | D60: =IF(A60>$A$8,"",OFFSET(InputPriceData!C$15,CalculationsAndCharts!$A60+$A$11,IF($C$5,8,0),1,1)) -> 27724.7207 | E60: =IF(A60>$A$8,"",OFFSET(InputPriceData!D$15,CalculationsAndCharts!$A60+$A$11,IF($C$5,8,0),1,1)) -> 27727.26953 | F60: =IF(A60>$A$8,"",OFFSET(InputPriceData!E$15,CalculationsAndCharts!$A60+$A$11,IF($C$5,8,0),1,1)) -> 27249.08008 | G60: =IF(A60>$A$8,"",OFFSET(InputPriceData!F$15,CalculationsAndCharts!$A60+$A$11,IF($C$5,8,0),1,1)) -> 27323.58984 | H60: 29240.94665 | I60: 1409.541015 | J60: 3451.271484 | K60: 2.220703 | L60: 0.4080311951 | M60: -0.4080311951 | N60: -0.3211645633 | O60: -32.11645633 | P60: 40 | Q60: -40 | BD60: 1913746300
A61: 29 | B61: =IF(A61>$A$8,"",OFFSET(InputPriceData!B$15,$A61+$A$11,0,1,1)) -> 2018-08-14 | C61: =IF(A61>$A$8,"",OFFSET(InputPriceData!G$15,CalculationsAndCharts!$A61+$A$11,IF($C$5,8,0),1,1)) -> 1490419600 | D61: =IF(A61>$A$8,"",OFFSET(InputPriceData!C$15,CalculationsAndCharts!$A61+$A$11,IF($C$5,8,0),1,1)) -> 27938.32031 | E61: =IF(A61>$A$8,"",OFFSET(InputPriceData!D$15,CalculationsAndCharts!$A61+$A$11,IF($C$5,8,0),1,1)) -> 27946.55078 | F61: =IF(A61>$A$8,"",OFFSET(InputPriceData!E$15,CalculationsAndCharts!$A61+$A$11,IF($C$5,8,0),1,1)) -> 27522.82031 | G61: =IF(A61>$A$8,"",OFFSET(InputPriceData!F$15,CalculationsAndCharts!$A61+$A$11,IF($C$5,8,0),1,1)) -> 27752.92969 | H61: 29260.21657 | I61: 1051.349609 | J61: 3451.271484 | K61: 2.220703 | L61: 0.3041790257 | M61: -0.3041790257 | N61: -0.2342979315 | O61: -23.42979315 | P61: 40 | Q61: -40 | BD61: 1490419600
A62: 30 | B62: =IF(A62>$A$8,"",OFFSET(InputPriceData!B$15,$A62+$A$11,0,1,1)) -> 2018-08-13 | C62: =IF(A62>$A$8,"",OFFSET(InputPriceData!G$15,CalculationsAndCharts!$A62+$A$11,IF($C$5,8,0),1,1)) -> 1484354700 | D62: =IF(A62>$A$8,"",OFFSET(InputPriceData!C$15,CalculationsAndCharts!$A62+$A$11,IF($C$5,8,0),1,1)) -> 27956.7793 | E62: =IF(A62>$A$8,"",OFFSET(InputPriceData!D$15,CalculationsAndCharts!$A62+$A$11,IF($C$5,8,0),1,1)) -> 28085.16992 | F62: =IF(A62>$A$8,"",OFFSET(InputPriceData!E$15,CalculationsAndCharts!$A62+$A$11,IF($C$5,8,0),1,1)) -> 27823.21094 | G62: =IF(A62>$A$8,"",OFFSET(InputPriceData!F$15,CalculationsAndCharts!$A62+$A$11,IF($C$5,8,0),1,1)) -> 27936.57031 | H62: 29275.36518 | I62: 844.570312 | J62: 3451.271484 | K62: 2.220703 | L62: 0.2442265024 | M62: -0.2442265024 | N62: -0.1644168373 | O62: -16.44168373 | P62: 40 | Q62: -40 | BD62: 1484354700
A63: 31 | B63: =IF(A63>$A$8,"",OFFSET(InputPriceData!B$15,$A63+$A$11,0,1,1)) -> 2018-08-10 | C63: =IF(A63>$A$8,"",OFFSET(InputPriceData!G$15,CalculationsAndCharts!$A63+$A$11,IF($C$5,8,0),1,1)) -> 1284477700 | D63: =IF(A63>$A$8,"",OFFSET(InputPriceData!C$15,CalculationsAndCharts!$A63+$A$11,IF($C$5,8,0),1,1)) -> 28614.73047 | E63: =IF(A63>$A$8,"",OFFSET(InputPriceData!D$15,CalculationsAndCharts!$A63+$A$11,IF($C$5,8,0),1,1)) -> 28665.90039 | F63: =IF(A63>$A$8,"",OFFSET(InputPriceData!E$15,CalculationsAndCharts!$A63+$A$11,IF($C$5,8,0),1,1)) -> 28296.99023 | G63: =IF(A63>$A$8,"",OFFSET(InputPriceData!F$15,CalculationsAndCharts!$A63+$A$11,IF($C$5,8,0),1,1)) -> 28366.61914 | H63: 29288.82041 | I63: 554.28125 | J63: 3451.271484 | K63: 2.220703 | L63: 0.1600615886 | M63: -0.1600615886 | N63: -0.08460717222 | O63: -8.460717222 | P63: 40 | Q63: -40 | BD63: 1284477700
A64: 32 | B64: =IF(A64>$A$8,"",OFFSET(InputPriceData!B$15,$A64+$A$11,0,1,1)) -> 2018-08-09 | C64: =IF(A64>$A$8,"",OFFSET(InputPriceData!G$15,CalculationsAndCharts!$A64+$A$11,IF($C$5,8,0),1,1)) -> 1448212200 | D64: =IF(A64>$A$8,"",OFFSET(InputPriceData!C$15,CalculationsAndCharts!$A64+$A$11,IF($C$5,8,0),1,1)) -> 28260.5 | E64: =IF(A64>$A$8,"",OFFSET(InputPriceData!D$15,CalculationsAndCharts!$A64+$A$11,IF($C$5,8,0),1,1)) -> 28728.16992 | F64: =IF(A64>$A$8,"",OFFSET(InputPriceData!E$15,CalculationsAndCharts!$A64+$A$11,IF($C$5,8,0),1,1)) -> 28192.81055 | G64: =IF(A64>$A$8,"",OFFSET(InputPriceData!F$15,CalculationsAndCharts!$A64+$A$11,IF($C$5,8,0),1,1)) -> 28607.30078 | H64: 29298.08876 | I64: 55.269532 | J64: 3451.271484 | K64: 2.220703 | L64: 0.01538070396 | M64: -0.01538070396 | N64: -0.009152755883 | O64: -0.9152755883 | P64: 40 | Q64: -40 | BC64: 1448212200
A65: 33 | B65: =IF(A65>$A$8,"",OFFSET(InputPriceData!B$15,$A65+$A$11,0,1,1)) -> 2018-08-08 | C65: =IF(A65>$A$8,"",OFFSET(InputPriceData!G$15,CalculationsAndCharts!$A65+$A$11,IF($C$5,8,0),1,1)) -> 1611650400 | D65: =IF(A65>$A$8,"",OFFSET(InputPriceData!C$15,CalculationsAndCharts!$A65+$A$11,IF($C$5,8,0),1,1)) -> 28473.48047 | E65: =IF(A65>$A$8,"",OFFSET(InputPriceData!D$15,CalculationsAndCharts!$A65+$A$11,IF($C$5,8,0),1,1)) -> 28473.48047 | F65: =IF(A65>$A$8,"",OFFSET(InputPriceData!E$15,CalculationsAndCharts!$A65+$A$11,IF($C$5,8,0),1,1)) -> 28224.46094 | G65: =IF(A65>$A$8,"",OFFSET(InputPriceData!F$15,CalculationsAndCharts!$A65+$A$11,IF($C$5,8,0),1,1)) -> 28359.14062 | H65: 29305.03136 | I65: 103.021484 | J65: 3451.271484 | K65: 2.220703 | L65: 0.02922565871 | M65: 0.02922565871 | N65: -0.002924807807 | O65: -0.2924807807 | P65: 40 | Q65: -40 | BC65: 1611650400
A66: 34 | B66: =IF(A66>$A$8,"",OFFSET(InputPriceData!B$15,$A66+$A$11,0,1,1)) -> 2018-08-07 | C66: =IF(A66>$A$8,"",OFFSET(InputPriceData!G$15,CalculationsAndCharts!$A66+$A$11,IF($C$5,8,0),1,1)) -> 1553852900 | D66: =IF(A66>$A$8,"",OFFSET(InputPriceData!C$15,CalculationsAndCharts!$A66+$A$11,IF($C$5,8,0),1,1)) -> 27889.43945 | E66: =IF(A66>$A$8,"",OFFSET(InputPriceData!D$15,CalculationsAndCharts!$A66+$A$11,IF($C$5,8,0),1,1)) -> 28266.67969 | F66: =IF(A66>$A$8,"",OFFSET(InputPriceData!E$15,CalculationsAndCharts!$A66+$A$11,IF($C$5,8,0),1,1)) -> 27843.16016 | G66: =IF(A66>$A$8,"",OFFSET(InputPriceData!F$15,CalculationsAndCharts!$A66+$A$11,IF($C$5,8,0),1,1)) -> 28248.88086 | H66: 29314.5378 | I66: 24.40039 | J66: 3451.271484 | K66: 2.220703 | L66: 0.006430664089 | M66: 0.006430664089 | N66: -0.03507527432 | O66: -3.507527432 | P66: 40 | Q66: -40 | BC66: 1553852900
A67: 35 | B67: =IF(A67>$A$8,"",OFFSET(InputPriceData!B$15,$A67+$A$11,0,1,1)) -> 2018-08-06 | C67: =IF(A67>$A$8,"",OFFSET(InputPriceData!G$15,CalculationsAndCharts!$A67+$A$11,IF($C$5,8,0),1,1)) -> 1445836100 | D67: =IF(A67>$A$8,"",OFFSET(InputPriceData!C$15,CalculationsAndCharts!$A67+$A$11,IF($C$5,8,0),1,1)) -> 27885.50977 | E67: =IF(A67>$A$8,"",OFFSET(InputPriceData!D$15,CalculationsAndCharts!$A67+$A$11,IF($C$5,8,0),1,1)) -> 28074.5293 | F67: =IF(A67>$A$8,"",OFFSET(InputPriceData!E$15,CalculationsAndCharts!$A67+$A$11,IF($C$5,8,0),1,1)) -> 27730.41992 | G67: =IF(A67>$A$8,"",OFFSET(InputPriceData!F$15,CalculationsAndCharts!$A67+$A$11,IF($C$5,8,0),1,1)) -> 27819.56055 | H67: 29325.24792 | I67: 191.298828 | J67: 3451.271484 | K67: 2.220703 | L67: 0.05482033667 | M67: -0.05482033667 | N67: -0.07658121274 | O67: -7.658121274 | P67: 40 | Q67: -40 | BC67: 1445836100
A68: 36 | B68: =IF(A68>$A$8,"",OFFSET(InputPriceData!B$15,$A68+$A$11,0,1,1)) -> 2018-08-03 | C68: =IF(A68>$A$8,"",OFFSET(InputPriceData!G$15,CalculationsAndCharts!$A68+$A$11,IF($C$5,8,0),1,1)) -> 1608505200 | D68: =IF(A68>$A$8,"",OFFSET(InputPriceData!C$15,CalculationsAndCharts!$A68+$A$11,IF($C$5,8,0),1,1)) -> 27751.59961 | E68: =IF(A68>$A$8,"",OFFSET(InputPriceData!D$15,CalculationsAndCharts!$A68+$A$11,IF($C$5,8,0),1,1)) -> 27786.15039 | F68: =IF(A68>$A$8,"",OFFSET(InputPriceData!E$15,CalculationsAndCharts!$A68+$A$11,IF($C$5,8,0),1,1)) -> 27604.56055 | G68: =IF(A68>$A$8,"",OFFSET(InputPriceData!F$15,CalculationsAndCharts!$A68+$A$11,IF($C$5,8,0),1,1)) -> 27676.32031 | H68: 29340.38045 | I68: 441.099609 | J68: 3451.271484 | K68: 2.220703 | L68: 0.1272462871 | M68: -0.1272462871 | N68: -0.09834208881 | O68: -9.834208881 | P68: 40 | Q68: -40 | BD68: 1608505200
A69: 37 | B69: =IF(A69>$A$8,"",OFFSET(InputPriceData!B$15,$A69+$A$11,0,1,1)) -> 2018-08-02 | C69: =IF(A69>$A$8,"",OFFSET(InputPriceData!G$15,CalculationsAndCharts!$A69+$A$11,IF($C$5,8,0),1,1)) -> 1989173700 | D69: =IF(A69>$A$8,"",OFFSET(InputPriceData!C$15,CalculationsAndCharts!$A69+$A$11,IF($C$5,8,0),1,1)) -> 28159.00977 | E69: =IF(A69>$A$8,"",OFFSET(InputPriceData!D$15,CalculationsAndCharts!$A69+$A$11,IF($C$5,8,0),1,1)) -> 28218.2793 | F69: =IF(A69>$A$8,"",OFFSET(InputPriceData!E$15,CalculationsAndCharts!$A69+$A$11,IF($C$5,8,0),1,1)) -> 27578.08984 | G69: =IF(A69>$A$8,"",OFFSET(InputPriceData!F$15,CalculationsAndCharts!$A69+$A$11,IF($C$5,8,0),1,1)) -> 27714.56055 | H69: 29357.10467 | I69: 467.119141 | J69: 3451.271484 | K69: 2.220703 | L69: 0.1347902561 | M69: -0.1347902561 | N69: -0.06943789049 | O69: -6.943789049 | P69: 40 | Q69: -40 | BD69: 1989173700
A70: 38 | B70: =IF(A70>$A$8,"",OFFSET(InputPriceData!B$15,$A70+$A$11,0,1,1)) -> 2018-08-01 | C70: =IF(A70>$A$8,"",OFFSET(InputPriceData!G$15,CalculationsAndCharts!$A70+$A$11,IF($C$5,8,0),1,1)) -> 1516068100 | D70: =IF(A70>$A$8,"",OFFSET(InputPriceData!C$15,CalculationsAndCharts!$A70+$A$11,IF($C$5,8,0),1,1)) -> 28756.7207 | E70: =IF(A70>$A$8,"",OFFSET(InputPriceData!D$15,CalculationsAndCharts!$A70+$A$11,IF($C$5,8,0),1,1)) -> 28772.80078 | F70: =IF(A70>$A$8,"",OFFSET(InputPriceData!E$15,CalculationsAndCharts!$A70+$A$11,IF($C$5,8,0),1,1)) -> 28219.9707 | G70: =IF(A70>$A$8,"",OFFSET(InputPriceData!F$15,CalculationsAndCharts!$A70+$A$11,IF($C$5,8,0),1,1)) -> 28340.74023 | H70: 29373.61266 | I70: 198.919922 | J70: 3451.271484 | K70: 2.220703 | L70: 0.05702995737 | M70: -0.05702995737 | N70: -0.004085524893 | O70: -0.4085524893 | P70: 40 | Q70: -40 | BD70: 1516068100
A71: 39 | B71: =IF(A71>$A$8,"",OFFSET(InputPriceData!B$15,$A71+$A$11,0,1,1)) -> 2018-07-31 | C71: =IF(A71>$A$8,"",OFFSET(InputPriceData!G$15,CalculationsAndCharts!$A71+$A$11,IF($C$5,8,0),1,1)) -> 1464571200 | D71: =IF(A71>$A$8,"",OFFSET(InputPriceData!C$15,CalculationsAndCharts!$A71+$A$11,IF($C$5,8,0),1,1)) -> 28663.14062 | E71: =IF(A71>$A$8,"",OFFSET(InputPriceData!D$15,CalculationsAndCharts!$A71+$A$11,IF($C$5,8,0),1,1)) -> 28682.31055 | F71: =IF(A71>$A$8,"",OFFSET(InputPriceData!E$15,CalculationsAndCharts!$A71+$A$11,IF($C$5,8,0),1,1)) -> 28538.0293 | G71: =IF(A71>$A$8,"",OFFSET(InputPriceData!F$15,CalculationsAndCharts!$A71+$A$11,IF($C$5,8,0),1,1)) -> 28583.00977 | H71: 29383.99328 | I71: 57.570313 | J71: 3451.271484 | K71: 2.220703 | L71: 0.01604778054 | M71: 0.01604778054 | N71: 0.04885890758 | O71: 4.885890758 | P71: 40 | Q71: -40 | BD71: 1464571200
A72: 40 | B72: =IF(A72>$A$8,"",OFFSET(InputPriceData!B$15,$A72+$A$11,0,1,1)) -> 2018-07-30 | C72: =IF(A72>$A$8,"",OFFSET(InputPriceData!G$15,CalculationsAndCharts!$A72+$A$11,IF($C$5,8,0),1,1)) -> 1231291800 | D72: =IF(A72>$A$8,"",OFFSET(InputPriceData!C$15,CalculationsAndCharts!$A72+$A$11,IF($C$5,8,0),1,1)) -> 28631.05078 | E72: =IF(A72>$A$8,"",OFFSET(InputPriceData!D$15,CalculationsAndCharts!$A72+$A$11,IF($C$5,8,0),1,1)) -> 28839.24023 | F72: =IF(A72>$A$8,"",OFFSET(InputPriceData!E$15,CalculationsAndCharts!$A72+$A$11,IF($C$5,8,0),1,1)) -> 28539.56055 | G72: =IF(A72>$A$8,"",OFFSET(InputPriceData!F$15,CalculationsAndCharts!$A72+$A$11,IF($C$5,8,0),1,1)) -> 28733.13086 | H72: 29392.04337 | I72: 252.300781 | J72: 3451.271484 | K72: 2.220703 | L72: 0.07250692839 | M72: 0.07250692839 | N72: 0.08167003462 | O72: 8.167003462 | P72: 40 | Q72: -40 | BD72: 1231291800
A73: 41 | B73: =IF(A73>$A$8,"",OFFSET(InputPriceData!B$15,$A73+$A$11,0,1,1)) -> 2018-07-27 | C73: =IF(A73>$A$8,"",OFFSET(InputPriceData!G$15,CalculationsAndCharts!$A73+$A$11,IF($C$5,8,0),1,1)) -> 1206039800 | D73: =IF(A73>$A$8,"",OFFSET(InputPriceData!C$15,CalculationsAndCharts!$A73+$A$11,IF($C$5,8,0),1,1)) -> 28734.73047 | E73: =IF(A73>$A$8,"",OFFSET(InputPriceData!D$15,CalculationsAndCharts!$A73+$A$11,IF($C$5,8,0),1,1)) -> 28816.68945 | F73: =IF(A73>$A$8,"",OFFSET(InputPriceData!E$15,CalculationsAndCharts!$A73+$A$11,IF($C$5,8,0),1,1)) -> 28572.78906 | G73: =IF(A73>$A$8,"",OFFSET(InputPriceData!F$15,CalculationsAndCharts!$A73+$A$11,IF($C$5,8,0),1,1)) -> 28804.2793 | H73: 29398.66561 | I73: 492.589844 | J73: 3451.271484 | K73: 2.220703 | L73: 0.1421751004 | M73: 0.1421751004 | N73: 0.09083314086 | O73: 9.083314086 | P73: 40 | Q73: -40 | BC73: 1206039800
A74: 42 | B74: =IF(A74>$A$8,"",OFFSET(InputPriceData!B$15,$A74+$A$11,0,1,1)) -> 2018-07-26 | C74: =IF(A74>$A$8,"",OFFSET(InputPriceData!G$15,CalculationsAndCharts!$A74+$A$11,IF($C$5,8,0),1,1)) -> 1418097900 | D74: =IF(A74>$A$8,"",OFFSET(InputPriceData!C$15,CalculationsAndCharts!$A74+$A$11,IF($C$5,8,0),1,1)) -> 29083.40039 | E74: =IF(A74>$A$8,"",OFFSET(InputPriceData!D$15,CalculationsAndCharts!$A74+$A$11,IF($C$5,8,0),1,1)) -> 29083.40039 | F74: =IF(A74>$A$8,"",OFFSET(InputPriceData!E$15,CalculationsAndCharts!$A74+$A$11,IF($C$5,8,0),1,1)) -> 28625.08008 | G74: =IF(A74>$A$8,"",OFFSET(InputPriceData!F$15,CalculationsAndCharts!$A74+$A$11,IF($C$5,8,0),1,1)) -> 28781.14062 | H74: 29404.63934 | I74: 98.890625 | J74: 3451.271484 | K74: 2.220703 | L74: 0.02802797875 | M74: 0.02802797875 | N74: 0.03949118134 | O74: 3.949118134 | P74: 40 | Q74: -40 | BD74: 1418097900
A75: 43 | B75: =IF(A75>$A$8,"",OFFSET(InputPriceData!B$15,$A75+$A$11,0,1,1)) -> 2018-07-25 | C75: =IF(A75>$A$8,"",OFFSET(InputPriceData!G$15,CalculationsAndCharts!$A75+$A$11,IF($C$5,8,0),1,1)) -> 1632380100 | D75: =IF(A75>$A$8,"",OFFSET(InputPriceData!C$15,CalculationsAndCharts!$A75+$A$11,IF($C$5,8,0),1,1)) -> 28906.9707 | E75: =IF(A75>$A$8,"",OFFSET(InputPriceData!D$15,CalculationsAndCharts!$A75+$A$11,IF($C$5,8,0),1,1)) -> 28964.78906 | F75: =IF(A75>$A$8,"",OFFSET(InputPriceData!E$15,CalculationsAndCharts!$A75+$A$11,IF($C$5,8,0),1,1)) -> 28764.34961 | G75: =IF(A75>$A$8,"",OFFSET(InputPriceData!F$15,CalculationsAndCharts!$A75+$A$11,IF($C$5,8,0),1,1)) -> 28920.90039 | H75: 29410.90566 | I75: 232.400391 | J75: 3451.271484 | K75: 2.220703 | L75: 0.06673711192 | M75: 0.06673711192 | N75: 0.05095438392 | O75: 5.095438392 | P75: 40 | Q75: -40 | BC75: 1632380100
A76: 44 | B76: =IF(A76>$A$8,"",OFFSET(InputPriceData!B$15,$A76+$A$11,0,1,1)) -> 2018-07-24 | C76: =IF(A76>$A$8,"",OFFSET(InputPriceData!G$15,CalculationsAndCharts!$A76+$A$11,IF($C$5,8,0),1,1)) -> 2416350500 | D76: =IF(A76>$A$8,"",OFFSET(InputPriceData!C$15,CalculationsAndCharts!$A76+$A$11,IF($C$5,8,0),1,1)) -> 28282.30078 | E76: =IF(A76>$A$8,"",OFFSET(InputPriceData!D$15,CalculationsAndCharts!$A76+$A$11,IF($C$5,8,0),1,1)) -> 28718 | F76: =IF(A76>$A$8,"",OFFSET(InputPriceData!E$15,CalculationsAndCharts!$A76+$A$11,IF($C$5,8,0),1,1)) -> 28282.30078 | G76: =IF(A76>$A$8,"",OFFSET(InputPriceData!F$15,CalculationsAndCharts!$A76+$A$11,IF($C$5,8,0),1,1)) -> 28662.57031 | H76: 29415.83033 | I76: 346.951172 | J76: 3451.271484 | K76: 2.220703 | L76: 0.09994937474 | M76: 0.09994937474 | N76: 0.03517165592 | O76: 3.517165592 | P76: 40 | Q76: -40 | BC76: 2416350500
A77: 45 | B77: =IF(A77>$A$8,"",OFFSET(InputPriceData!B$15,$A77+$A$11,0,1,1)) -> 2018-07-23 | C77: =IF(A77>$A$8,"",OFFSET(InputPriceData!G$15,CalculationsAndCharts!$A77+$A$11,IF($C$5,8,0),1,1)) -> 1893557000 | D77: =IF(A77>$A$8,"",OFFSET(InputPriceData!C$15,CalculationsAndCharts!$A77+$A$11,IF($C$5,8,0),1,1)) -> 28298.60938 | E77: =IF(A77>$A$8,"",OFFSET(InputPriceData!D$15,CalculationsAndCharts!$A77+$A$11,IF($C$5,8,0),1,1)) -> 28391.58008 | F77: =IF(A77>$A$8,"",OFFSET(InputPriceData!E$15,CalculationsAndCharts!$A77+$A$11,IF($C$5,8,0),1,1)) -> 28091.06055 | G77: =IF(A77>$A$8,"",OFFSET(InputPriceData!F$15,CalculationsAndCharts!$A77+$A$11,IF($C$5,8,0),1,1)) -> 28256.11914 | H77: 29423.40078 | I77: 74.029297 | J77: 3451.271484 | K77: 2.220703 | L77: 0.0208198135 | M77: 0.0208198135 | N77: -0.0296060629 | O77: -2.96060629 | P77: 40 | Q77: -40 | BC77: 1893557000
A78: 46 | B78: =IF(A78>$A$8,"",OFFSET(InputPriceData!B$15,$A78+$A$11,0,1,1)) -> 2018-07-20 | C78: =IF(A78>$A$8,"",OFFSET(InputPriceData!G$15,CalculationsAndCharts!$A78+$A$11,IF($C$5,8,0),1,1)) -> 2439680200 | D78: =IF(A78>$A$8,"",OFFSET(InputPriceData!C$15,CalculationsAndCharts!$A78+$A$11,IF($C$5,8,0),1,1)) -> 28054.75977 | E78: =IF(A78>$A$8,"",OFFSET(InputPriceData!D$15,CalculationsAndCharts!$A78+$A$11,IF($C$5,8,0),1,1)) -> 28294.74023 | F78: =IF(A78>$A$8,"",OFFSET(InputPriceData!E$15,CalculationsAndCharts!$A78+$A$11,IF($C$5,8,0),1,1)) -> 27745.84961 | G78: =IF(A78>$A$8,"",OFFSET(InputPriceData!F$15,CalculationsAndCharts!$A78+$A$11,IF($C$5,8,0),1,1)) -> 28224.48047 | H78: 29435.13226 | I78: 17.189453 | J78: 3451.271484 | K78: 2.220703 | L78: 0.004339962196 | M78: -0.004339962196 | N78: -0.08003193929 | O78: -8.003193929 | P78: 40 | Q78: -40 | BC78: 2439680200
A79: 47 | B79: =IF(A79>$A$8,"",OFFSET(InputPriceData!B$15,$A79+$A$11,0,1,1)) -> 2018-07-19 | C79: =IF(A79>$A$8,"",OFFSET(InputPriceData!G$15,CalculationsAndCharts!$A79+$A$11,IF($C$5,8,0),1,1)) -> 1495109900 | D79: =IF(A79>$A$8,"",OFFSET(InputPriceData!C$15,CalculationsAndCharts!$A79+$A$11,IF($C$5,8,0),1,1)) -> 28251.16016 | E79: =IF(A79>$A$8,"",OFFSET(InputPriceData!D$15,CalculationsAndCharts!$A79+$A$11,IF($C$5,8,0),1,1)) -> 28329.98047 | F79: =IF(A79>$A$8,"",OFFSET(InputPriceData!E$15,CalculationsAndCharts!$A79+$A$11,IF($C$5,8,0),1,1)) -> 27998.35938 | G79: =IF(A79>$A$8,"",OFFSET(InputPriceData!F$15,CalculationsAndCharts!$A79+$A$11,IF($C$5,8,0),1,1)) -> 28010.85938 | H79: 29447.29961 | I79: 534.710938 | J79: 3451.271484 | K79: 2.220703 | L79: 0.1543874732 | M79: -0.1543874732 | N79: -0.1557239164 | O79: -15.57239164 | P79: 40 | Q79: -40 | BD79: 1495109900
A80: 48 | B80: =IF(A80>$A$8,"",OFFSET(InputPriceData!B$15,$A80+$A$11,0,1,1)) -> 2018-07-18 | C80: =IF(A80>$A$8,"",OFFSET(InputPriceData!G$15,CalculationsAndCharts!$A80+$A$11,IF($C$5,8,0),1,1)) -> 1507604000 | D80: =IF(A80>$A$8,"",OFFSET(InputPriceData!C$15,CalculationsAndCharts!$A80+$A$11,IF($C$5,8,0),1,1)) -> 28352.10938 | E80: =IF(A80>$A$8,"",OFFSET(InputPriceData!D$15,CalculationsAndCharts!$A80+$A$11,IF($C$5,8,0),1,1)) -> 28386.38086 | F80: =IF(A80>$A$8,"",OFFSET(InputPriceData!E$15,CalculationsAndCharts!$A80+$A$11,IF($C$5,8,0),1,1)) -> 28045.4707 | G80: =IF(A80>$A$8,"",OFFSET(InputPriceData!F$15,CalculationsAndCharts!$A80+$A$11,IF($C$5,8,0),1,1)) -> 28117.41992 | H80: 29461.7362 | I80: 837.689453 | J80: 3451.271484 | K80: 2.220703 | L80: 0.2422315017 | M80: -0.2422315017 | N80: -0.1570603596 | O80: -15.70603596 | P80: 40 | Q80: -40 | BD80: 1507604000
A81: 49 | B81: =IF(A81>$A$8,"",OFFSET(InputPriceData!B$15,$A81+$A$11,0,1,1)) -> 2018-07-17 | C81: =IF(A81>$A$8,"",OFFSET(InputPriceData!G$15,CalculationsAndCharts!$A81+$A$11,IF($C$5,8,0),1,1)) -> 1700682900 | D81: =IF(A81>$A$8,"",OFFSET(InputPriceData!C$15,CalculationsAndCharts!$A81+$A$11,IF($C$5,8,0),1,1)) -> 28451.5 | E81: =IF(A81>$A$8,"",OFFSET(InputPriceData!D$15,CalculationsAndCharts!$A81+$A$11,IF($C$5,8,0),1,1)) -> 28460.86914 | F81: =IF(A81>$A$8,"",OFFSET(InputPriceData!E$15,CalculationsAndCharts!$A81+$A$11,IF($C$5,8,0),1,1)) -> 28137.94922 | G81: =IF(A81>$A$8,"",OFFSET(InputPriceData!F$15,CalculationsAndCharts!$A81+$A$11,IF($C$5,8,0),1,1)) -> 28181.67969 | H81: 29475.24691 | I81: 315.640625 | J81: 3451.271484 | K81: 2.220703 | L81: 0.09087135618 | M81: -0.09087135618 | N81: -0.07188921751 | O81: -7.188921751 | P81: 40 | Q81: -40 | BD81: 1700682900
A82: 50 | B82: =IF(A82>$A$8,"",OFFSET(InputPriceData!B$15,$A82+$A$11,0,1,1)) -> 2018-07-16 | C82: =IF(A82>$A$8,"",OFFSET(InputPriceData!G$15,CalculationsAndCharts!$A82+$A$11,IF($C$5,8,0),1,1)) -> 1239642900 | D82: =IF(A82>$A$8,"",OFFSET(InputPriceData!C$15,CalculationsAndCharts!$A82+$A$11,IF($C$5,8,0),1,1)) -> 28580.96094 | E82: =IF(A82>$A$8,"",OFFSET(InputPriceData!D$15,CalculationsAndCharts!$A82+$A$11,IF($C$5,8,0),1,1)) -> 28699.21094 | F82: =IF(A82>$A$8,"",OFFSET(InputPriceData!E$15,CalculationsAndCharts!$A82+$A$11,IF($C$5,8,0),1,1)) -> 28327 | G82: =IF(A82>$A$8,"",OFFSET(InputPriceData!F$15,CalculationsAndCharts!$A82+$A$11,IF($C$5,8,0),1,1)) -> 28539.66016 | H82: 29488.24759 | I82: 183.40039 | J82: 3451.271484 | K82: 2.220703 | L82: 0.05253030428 | M82: 0.05253030428 | N82: -0.05290707884 | O82: -5.290707884 | P82: 40 | Q82: -40 | BC82: 1239642900
A83: 51 | B83: =IF(A83>$A$8,"",OFFSET(InputPriceData!B$15,$A83+$A$11,0,1,1)) -> 2018-07-13 | C83: =IF(A83>$A$8,"",OFFSET(InputPriceData!G$15,CalculationsAndCharts!$A83+$A$11,IF($C$5,8,0),1,1)) -> 1449784600 | D83: =IF(A83>$A$8,"",OFFSET(InputPriceData!C$15,CalculationsAndCharts!$A83+$A$11,IF($C$5,8,0),1,1)) -> 28689.17969 | E83: =IF(A83>$A$8,"",OFFSET(InputPriceData!D$15,CalculationsAndCharts!$A83+$A$11,IF($C$5,8,0),1,1)) -> 28715.35938 | F83: =IF(A83>$A$8,"",OFFSET(InputPriceData!E$15,CalculationsAndCharts!$A83+$A$11,IF($C$5,8,0),1,1)) -> 28500.50977 | G83: =IF(A83>$A$8,"",OFFSET(InputPriceData!F$15,CalculationsAndCharts!$A83+$A$11,IF($C$5,8,0),1,1)) -> 28525.43945 | H83: 29497.78113 | I83: 355.960938 | J83: 3451.271484 | K83: 2.220703 | L83: 0.1025616198 | M83: -0.1025616198 | N83: -0.158344462 | O83: -15.8344462 | P83: 40 | Q83: -40 | BC83: 1449784600
A84: 52 | B84: =IF(A84>$A$8,"",OFFSET(InputPriceData!B$15,$A84+$A$11,0,1,1)) -> 2018-07-12 | C84: =IF(A84>$A$8,"",OFFSET(InputPriceData!G$15,CalculationsAndCharts!$A84+$A$11,IF($C$5,8,0),1,1)) -> 1850926800 | D84: =IF(A84>$A$8,"",OFFSET(InputPriceData!C$15,CalculationsAndCharts!$A84+$A$11,IF($C$5,8,0),1,1)) -> 28260.08984 | E84: =IF(A84>$A$8,"",OFFSET(InputPriceData!D$15,CalculationsAndCharts!$A84+$A$11,IF($C$5,8,0),1,1)) -> 28614.5293 | F84: =IF(A84>$A$8,"",OFFSET(InputPriceData!E$15,CalculationsAndCharts!$A84+$A$11,IF($C$5,8,0),1,1)) -> 28217.31055 | G84: =IF(A84>$A$8,"",OFFSET(InputPriceData!F$15,CalculationsAndCharts!$A84+$A$11,IF($C$5,8,0),1,1)) -> 28480.83008 | H84: 29507.55341 | I84: 480.560547 | J84: 3451.271484 | K84: 2.220703 | L84: 0.138687388 | M84: -0.138687388 | N84: -0.2141273041 | O84: -21.41273041 | P84: 40 | Q84: -40 | BC84: 1850926800
A85: 53 | B85: =IF(A85>$A$8,"",OFFSET(InputPriceData!B$15,$A85+$A$11,0,1,1)) -> 2018-07-11 | C85: =IF(A85>$A$8,"",OFFSET(InputPriceData!G$15,CalculationsAndCharts!$A85+$A$11,IF($C$5,8,0),1,1)) -> 1871183500 | D85: =IF(A85>$A$8,"",OFFSET(InputPriceData!C$15,CalculationsAndCharts!$A85+$A$11,IF($C$5,8,0),1,1)) -> 28013.7207 | E85: =IF(A85>$A$8,"",OFFSET(InputPriceData!D$15,CalculationsAndCharts!$A85+$A$11,IF($C$5,8,0),1,1)) -> 28365.7207 | F85: =IF(A85>$A$8,"",OFFSET(InputPriceData!E$15,CalculationsAndCharts!$A85+$A$11,IF($C$5,8,0),1,1)) -> 28013.7207 | G85: =IF(A85>$A$8,"",OFFSET(InputPriceData!F$15,CalculationsAndCharts!$A85+$A$11,IF($C$5,8,0),1,1)) -> 28311.68945 | H85: 29517.87224 | I85: 1027.009766 | J85: 3451.271484 | K85: 2.220703 | L85: 0.2971220571 | M85: -0.2971220571 | N85: -0.2895672201 | O85: -28.95672201 | P85: 40 | Q85: -40 | BD85: 1871183500
A86: 54 | B86: =IF(A86>$A$8,"",OFFSET(InputPriceData!B$15,$A86+$A$11,0,1,1)) -> 2018-07-10 | C86: =IF(A86>$A$8,"",OFFSET(InputPriceData!G$15,CalculationsAndCharts!$A86+$A$11,IF($C$5,8,0),1,1)) -> 1667619300 | D86: =IF(A86>$A$8,"",OFFSET(InputPriceData!C$15,CalculationsAndCharts!$A86+$A$11,IF($C$5,8,0),1,1)) -> 28900.71094 | E86: =IF(A86>$A$8,"",OFFSET(InputPriceData!D$15,CalculationsAndCharts!$A86+$A$11,IF($C$5,8,0),1,1)) -> 28981.92969 | F86: =IF(A86>$A$8,"",OFFSET(InputPriceData!E$15,CalculationsAndCharts!$A86+$A$11,IF($C$5,8,0),1,1)) -> 28682.25 | G86: =IF(A86>$A$8,"",OFFSET(InputPriceData!F$15,CalculationsAndCharts!$A86+$A$11,IF($C$5,8,0),1,1)) -> 28682.25 | H86: 29529.99468 | I86: 613.800781 | J86: 3451.271484 | K86: 2.220703 | L86: 0.1773183745 | M86: -0.1773183745 | N86: -0.2820123832 | O86: -28.20123832 | P86: 40 | Q86: -40 | BD86: 1667619300
A87: 55 | B87: =IF(A87>$A$8,"",OFFSET(InputPriceData!B$15,$A87+$A$11,0,1,1)) -> 2018-07-09 | C87: =IF(A87>$A$8,"",OFFSET(InputPriceData!G$15,CalculationsAndCharts!$A87+$A$11,IF($C$5,8,0),1,1)) -> 1877898300 | D87: =IF(A87>$A$8,"",OFFSET(InputPriceData!C$15,CalculationsAndCharts!$A87+$A$11,IF($C$5,8,0),1,1)) -> 28606.16016 | E87: =IF(A87>$A$8,"",OFFSET(InputPriceData!D$15,CalculationsAndCharts!$A87+$A$11,IF($C$5,8,0),1,1)) -> 28821.53906 | F87: =IF(A87>$A$8,"",OFFSET(InputPriceData!E$15,CalculationsAndCharts!$A87+$A$11,IF($C$5,8,0),1,1)) -> 28518.51953 | G87: =IF(A87>$A$8,"",OFFSET(InputPriceData!F$15,CalculationsAndCharts!$A87+$A$11,IF($C$5,8,0),1,1)) -> 28688.5 | H87: 29538.51472 | I87: 1007.669922 | J87: 3451.271484 | K87: 2.220703 | L87: 0.2915147624 | M87: -0.2915147624 | N87: -0.3867063919 | O87: -38.67063919 | P87: 40 | Q87: -40 | BC87: 1877898300
A88: 56 | B88: =IF(A88>$A$8,"",OFFSET(InputPriceData!B$15,$A88+$A$11,0,1,1)) -> 2018-07-06 | C88: =IF(A88>$A$8,"",OFFSET(InputPriceData!G$15,CalculationsAndCharts!$A88+$A$11,IF($C$5,8,0),1,1)) -> 2018289300 | D88: =IF(A88>$A$8,"",OFFSET(InputPriceData!C$15,CalculationsAndCharts!$A88+$A$11,IF($C$5,8,0),1,1)) -> 28254.36914 | E88: =IF(A88>$A$8,"",OFFSET(InputPriceData!D$15,CalculationsAndCharts!$A88+$A$11,IF($C$5,8,0),1,1)) -> 28554.21094 | F88: =IF(A88>$A$8,"",OFFSET(InputPriceData!E$15,CalculationsAndCharts!$A88+$A$11,IF($C$5,8,0),1,1)) -> 27925.33008 | G88: =IF(A88>$A$8,"",OFFSET(InputPriceData!F$15,CalculationsAndCharts!$A88+$A$11,IF($C$5,8,0),1,1)) -> 28315.61914 | H88: 29547.05759 | I88: 1152.53125 | J88: 3451.271484 | K88: 2.220703 | L88: 0.333515109 | M88: -0.333515109 | N88: -0.4818980214 | O88: -48.18980214 | P88: 40 | Q88: -40 | BC88: 2018289300
A89: 57 | B89: =IF(A89>$A$8,"",OFFSET(InputPriceData!B$15,$A89+$A$11,0,1,1)) -> 2018-07-05 | C89: =IF(A89>$A$8,"",OFFSET(InputPriceData!G$15,CalculationsAndCharts!$A89+$A$11,IF($C$5,8,0),1,1)) -> 1879594600 | D89: =IF(A89>$A$8,"",OFFSET(InputPriceData!C$15,CalculationsAndCharts!$A89+$A$11,IF($C$5,8,0),1,1)) -> 28101.84961 | E89: =IF(A89>$A$8,"",OFFSET(InputPriceData!D$15,CalculationsAndCharts!$A89+$A$11,IF($C$5,8,0),1,1)) -> 28320.90039 | F89: =IF(A89>$A$8,"",OFFSET(InputPriceData!E$15,CalculationsAndCharts!$A89+$A$11,IF($C$5,8,0),1,1)) -> 27830.75 | G89: =IF(A89>$A$8,"",OFFSET(InputPriceData!F$15,CalculationsAndCharts!$A89+$A$11,IF($C$5,8,0),1,1)) -> 28182.08984 | H89: 29559.43385 | I89: 2127.40039 | J89: 3451.271484 | K89: 2.220703 | L89: 0.6161636409 | M89: -0.6161636409 | N89: -0.6302809338 | O89: -63.02809338 | P89: 40 | Q89: -40 | BD89: 1879594600
A90: 58 | B90: =IF(A90>$A$8,"",OFFSET(InputPriceData!B$15,$A90+$A$11,0,1,1)) -> 2018-07-04 | C90: =IF(A90>$A$8,"",OFFSET(InputPriceData!G$15,CalculationsAndCharts!$A90+$A$11,IF($C$5,8,0),1,1)) -> 2102178600 | D90: =IF(A90>$A$8,"",OFFSET(InputPriceData!C$15,CalculationsAndCharts!$A90+$A$11,IF($C$5,8,0),1,1)) -> 28546.32031 | E90: =IF(A90>$A$8,"",OFFSET(InputPriceData!D$15,CalculationsAndCharts!$A90+$A$11,IF($C$5,8,0),1,1)) -> 28642.33984 | F90: =IF(A90>$A$8,"",OFFSET(InputPriceData!E$15,CalculationsAndCharts!$A90+$A$11,IF($C$5,8,0),1,1)) -> 28141.2793 | G90: =IF(A90>$A$8,"",OFFSET(InputPriceData!F$15,CalculationsAndCharts!$A90+$A$11,IF($C$5,8,0),1,1)) -> 28241.66992 | H90: 29573.27651 | I90: 2198.5 | J90: 3451.271484 | K90: 2.220703 | L90: 0.6367778953 | M90: -0.6367778953 | N90: -0.6443982267 | O90: -64.43982267 | P90: 40 | Q90: -40 | BD90: 2102178600
A91: 59 | B91: =IF(A91>$A$8,"",OFFSET(InputPriceData!B$15,$A91+$A$11,0,1,1)) -> 2018-07-03 | C91: =IF(A91>$A$8,"",OFFSET(InputPriceData!G$15,CalculationsAndCharts!$A91+$A$11,IF($C$5,8,0),1,1)) -> 3283196100 | D91: =IF(A91>$A$8,"",OFFSET(InputPriceData!C$15,CalculationsAndCharts!$A91+$A$11,IF($C$5,8,0),1,1)) -> 28617 | E91: =IF(A91>$A$8,"",OFFSET(InputPriceData!D$15,CalculationsAndCharts!$A91+$A$11,IF($C$5,8,0),1,1)) -> 28617 | F91: =IF(A91>$A$8,"",OFFSET(InputPriceData!E$15,CalculationsAndCharts!$A91+$A$11,IF($C$5,8,0),1,1)) -> 27990.44922 | G91: =IF(A91>$A$8,"",OFFSET(InputPriceData!F$15,CalculationsAndCharts!$A91+$A$11,IF($C$5,8,0),1,1)) -> 28545.57031 | H91: 29586.65949 | I91: 2179.580078 | J91: 3451.271484 | K91: 2.220703 | L91: 0.6312923506 | M91: -0.6312923506 | N91: -0.6520185581 | O91: -65.20185581 | P91: 40 | Q91: -40 | BD91: 3283196100
A92: 60 | B92: =IF(A92>$A$8,"",OFFSET(InputPriceData!B$15,$A92+$A$11,0,1,1)) -> 2018-06-29 | C92: =IF(A92>$A$8,"",OFFSET(InputPriceData!G$15,CalculationsAndCharts!$A92+$A$11,IF($C$5,8,0),1,1)) -> 2390149600 | D92: =IF(A92>$A$8,"",OFFSET(InputPriceData!C$15,CalculationsAndCharts!$A92+$A$11,IF($C$5,8,0),1,1)) -> 28463.84961 | E92: =IF(A92>$A$8,"",OFFSET(InputPriceData!D$15,CalculationsAndCharts!$A92+$A$11,IF($C$5,8,0),1,1)) -> 28962.28906 | F92: =IF(A92>$A$8,"",OFFSET(InputPriceData!E$15,CalculationsAndCharts!$A92+$A$11,IF($C$5,8,0),1,1)) -> 28463.84961 | G92: =IF(A92>$A$8,"",OFFSET(InputPriceData!F$15,CalculationsAndCharts!$A92+$A$11,IF($C$5,8,0),1,1)) -> 28955.10938 | H92: 29597.12269 | I92: 2147.951172 | J92: 3451.271484 | K92: 2.220703 | L92: 0.6221220287 | M92: -0.6221220287 | N92: -0.6727447656 | O92: -67.27447656 | P92: 40 | Q92: -40 | BC92: 2390149600
A93: 61 | B93: =IF(A93>$A$8,"",OFFSET(InputPriceData!B$15,$A93+$A$11,0,1,1)) -> 2018-06-28 | C93: =IF(A93>$A$8,"",OFFSET(InputPriceData!G$15,CalculationsAndCharts!$A93+$A$11,IF($C$5,8,0),1,1)) -> 2569401700 | D93: =IF(A93>$A$8,"",OFFSET(InputPriceData!C$15,CalculationsAndCharts!$A93+$A$11,IF($C$5,8,0),1,1)) -> 28368.00977 | E93: =IF(A93>$A$8,"",OFFSET(InputPriceData!D$15,CalculationsAndCharts!$A93+$A$11,IF($C$5,8,0),1,1)) -> 28567.28906 | F93: =IF(A93>$A$8,"",OFFSET(InputPriceData!E$15,CalculationsAndCharts!$A93+$A$11,IF($C$5,8,0),1,1)) -> 28169.09961 | G93: =IF(A93>$A$8,"",OFFSET(InputPriceData!F$15,CalculationsAndCharts!$A93+$A$11,IF($C$5,8,0),1,1)) -> 28497.32031 | H93: 29603.57509 | I93: 2566.378906 | J93: 3451.271484 | K93: 2.220703 | L93: 0.7434388085 | M93: -0.7434388085 | N93: -0.7233675025 | O93: -72.33675025 | P93: 40 | Q93: -40 | BC93: 2569401700
A94: 62 | B94: =IF(A94>$A$8,"",OFFSET(InputPriceData!B$15,$A94+$A$11,0,1,1)) -> 2018-06-27 | C94: =IF(A94>$A$8,"",OFFSET(InputPriceData!G$15,CalculationsAndCharts!$A94+$A$11,IF($C$5,8,0),1,1)) -> 2572195600 | D94: =IF(A94>$A$8,"",OFFSET(InputPriceData!C$15,CalculationsAndCharts!$A94+$A$11,IF($C$5,8,0),1,1)) -> 28957.64062 | E94: =IF(A94>$A$8,"",OFFSET(InputPriceData!D$15,CalculationsAndCharts!$A94+$A$11,IF($C$5,8,0),1,1)) -> 28988.83008 | F94: =IF(A94>$A$8,"",OFFSET(InputPriceData!E$15,CalculationsAndCharts!$A94+$A$11,IF($C$5,8,0),1,1)) -> 28342.82031 | G94: =IF(A94>$A$8,"",OFFSET(InputPriceData!F$15,CalculationsAndCharts!$A94+$A$11,IF($C$5,8,0),1,1)) -> 28356.25977 | H94: 29614.69323 | I94: 2601.951172 | J94: 3451.271484 | K94: 2.220703 | L94: 0.7537524479 | M94: -0.7537524479 | N94: -0.7032961966 | O94: -70.32961966 | P94: 40 | Q94: -40 | BD94: 2572195600
A95: 63 | B95: =IF(A95>$A$8,"",OFFSET(InputPriceData!B$15,$A95+$A$11,0,1,1)) -> 2018-06-26 | C95: =IF(A95>$A$8,"",OFFSET(InputPriceData!G$15,CalculationsAndCharts!$A95+$A$11,IF($C$5,8,0),1,1)) -> 2528392900 | D95: =IF(A95>$A$8,"",OFFSET(InputPriceData!C$15,CalculationsAndCharts!$A95+$A$11,IF($C$5,8,0),1,1)) -> 28881.17969 | E95: =IF(A95>$A$8,"",OFFSET(InputPriceData!D$15,CalculationsAndCharts!$A95+$A$11,IF($C$5,8,0),1,1)) -> 29034.23047 | F95: =IF(A95>$A$8,"",OFFSET(InputPriceData!E$15,CalculationsAndCharts!$A95+$A$11,IF($C$5,8,0),1,1)) -> 28505.08984 | G95: =IF(A95>$A$8,"",OFFSET(InputPriceData!F$15,CalculationsAndCharts!$A95+$A$11,IF($C$5,8,0),1,1)) -> 28881.40039 | H95: 29627.3408 | I95: 2631.230468 | J95: 3451.271484 | K95: 2.220703 | L95: 0.762241536 | M95: -0.762241536 | N95: -0.6528399453 | O95: -65.28399453 | P95: 40 | Q95: -40 | BD95: 2528392900
A96: 64 | B96: =IF(A96>$A$8,"",OFFSET(InputPriceData!B$15,$A96+$A$11,0,1,1)) -> 2018-06-25 | C96: =IF(A96>$A$8,"",OFFSET(InputPriceData!G$15,CalculationsAndCharts!$A96+$A$11,IF($C$5,8,0),1,1)) -> 2300773700 | D96: =IF(A96>$A$8,"",OFFSET(InputPriceData!C$15,CalculationsAndCharts!$A96+$A$11,IF($C$5,8,0),1,1)) -> 29326.11914 | E96: =IF(A96>$A$8,"",OFFSET(InputPriceData!D$15,CalculationsAndCharts!$A96+$A$11,IF($C$5,8,0),1,1)) -> 29403.35938 | F96: =IF(A96>$A$8,"",OFFSET(InputPriceData!E$15,CalculationsAndCharts!$A96+$A$11,IF($C$5,8,0),1,1)) -> 28895.40039 | G96: =IF(A96>$A$8,"",OFFSET(InputPriceData!F$15,CalculationsAndCharts!$A96+$A$11,IF($C$5,8,0),1,1)) -> 28961.39062 | H96: 29634.83769 | I96: 2297.708984 | J96: 3451.271484 | K96: 2.220703 | L96: 0.6655420366 | M96: -0.6655420366 | N96: -0.5434383546 | O96: -54.34383546 | P96: 40 | Q96: -40 | BD96: 2300773700
A97: 65 | B97: =IF(A97>$A$8,"",OFFSET(InputPriceData!B$15,$A97+$A$11,0,1,1)) -> 2018-06-22 | C97: =IF(A97>$A$8,"",OFFSET(InputPriceData!G$15,CalculationsAndCharts!$A97+$A$11,IF($C$5,8,0),1,1)) -> 2153358900 | D97: =IF(A97>$A$8,"",OFFSET(InputPriceData!C$15,CalculationsAndCharts!$A97+$A$11,IF($C$5,8,0),1,1)) -> 29215.53906 | E97: =IF(A97>$A$8,"",OFFSET(InputPriceData!D$15,CalculationsAndCharts!$A97+$A$11,IF($C$5,8,0),1,1)) -> 29436.83984 | F97: =IF(A97>$A$8,"",OFFSET(InputPriceData!E$15,CalculationsAndCharts!$A97+$A$11,IF($C$5,8,0),1,1)) -> 29089.39062 | G97: =IF(A97>$A$8,"",OFFSET(InputPriceData!F$15,CalculationsAndCharts!$A97+$A$11,IF($C$5,8,0),1,1)) -> 29338.69922 | H97: =IF($A97>H$30,NA(),IF($A97=H$30,$G97,$C$24*($G97-H98)+H98)) -> 29641.606 | I97: =IF(A97>$I$30,NA(),ABS(G97-OFFSET(G97,$A$18,0,1,1))) -> 1754.75 | J97: =IF(A97>$J$30,NA(),MAX(OFFSET($I97,0,0,$A$17,1))) -> 3451.271484 | K97: =IF(A97>$J$30,NA(),MIN(OFFSET($I97,0,0,$A$17,1))) -> 2.220703 | L97: =IF(A97>$J$30,NA(),(I97-K97)/(J97-K97)) -> 0.5081193083 | M97: =IF(A97>$J$30,NA(),IF(G97>OFFSET(G97,$A$18,0,1,1),L97,IF(G97<OFFSET(G97,$A$18,0,1,1),-L97,0))) -> -0.5081193083 | N97: =IF(A97>$N$30,NA(),IF($A97=N$30,AVERAGE(OFFSET($M97,0,0,$A$19,1)),$C$19*($M97-N98)+N98)) -> -0.4213346727 | O97: =IF(A97>$N$30,NA(),N97*100) -> -42.13346727 | P97: 40 | Q97: -40 | BC97: 2153358900
A98: 66 | B98: =IF(A98>$A$8,"",OFFSET(InputPriceData!B$15,$A98+$A$11,0,1,1)) -> 2018-06-21 | C98: =IF(A98>$A$8,"",OFFSET(InputPriceData!G$15,CalculationsAndCharts!$A98+$A$11,IF($C$5,8,0),1,1)) -> 2026711800 | D98: =IF(A98>$A$8,"",OFFSET(InputPriceData!C$15,CalculationsAndCharts!$A98+$A$11,IF($C$5,8,0),1,1)) -> 29764.05078 | E98: =IF(A98>$A$8,"",OFFSET(InputPriceData!D$15,CalculationsAndCharts!$A98+$A$11,IF($C$5,8,0),1,1)) -> 29882.26953 | F98: =IF(A98>$A$8,"",OFFSET(InputPriceData!E$15,CalculationsAndCharts!$A98+$A$11,IF($C$5,8,0),1,1)) -> 29285.71094 | G98: =IF(A98>$A$8,"",OFFSET(InputPriceData!F$15,CalculationsAndCharts!$A98+$A$11,IF($C$5,8,0),1,1)) -> 29296.05078 | H98: 29644.65029 | I98: 1701.929688 | J98: 3451.271484 | K98: 2.220703 | L98: 0.4928048593 | M98: -0.4928048593 | N98: -0.3345500372 | O98: -33.45500372 | P98: =$F$17 -> 40 | Q98: =$F$18 -> -40 | BD98: 2026711800
A99: 67 | B99: =IF(A99>$A$8,"",OFFSET(InputPriceData!B$15,$A99+$A$11,0,1,1)) -> 2018-06-20 | C99: =IF(A99>$A$8,"",OFFSET(InputPriceData!G$15,CalculationsAndCharts!$A99+$A$11,IF($C$5,8,0),1,1)) -> 2235041100 | D99: =IF(A99>$A$8,"",OFFSET(InputPriceData!C$15,CalculationsAndCharts!$A99+$A$11,IF($C$5,8,0),1,1)) -> 29478.46094 | E99: =IF(A99>$A$8,"",OFFSET(InputPriceData!D$15,CalculationsAndCharts!$A99+$A$11,IF($C$5,8,0),1,1)) -> 29944.30078 | F99: =IF(A99>$A$8,"",OFFSET(InputPriceData!E$15,CalculationsAndCharts!$A99+$A$11,IF($C$5,8,0),1,1)) -> 29406.19922 | G99: =IF(A99>$A$8,"",OFFSET(InputPriceData!F$15,CalculationsAndCharts!$A99+$A$11,IF($C$5,8,0),1,1)) -> 29696.16992 | H99: 29648.1538 | I99: 796.740234 | J99: 3451.271484 | K99: 2.220703 | L99: 0.2303588962 | M99: -0.2303588962 | N99: -0.176295215 | O99: -17.6295215 | P99: 40 | Q99: -40 | BC99: 2235041100
A100: 68 | B100: =IF(A100>$A$8,"",OFFSET(InputPriceData!B$15,$A100+$A$11,0,1,1)) -> 2018-06-19 | C100: =IF(A100>$A$8,"",OFFSET(InputPriceData!G$15,CalculationsAndCharts!$A100+$A$11,IF($C$5,8,0),1,1)) -> 3563935000 | D100: =IF(A100>$A$8,"",OFFSET(InputPriceData!C$15,CalculationsAndCharts!$A100+$A$11,IF($C$5,8,0),1,1)) -> 29999.00977 | E100: =IF(A100>$A$8,"",OFFSET(InputPriceData!D$15,CalculationsAndCharts!$A100+$A$11,IF($C$5,8,0),1,1)) -> 30012.03906 | F100: =IF(A100>$A$8,"",OFFSET(InputPriceData!E$15,CalculationsAndCharts!$A100+$A$11,IF($C$5,8,0),1,1)) -> 29332.2793 | G100: =IF(A100>$A$8,"",OFFSET(InputPriceData!F$15,CalculationsAndCharts!$A100+$A$11,IF($C$5,8,0),1,1)) -> 29468.15039 | H100: 29647.67123 | I100: 1000.410156 | J100: 3451.271484 | K100: 2.220703 | L100: 0.2894099033 | M100: -0.2894099033 | N100: -0.1222315338 | O100: -12.22315338 | P100: 40 | Q100: -40 | BD100: 3563935000
A101: 69 | B101: =IF(A101>$A$8,"",OFFSET(InputPriceData!B$15,$A101+$A$11,0,1,1)) -> 2018-06-15 | C101: =IF(A101>$A$8,"",OFFSET(InputPriceData!G$15,CalculationsAndCharts!$A101+$A$11,IF($C$5,8,0),1,1)) -> 2336474000 | D101: =IF(A101>$A$8,"",OFFSET(InputPriceData!C$15,CalculationsAndCharts!$A101+$A$11,IF($C$5,8,0),1,1)) -> 30411.07031 | E101: =IF(A101>$A$8,"",OFFSET(InputPriceData!D$15,CalculationsAndCharts!$A101+$A$11,IF($C$5,8,0),1,1)) -> 30519.28906 | F101: =IF(A101>$A$8,"",OFFSET(InputPriceData!E$15,CalculationsAndCharts!$A101+$A$11,IF($C$5,8,0),1,1)) -> 30259.10938 | G101: =IF(A101>$A$8,"",OFFSET(InputPriceData!F$15,CalculationsAndCharts!$A101+$A$11,IF($C$5,8,0),1,1)) -> 30309.49023 | H101: 29649.47546 | I101: 252.701171 | J101: 3451.271484 | K101: 2.220703 | L101: 0.0726230154 | M101: 0.0726230154 | N101: 0.04494683574 | O101: 4.494683574 | P101: 40 | Q101: -40 | BD101: 2336474000
A102: 70 | B102: =IF(A102>$A$8,"",OFFSET(InputPriceData!B$15,$A102+$A$11,0,1,1)) -> 2018-06-14 | C102: =IF(A102>$A$8,"",OFFSET(InputPriceData!G$15,CalculationsAndCharts!$A102+$A$11,IF($C$5,8,0),1,1)) -> 2128385000 | D102: =IF(A102>$A$8,"",OFFSET(InputPriceData!C$15,CalculationsAndCharts!$A102+$A$11,IF($C$5,8,0),1,1)) -> 30684.07031 | E102: =IF(A102>$A$8,"",OFFSET(InputPriceData!D$15,CalculationsAndCharts!$A102+$A$11,IF($C$5,8,0),1,1)) -> 30777.96094 | F102: =IF(A102>$A$8,"",OFFSET(InputPriceData!E$15,CalculationsAndCharts!$A102+$A$11,IF($C$5,8,0),1,1)) -> 30349.96094 | G102: =IF(A102>$A$8,"",OFFSET(InputPriceData!F$15,CalculationsAndCharts!$A102+$A$11,IF($C$5,8,0),1,1)) -> 30440.16992 | H102: 29642.84214 | I102: 44.410156 | J102: 3451.271484 | K102: 2.220703 | L102: 0.01223219247 | M102: -0.01223219247 | N102: 0.01727065607 | O102: 1.727065607 | P102: 40 | Q102: -40 | BD102: 2128385000
A103: 71 | B103: =IF(A103>$A$8,"",OFFSET(InputPriceData!B$15,$A103+$A$11,0,1,1)) -> 2018-06-13 | C103: =IF(A103>$A$8,"",OFFSET(InputPriceData!G$15,CalculationsAndCharts!$A103+$A$11,IF($C$5,8,0),1,1)) -> 1630943500 | D103: =IF(A103>$A$8,"",OFFSET(InputPriceData!C$15,CalculationsAndCharts!$A103+$A$11,IF($C$5,8,0),1,1)) -> 30990.36914 | E103: =IF(A103>$A$8,"",OFFSET(InputPriceData!D$15,CalculationsAndCharts!$A103+$A$11,IF($C$5,8,0),1,1)) -> 31023.73047 | F103: =IF(A103>$A$8,"",OFFSET(InputPriceData!E$15,CalculationsAndCharts!$A103+$A$11,IF($C$5,8,0),1,1)) -> 30688.25977 | G103: =IF(A103>$A$8,"",OFFSET(InputPriceData!F$15,CalculationsAndCharts!$A103+$A$11,IF($C$5,8,0),1,1)) -> 30725.15039 | H103: 29634.8288 | I103: 67.109375 | J103: 3451.271484 | K103: 2.220703 | L103: 0.01881348699 | M103: -0.01881348699 | N103: 0.04677350461 | O103: 4.677350461 | P103: 40 | Q103: -40 | BD103: 1630943500
A104: 72 | B104: =IF(A104>$A$8,"",OFFSET(InputPriceData!B$15,$A104+$A$11,0,1,1)) -> 2018-06-12 | C104: =IF(A104>$A$8,"",OFFSET(InputPriceData!G$15,CalculationsAndCharts!$A104+$A$11,IF($C$5,8,0),1,1)) -> 1378992000 | D104: =IF(A104>$A$8,"",OFFSET(InputPriceData!C$15,CalculationsAndCharts!$A104+$A$11,IF($C$5,8,0),1,1)) -> 31029.84961 | E104: =IF(A104>$A$8,"",OFFSET(InputPriceData!D$15,CalculationsAndCharts!$A104+$A$11,IF($C$5,8,0),1,1)) -> 31242.85938 | F104: =IF(A104>$A$8,"",OFFSET(InputPriceData!E$15,CalculationsAndCharts!$A104+$A$11,IF($C$5,8,0),1,1)) -> 30944.9707 | G104: =IF(A104>$A$8,"",OFFSET(InputPriceData!F$15,CalculationsAndCharts!$A104+$A$11,IF($C$5,8,0),1,1)) -> 31103.06055 | H104: 29623.87079 | I104: 515.021484 | J104: 3451.271484 | K104: 2.220703 | L104: 0.1486788144 | M104: 0.1486788144 | N104: 0.1123604962 | O104: 11.23604962 | P104: 40 | Q104: -40 | BC104: 1378992000
A105: 73 | B105: =IF(A105>$A$8,"",OFFSET(InputPriceData!B$15,$A105+$A$11,0,1,1)) -> 2018-06-11 | C105: =IF(A105>$A$8,"",OFFSET(InputPriceData!G$15,CalculationsAndCharts!$A105+$A$11,IF($C$5,8,0),1,1)) -> 1323340300 | D105: =IF(A105>$A$8,"",OFFSET(InputPriceData!C$15,CalculationsAndCharts!$A105+$A$11,IF($C$5,8,0),1,1)) -> 31016.51953 | E105: =IF(A105>$A$8,"",OFFSET(InputPriceData!D$15,CalculationsAndCharts!$A105+$A$11,IF($C$5,8,0),1,1)) -> 31134.0293 | F105: =IF(A105>$A$8,"",OFFSET(InputPriceData!E$15,CalculationsAndCharts!$A105+$A$11,IF($C$5,8,0),1,1)) -> 30898.57031 | G105: =IF(A105>$A$8,"",OFFSET(InputPriceData!F$15,CalculationsAndCharts!$A105+$A$11,IF($C$5,8,0),1,1)) -> 31063.69922 | H105: 29609.00456 | I105: 303.289063 | J105: 3451.271484 | K105: 2.220703 | L105: 0.08729020798 | M105: 0.08729020798 | N105: 0.07604217801 | O105: 7.604217801 | P105: 40 | Q105: -40 | BC105: 1323340300
A106: 74 | B106: =IF(A106>$A$8,"",OFFSET(InputPriceData!B$15,$A106+$A$11,0,1,1)) -> 2018-06-08 | C106: =IF(A106>$A$8,"",OFFSET(InputPriceData!G$15,CalculationsAndCharts!$A106+$A$11,IF($C$5,8,0),1,1)) -> 1721286300 | D106: =IF(A106>$A$8,"",OFFSET(InputPriceData!C$15,CalculationsAndCharts!$A106+$A$11,IF($C$5,8,0),1,1)) -> 31435.25977 | E106: =IF(A106>$A$8,"",OFFSET(InputPriceData!D$15,CalculationsAndCharts!$A106+$A$11,IF($C$5,8,0),1,1)) -> 31435.25977 | F106: =IF(A106>$A$8,"",OFFSET(InputPriceData!E$15,CalculationsAndCharts!$A106+$A$11,IF($C$5,8,0),1,1)) -> 30874.09961 | G106: =IF(A106>$A$8,"",OFFSET(InputPriceData!F$15,CalculationsAndCharts!$A106+$A$11,IF($C$5,8,0),1,1)) -> 30958.21094 | H106: 29594.38452 | I106: 292.570313 | J106: 3451.271484 | K106: 2.220703 | L106: 0.08418246887 | M106: 0.08418246887 | N106: 0.06479414804 | O106: 6.479414804 | P106: 40 | Q106: -40 | BD106: 1721286300
A107: 75 | B107: =IF(A107>$A$8,"",OFFSET(InputPriceData!B$15,$A107+$A$11,0,1,1)) -> 2018-06-07 | C107: =IF(A107>$A$8,"",OFFSET(InputPriceData!G$15,CalculationsAndCharts!$A107+$A$11,IF($C$5,8,0),1,1)) -> 1937967000 | D107: =IF(A107>$A$8,"",OFFSET(InputPriceData!C$15,CalculationsAndCharts!$A107+$A$11,IF($C$5,8,0),1,1)) -> 31464.63086 | E107: =IF(A107>$A$8,"",OFFSET(InputPriceData!D$15,CalculationsAndCharts!$A107+$A$11,IF($C$5,8,0),1,1)) -> 31521.13086 | F107: =IF(A107>$A$8,"",OFFSET(InputPriceData!E$15,CalculationsAndCharts!$A107+$A$11,IF($C$5,8,0),1,1)) -> 31369.2793 | G107: =IF(A107>$A$8,"",OFFSET(InputPriceData!F$15,CalculationsAndCharts!$A107+$A$11,IF($C$5,8,0),1,1)) -> 31512.63086 | H107: 29580.67772 | I107: 278.28125 | J107: 3451.271484 | K107: 2.220703 | L107: 0.08003957162 | M107: 0.08003957162 | N107: 0.04540582722 | O107: 4.540582722 | P107: 40 | Q107: -40 | BC107: 1937967000
A108: 76 | B108: =IF(A108>$A$8,"",OFFSET(InputPriceData!B$15,$A108+$A$11,0,1,1)) -> 2018-06-06 | C108: =IF(A108>$A$8,"",OFFSET(InputPriceData!G$15,CalculationsAndCharts!$A108+$A$11,IF($C$5,8,0),1,1)) -> 1465410700 | D108: =IF(A108>$A$8,"",OFFSET(InputPriceData!C$15,CalculationsAndCharts!$A108+$A$11,IF($C$5,8,0),1,1)) -> 31162.01953 | E108: =IF(A108>$A$8,"",OFFSET(InputPriceData!D$15,CalculationsAndCharts!$A108+$A$11,IF($C$5,8,0),1,1)) -> 31332.41992 | F108: =IF(A108>$A$8,"",OFFSET(InputPriceData!E$15,CalculationsAndCharts!$A108+$A$11,IF($C$5,8,0),1,1)) -> 31161.36914 | G108: =IF(A108>$A$8,"",OFFSET(InputPriceData!F$15,CalculationsAndCharts!$A108+$A$11,IF($C$5,8,0),1,1)) -> 31259.09961 | H108: 29561.26111 | I108: 211.189453 | J108: 3451.271484 | K108: 2.220703 | L108: 0.06058732192 | M108: 0.06058732192 | N108: 0.01077208282 | O108: 1.077208282 | P108: 40 | Q108: -40 | BC108: 1465410700
A109: 77 | B109: =IF(A109>$A$8,"",OFFSET(InputPriceData!B$15,$A109+$A$11,0,1,1)) -> 2018-06-05 | C109: =IF(A109>$A$8,"",OFFSET(InputPriceData!G$15,CalculationsAndCharts!$A109+$A$11,IF($C$5,8,0),1,1)) -> 1722042700 | D109: =IF(A109>$A$8,"",OFFSET(InputPriceData!C$15,CalculationsAndCharts!$A109+$A$11,IF($C$5,8,0),1,1)) -> 31009.4707 | E109: =IF(A109>$A$8,"",OFFSET(InputPriceData!D$15,CalculationsAndCharts!$A109+$A$11,IF($C$5,8,0),1,1)) -> 31188.92969 | F109: =IF(A109>$A$8,"",OFFSET(InputPriceData!E$15,CalculationsAndCharts!$A109+$A$11,IF($C$5,8,0),1,1)) -> 30896.10938 | G109: =IF(A109>$A$8,"",OFFSET(InputPriceData!F$15,CalculationsAndCharts!$A109+$A$11,IF($C$5,8,0),1,1)) -> 31093.44922 | H109: 29544.1974 | I109: 151.298828 | J109: 3451.271484 | K109: 2.220703 | L109: 0.04322294291 | M109: 0.04322294291 | N109: -0.03904315628 | O109: -3.904315628 | P109: 40 | Q109: -40 | BC109: =IF(G109>=G110,C109,NA()) -> 1722042700 | BD109: =IF(G109<G110,C109,NA()) -> 
A110: 78 | B110: =IF(A110>$A$8,"",OFFSET(InputPriceData!B$15,$A110+$A$11,0,1,1)) -> 2018-06-04 | C110: =IF(A110>$A$8,"",OFFSET(InputPriceData!G$15,CalculationsAndCharts!$A110+$A$11,IF($C$5,8,0),1,1)) -> 1836620100 | D110: =IF(A110>$A$8,"",OFFSET(InputPriceData!C$15,CalculationsAndCharts!$A110+$A$11,IF($C$5,8,0),1,1)) -> 30836.76953 | E110: =IF(A110>$A$8,"",OFFSET(InputPriceData!D$15,CalculationsAndCharts!$A110+$A$11,IF($C$5,8,0),1,1)) -> 31012.91992 | F110: =IF(A110>$A$8,"",OFFSET(InputPriceData!E$15,CalculationsAndCharts!$A110+$A$11,IF($C$5,8,0),1,1)) -> 30743.17969 | G110: =IF(A110>$A$8,"",OFFSET(InputPriceData!F$15,CalculationsAndCharts!$A110+$A$11,IF($C$5,8,0),1,1)) -> 30997.98047 | H110: 29528.62703 | I110: 112.21875 | J110: 3451.271484 | K110: 2.220703 | L110: 0.03189226659 | M110: -0.03189226659 | N110: -0.1213092555 | O110: -12.13092555 | P110: 40 | Q110: -40 | BC110: 1836620100
A111: 79 | B111: =IF(A111>$A$8,"",OFFSET(InputPriceData!B$15,$A111+$A$11,0,1,1)) -> 2018-06-01 | C111: =IF(A111>$A$8,"",OFFSET(InputPriceData!G$15,CalculationsAndCharts!$A111+$A$11,IF($C$5,8,0),1,1)) -> 2778527900 | D111: =IF(A111>$A$8,"",OFFSET(InputPriceData!C$15,CalculationsAndCharts!$A111+$A$11,IF($C$5,8,0),1,1)) -> 30548.7793 | E111: =IF(A111>$A$8,"",OFFSET(InputPriceData!D$15,CalculationsAndCharts!$A111+$A$11,IF($C$5,8,0),1,1)) -> 30581.11914 | F111: =IF(A111>$A$8,"",OFFSET(InputPriceData!E$15,CalculationsAndCharts!$A111+$A$11,IF($C$5,8,0),1,1)) -> 30363.49023 | G111: =IF(A111>$A$8,"",OFFSET(InputPriceData!F$15,CalculationsAndCharts!$A111+$A$11,IF($C$5,8,0),1,1)) -> 30492.91016 | H111: 29513.85966 | I111: 659.119141 | J111: 3451.271484 | K111: 2.220703 | L111: 0.1904577461 | M111: -0.1904577461 | N111: -0.2107262443 | O111: -21.07262443 | P111: 40 | Q111: -40 | BC111: 2778527900
A112: 80 | B112: =IF(A112>$A$8,"",OFFSET(InputPriceData!B$15,$A112+$A$11,0,1,1)) -> 2018-05-31 | C112: =IF(A112>$A$8,"",OFFSET(InputPriceData!G$15,CalculationsAndCharts!$A112+$A$11,IF($C$5,8,0),1,1)) -> 4110003600 | D112: =IF(A112>$A$8,"",OFFSET(InputPriceData!C$15,CalculationsAndCharts!$A112+$A$11,IF($C$5,8,0),1,1)) -> 30274.17969 | E112: =IF(A112>$A$8,"",OFFSET(InputPriceData!D$15,CalculationsAndCharts!$A112+$A$11,IF($C$5,8,0),1,1)) -> 30533.58008 | F112: =IF(A112>$A$8,"",OFFSET(InputPriceData!E$15,CalculationsAndCharts!$A112+$A$11,IF($C$5,8,0),1,1)) -> 30148.42969 | G112: =IF(A112>$A$8,"",OFFSET(InputPriceData!F$15,CalculationsAndCharts!$A112+$A$11,IF($C$5,8,0),1,1)) -> 30468.56055 | H112: 29504.01996 | I112: 1072.519531 | J112: 3451.271484 | K112: 2.220703 | L112: 0.3103169237 | M112: -0.3103169237 | N112: -0.2309947426 | O112: -23.09947426 | P112: 40 | Q112: -40 | BC112: 4110003600
A113: 81 | B113: =IF(A113>$A$8,"",OFFSET(InputPriceData!B$15,$A113+$A$11,0,1,1)) -> 2018-05-30 | C113: =IF(A113>$A$8,"",OFFSET(InputPriceData!G$15,CalculationsAndCharts!$A113+$A$11,IF($C$5,8,0),1,1)) -> 2407803400 | D113: =IF(A113>$A$8,"",OFFSET(InputPriceData!C$15,CalculationsAndCharts!$A113+$A$11,IF($C$5,8,0),1,1)) -> 30109.36914 | E113: =IF(A113>$A$8,"",OFFSET(InputPriceData!D$15,CalculationsAndCharts!$A113+$A$11,IF($C$5,8,0),1,1)) -> 30241.23047 | F113: =IF(A113>$A$8,"",OFFSET(InputPriceData!E$15,CalculationsAndCharts!$A113+$A$11,IF($C$5,8,0),1,1)) -> 29964.33984 | G113: =IF(A113>$A$8,"",OFFSET(InputPriceData!F$15,CalculationsAndCharts!$A113+$A$11,IF($C$5,8,0),1,1)) -> 30056.78906 | H113: 29494.32608 | I113: 1065.271484 | J113: 3451.271484 | K113: 2.220703 | L113: 0.3082154623 | M113: -0.3082154623 | N113: -0.1516725614 | O113: -15.16725614 | P113: 40 | Q113: -40 | BD113: 2407803400
A114: 82 | B114: =IF(A114>$A$8,"",OFFSET(InputPriceData!B$15,$A114+$A$11,0,1,1)) -> 2018-05-29 | C114: =IF(A114>$A$8,"",OFFSET(InputPriceData!G$15,CalculationsAndCharts!$A114+$A$11,IF($C$5,8,0),1,1)) -> 1658628600 | D114: =IF(A114>$A$8,"",OFFSET(InputPriceData!C$15,CalculationsAndCharts!$A114+$A$11,IF($C$5,8,0),1,1)) -> 30647.25977 | E114: =IF(A114>$A$8,"",OFFSET(InputPriceData!D$15,CalculationsAndCharts!$A114+$A$11,IF($C$5,8,0),1,1)) -> 30713.32031 | F114: =IF(A114>$A$8,"",OFFSET(InputPriceData!E$15,CalculationsAndCharts!$A114+$A$11,IF($C$5,8,0),1,1)) -> 30454.17969 | G114: =IF(A114>$A$8,"",OFFSET(InputPriceData!F$15,CalculationsAndCharts!$A114+$A$11,IF($C$5,8,0),1,1)) -> 30484.58008 | H114: 29488.67319 | I114: 324.640625 | J114: 3451.271484 | K114: 2.220703 | L114: 0.09348076977 | M114: -0.09348076977 | N114: 0.004870339475 | O114: 0.4870339475 | P114: 40 | Q114: -40 | BD114: 1658628600
A115: 83 | B115: =IF(A115>$A$8,"",OFFSET(InputPriceData!B$15,$A115+$A$11,0,1,1)) -> 2018-05-28 | C115: =IF(A115>$A$8,"",OFFSET(InputPriceData!G$15,CalculationsAndCharts!$A115+$A$11,IF($C$5,8,0),1,1)) -> 1736227200 | D115: =IF(A115>$A$8,"",OFFSET(InputPriceData!C$15,CalculationsAndCharts!$A115+$A$11,IF($C$5,8,0),1,1)) -> 30759.83984 | E115: =IF(A115>$A$8,"",OFFSET(InputPriceData!D$15,CalculationsAndCharts!$A115+$A$11,IF($C$5,8,0),1,1)) -> 30839.30078 | F115: =IF(A115>$A$8,"",OFFSET(InputPriceData!E$15,CalculationsAndCharts!$A115+$A$11,IF($C$5,8,0),1,1)) -> 30530.4707 | G115: =IF(A115>$A$8,"",OFFSET(InputPriceData!F$15,CalculationsAndCharts!$A115+$A$11,IF($C$5,8,0),1,1)) -> 30792.25977 | H115: 29478.66407 | I115: 256.119141 | J115: 3451.271484 | K115: 2.220703 | L115: 0.073614004 | M115: 0.073614004 | N115: 0.1032214487 | O115: 10.32214487 | P115: 40 | Q115: -40 | BC115: 1736227200
A116: 84 | B116: =IF(A116>$A$8,"",OFFSET(InputPriceData!B$15,$A116+$A$11,0,1,1)) -> 2018-05-25 | C116: =IF(A116>$A$8,"",OFFSET(InputPriceData!G$15,CalculationsAndCharts!$A116+$A$11,IF($C$5,8,0),1,1)) -> 1677533500 | D116: =IF(A116>$A$8,"",OFFSET(InputPriceData!C$15,CalculationsAndCharts!$A116+$A$11,IF($C$5,8,0),1,1)) -> 30664.26953 | E116: =IF(A116>$A$8,"",OFFSET(InputPriceData!D$15,CalculationsAndCharts!$A116+$A$11,IF($C$5,8,0),1,1)) -> 30736.9707 | F116: =IF(A116>$A$8,"",OFFSET(InputPriceData!E$15,CalculationsAndCharts!$A116+$A$11,IF($C$5,8,0),1,1)) -> 30525.74023 | G116: =IF(A116>$A$8,"",OFFSET(InputPriceData!F$15,CalculationsAndCharts!$A116+$A$11,IF($C$5,8,0),1,1)) -> 30588.03906 | H116: 29465.46211 | I116: 185.228516 | J116: 3451.271484 | K116: 2.220703 | L116: 0.05306034171 | M116: 0.05306034171 | N116: 0.1328288934 | O116: 13.28288934 | P116: 40 | Q116: -40 | BD116: 1677533500
A117: 85 | B117: =IF(A117>$A$8,"",OFFSET(InputPriceData!B$15,$A117+$A$11,0,1,1)) -> 2018-05-24 | C117: =IF(A117>$A$8,"",OFFSET(InputPriceData!G$15,CalculationsAndCharts!$A117+$A$11,IF($C$5,8,0),1,1)) -> 1579074300 | D117: =IF(A117>$A$8,"",OFFSET(InputPriceData!C$15,CalculationsAndCharts!$A117+$A$11,IF($C$5,8,0),1,1)) -> 30718.66016 | E117: =IF(A117>$A$8,"",OFFSET(InputPriceData!D$15,CalculationsAndCharts!$A117+$A$11,IF($C$5,8,0),1,1)) -> 30788.9707 | F117: =IF(A117>$A$8,"",OFFSET(InputPriceData!E$15,CalculationsAndCharts!$A117+$A$11,IF($C$5,8,0),1,1)) -> 30589.38086 | G117: =IF(A117>$A$8,"",OFFSET(InputPriceData!F$15,CalculationsAndCharts!$A117+$A$11,IF($C$5,8,0),1,1)) -> 30760.41016 | H117: 29454.17993 | I117: 766.15039 | J117: 3451.271484 | K117: 2.220703 | L117: 0.2214898346 | M117: 0.2214898346 | N117: 0.2125974452 | O117: 21.25974452 | P117: 40 | Q117: -40 | BC117: 1579074300
A118: 86 | B118: =IF(A118>$A$8,"",OFFSET(InputPriceData!B$15,$A118+$A$11,0,1,1)) -> 2018-05-23 | C118: =IF(A118>$A$8,"",OFFSET(InputPriceData!G$15,CalculationsAndCharts!$A118+$A$11,IF($C$5,8,0),1,1)) -> 2434017000 | D118: =IF(A118>$A$8,"",OFFSET(InputPriceData!C$15,CalculationsAndCharts!$A118+$A$11,IF($C$5,8,0),1,1)) -> 31191.86914 | E118: =IF(A118>$A$8,"",OFFSET(InputPriceData!D$15,CalculationsAndCharts!$A118+$A$11,IF($C$5,8,0),1,1)) -> 31191.86914 | F118: =IF(A118>$A$8,"",OFFSET(InputPriceData!E$15,CalculationsAndCharts!$A118+$A$11,IF($C$5,8,0),1,1)) -> 30665.64062 | G118: =IF(A118>$A$8,"",OFFSET(InputPriceData!F$15,CalculationsAndCharts!$A118+$A$11,IF($C$5,8,0),1,1)) -> 30665.64062 | H118: 29441.05198 | I118: 739.140625 | J118: 3451.271484 | K118: 2.220703 | L118: 0.2136587626 | M118: 0.2136587626 | N118: 0.2037050558 | O118: 20.37050558 | P118: 40 | Q118: -40 | BD118: 2434017000
A119: 87 | B119: =IF(A119>$A$8,"",OFFSET(InputPriceData!B$15,$A119+$A$11,0,1,1)) -> 2018-05-21 | C119: =IF(A119>$A$8,"",OFFSET(InputPriceData!G$15,CalculationsAndCharts!$A119+$A$11,IF($C$5,8,0),1,1)) -> 1599624500 | D119: =IF(A119>$A$8,"",OFFSET(InputPriceData!C$15,CalculationsAndCharts!$A119+$A$11,IF($C$5,8,0),1,1)) -> 31232.78906 | E119: =IF(A119>$A$8,"",OFFSET(InputPriceData!D$15,CalculationsAndCharts!$A119+$A$11,IF($C$5,8,0),1,1)) -> 31464.09961 | F119: =IF(A119>$A$8,"",OFFSET(InputPriceData!E$15,CalculationsAndCharts!$A119+$A$11,IF($C$5,8,0),1,1)) -> 31232.78906 | G119: =IF(A119>$A$8,"",OFFSET(InputPriceData!F$15,CalculationsAndCharts!$A119+$A$11,IF($C$5,8,0),1,1)) -> 31234.34961 | H119: 29428.74456 | I119: 920.980468 | J119: 3451.271484 | K119: 2.220703 | L119: 0.2663804691 | M119: 0.2663804691 | N119: 0.193751349 | O119: 19.3751349 | P119: 40 | Q119: -40 | BC119: 1599624500
A120: 88 | B120: =IF(A120>$A$8,"",OFFSET(InputPriceData!B$15,$A120+$A$11,0,1,1)) -> 2018-05-18 | C120: =IF(A120>$A$8,"",OFFSET(InputPriceData!G$15,CalculationsAndCharts!$A120+$A$11,IF($C$5,8,0),1,1)) -> 1722070700 | D120: =IF(A120>$A$8,"",OFFSET(InputPriceData!C$15,CalculationsAndCharts!$A120+$A$11,IF($C$5,8,0),1,1)) -> 31033.9707 | E120: =IF(A120>$A$8,"",OFFSET(InputPriceData!D$15,CalculationsAndCharts!$A120+$A$11,IF($C$5,8,0),1,1)) -> 31148.06055 | F120: =IF(A120>$A$8,"",OFFSET(InputPriceData!E$15,CalculationsAndCharts!$A120+$A$11,IF($C$5,8,0),1,1)) -> 30904.67969 | G120: =IF(A120>$A$8,"",OFFSET(InputPriceData!F$15,CalculationsAndCharts!$A120+$A$11,IF($C$5,8,0),1,1)) -> 31047.91016 | H120: 29410.59778 | I120: 324.029297 | J120: 3451.271484 | K120: 2.220703 | L120: 0.09330352449 | M120: 0.09330352449 | N120: 0.1211222288 | O120: 12.11222288 | P120: 40 | Q120: -40 | BC120: 1722070700
A121: 89 | B121: =IF(A121>$A$8,"",OFFSET(InputPriceData!B$15,$A121+$A$11,0,1,1)) -> 2018-05-17 | C121: =IF(A121>$A$8,"",OFFSET(InputPriceData!G$15,CalculationsAndCharts!$A121+$A$11,IF($C$5,8,0),1,1)) -> 1499907300 | D121: =IF(A121>$A$8,"",OFFSET(InputPriceData!C$15,CalculationsAndCharts!$A121+$A$11,IF($C$5,8,0),1,1)) -> 31416.71094 | E121: =IF(A121>$A$8,"",OFFSET(InputPriceData!D$15,CalculationsAndCharts!$A121+$A$11,IF($C$5,8,0),1,1)) -> 31416.71094 | F121: =IF(A121>$A$8,"",OFFSET(InputPriceData!E$15,CalculationsAndCharts!$A121+$A$11,IF($C$5,8,0),1,1)) -> 30942.15039 | G121: =IF(A121>$A$8,"",OFFSET(InputPriceData!F$15,CalculationsAndCharts!$A121+$A$11,IF($C$5,8,0),1,1)) -> 30942.15039 | H121: 29394.14238 | I121: 133.701172 | J121: 3451.271484 | K121: 2.220703 | L121: 0.03812076926 | M121: 0.03812076926 | N121: 0.1489409332 | O121: 14.89409332 | P121: 40 | Q121: -40 | BD121: 1499907300
A122: 90 | B122: =IF(A122>$A$8,"",OFFSET(InputPriceData!B$15,$A122+$A$11,0,1,1)) -> 2018-05-16 | C122: =IF(A122>$A$8,"",OFFSET(InputPriceData!G$15,CalculationsAndCharts!$A122+$A$11,IF($C$5,8,0),1,1)) -> 1348037300 | D122: =IF(A122>$A$8,"",OFFSET(InputPriceData!C$15,CalculationsAndCharts!$A122+$A$11,IF($C$5,8,0),1,1)) -> 31014.7207 | E122: =IF(A122>$A$8,"",OFFSET(InputPriceData!D$15,CalculationsAndCharts!$A122+$A$11,IF($C$5,8,0),1,1)) -> 31218.08008 | F122: =IF(A122>$A$8,"",OFFSET(InputPriceData!E$15,CalculationsAndCharts!$A122+$A$11,IF($C$5,8,0),1,1)) -> 30818.7793 | G122: =IF(A122>$A$8,"",OFFSET(InputPriceData!F$15,CalculationsAndCharts!$A122+$A$11,IF($C$5,8,0),1,1)) -> 31110.19922 | H122: 29378.58451 | I122: 829.529297 | J122: 3451.271484 | K122: 2.220703 | L122: 0.2398655881 | M122: 0.2398655881 | N122: 0.259761097 | O122: 25.9761097 | P122: 40 | Q122: -40 | BD122: 1348037300
A123: 91 | B123: =IF(A123>$A$8,"",OFFSET(InputPriceData!B$15,$A123+$A$11,0,1,1)) -> 2018-05-15 | C123: =IF(A123>$A$8,"",OFFSET(InputPriceData!G$15,CalculationsAndCharts!$A123+$A$11,IF($C$5,8,0),1,1)) -> 1566899600 | D123: =IF(A123>$A$8,"",OFFSET(InputPriceData!C$15,CalculationsAndCharts!$A123+$A$11,IF($C$5,8,0),1,1)) -> 31573.17969 | E123: =IF(A123>$A$8,"",OFFSET(InputPriceData!D$15,CalculationsAndCharts!$A123+$A$11,IF($C$5,8,0),1,1)) -> 31573.17969 | F123: =IF(A123>$A$8,"",OFFSET(InputPriceData!E$15,CalculationsAndCharts!$A123+$A$11,IF($C$5,8,0),1,1)) -> 31152.0293 | G123: =IF(A123>$A$8,"",OFFSET(InputPriceData!F$15,CalculationsAndCharts!$A123+$A$11,IF($C$5,8,0),1,1)) -> 31152.0293 | H123: 29361.18134 | I123: 1144.349609 | J123: 3451.271484 | K123: 2.220703 | L123: 0.3311429661 | M123: 0.3311429661 | N123: 0.279656606 | O123: 27.9656606 | P123: 40 | Q123: -40 | BD123: 1566899600
A124: 92 | B124: =IF(A124>$A$8,"",OFFSET(InputPriceData!B$15,$A124+$A$11,0,1,1)) -> 2018-05-14 | C124: =IF(A124>$A$8,"",OFFSET(InputPriceData!G$15,CalculationsAndCharts!$A124+$A$11,IF($C$5,8,0),1,1)) -> 1794416600 | D124: =IF(A124>$A$8,"",OFFSET(InputPriceData!C$15,CalculationsAndCharts!$A124+$A$11,IF($C$5,8,0),1,1)) -> 31498.35938 | E124: =IF(A124>$A$8,"",OFFSET(InputPriceData!D$15,CalculationsAndCharts!$A124+$A$11,IF($C$5,8,0),1,1)) -> 31592.56055 | F124: =IF(A124>$A$8,"",OFFSET(InputPriceData!E$15,CalculationsAndCharts!$A124+$A$11,IF($C$5,8,0),1,1)) -> 31423.57031 | G124: =IF(A124>$A$8,"",OFFSET(InputPriceData!F$15,CalculationsAndCharts!$A124+$A$11,IF($C$5,8,0),1,1)) -> 31541.08008 | H124: 29343.18287 | I124: 1212.929687 | J124: 3451.271484 | K124: 2.220703 | L124: 0.3510267204 | M124: 0.3510267204 | N124: 0.2281702458 | O124: 22.81702458 | P124: 40 | Q124: -40 | BC124: 1794416600
A125: 93 | B125: =IF(A125>$A$8,"",OFFSET(InputPriceData!B$15,$A125+$A$11,0,1,1)) -> 2018-05-11 | C125: =IF(A125>$A$8,"",OFFSET(InputPriceData!G$15,CalculationsAndCharts!$A125+$A$11,IF($C$5,8,0),1,1)) -> 1627487900 | D125: =IF(A125>$A$8,"",OFFSET(InputPriceData!C$15,CalculationsAndCharts!$A125+$A$11,IF($C$5,8,0),1,1)) -> 31151.80078 | E125: =IF(A125>$A$8,"",OFFSET(InputPriceData!D$15,CalculationsAndCharts!$A125+$A$11,IF($C$5,8,0),1,1)) -> 31277.39062 | F125: =IF(A125>$A$8,"",OFFSET(InputPriceData!E$15,CalculationsAndCharts!$A125+$A$11,IF($C$5,8,0),1,1)) -> 31032.43945 | G125: =IF(A125>$A$8,"",OFFSET(InputPriceData!F$15,CalculationsAndCharts!$A125+$A$11,IF($C$5,8,0),1,1)) -> 31122.06055 | H125: 29321.09345 | I125: 485.820313 | J125: 3451.271484 | K125: 2.220703 | L125: 0.1402123775 | M125: 0.1402123775 | N125: 0.1053137713 | O125: 10.53137713 | P125: 40 | Q125: -40 | BC125: 1627487900
A126: 94 | B126: =IF(A126>$A$8,"",OFFSET(InputPriceData!B$15,$A126+$A$11,0,1,1)) -> 2018-05-10 | C126: =IF(A126>$A$8,"",OFFSET(InputPriceData!G$15,CalculationsAndCharts!$A126+$A$11,IF($C$5,8,0),1,1)) -> 1534597300 | D126: =IF(A126>$A$8,"",OFFSET(InputPriceData!C$15,CalculationsAndCharts!$A126+$A$11,IF($C$5,8,0),1,1)) -> 30716.9707 | E126: =IF(A126>$A$8,"",OFFSET(InputPriceData!D$15,CalculationsAndCharts!$A126+$A$11,IF($C$5,8,0),1,1)) -> 30851.30078 | F126: =IF(A126>$A$8,"",OFFSET(InputPriceData!E$15,CalculationsAndCharts!$A126+$A$11,IF($C$5,8,0),1,1)) -> 30712.92969 | G126: =IF(A126>$A$8,"",OFFSET(InputPriceData!F$15,CalculationsAndCharts!$A126+$A$11,IF($C$5,8,0),1,1)) -> 30809.2207 | H126: 29302.99328 | I126: 554.820312 | J126: 3451.271484 | K126: 2.220703 | L126: 0.1602178814 | M126: 0.1602178814 | N126: 0.07041516515 | O126: 7.041516515 | P126: 40 | Q126: -40 | BC126: 1534597300
A127: 95 | B127: =IF(A127>$A$8,"",OFFSET(InputPriceData!B$15,$A127+$A$11,0,1,1)) -> 2018-05-09 | C127: =IF(A127>$A$8,"",OFFSET(InputPriceData!G$15,CalculationsAndCharts!$A127+$A$11,IF($C$5,8,0),1,1)) -> 1360669300 | D127: =IF(A127>$A$8,"",OFFSET(InputPriceData!C$15,CalculationsAndCharts!$A127+$A$11,IF($C$5,8,0),1,1)) -> 30452.16016 | E127: =IF(A127>$A$8,"",OFFSET(InputPriceData!D$15,CalculationsAndCharts!$A127+$A$11,IF($C$5,8,0),1,1)) -> 30568.75977 | F127: =IF(A127>$A$8,"",OFFSET(InputPriceData!E$15,CalculationsAndCharts!$A127+$A$11,IF($C$5,8,0),1,1)) -> 30346.61914 | G127: =IF(A127>$A$8,"",OFFSET(InputPriceData!F$15,CalculationsAndCharts!$A127+$A$11,IF($C$5,8,0),1,1)) -> 30536.14062 | H127: 29287.85532 | I127: 117.810547 | J127: 3451.271484 | K127: 2.220703 | L127: 0.03351352338 | M127: 0.03351352338 | N127: -0.01938755111 | O127: -1.938755111 | P127: 40 | Q127: -40 | BC127: 1360669300
A128: 96 | B128: =IF(A128>$A$8,"",OFFSET(InputPriceData!B$15,$A128+$A$11,0,1,1)) -> 2018-05-08 | C128: =IF(A128>$A$8,"",OFFSET(InputPriceData!G$15,CalculationsAndCharts!$A128+$A$11,IF($C$5,8,0),1,1)) -> 1623605700 | D128: =IF(A128>$A$8,"",OFFSET(InputPriceData!C$15,CalculationsAndCharts!$A128+$A$11,IF($C$5,8,0),1,1)) -> 30123.76953 | E128: =IF(A128>$A$8,"",OFFSET(InputPriceData!D$15,CalculationsAndCharts!$A128+$A$11,IF($C$5,8,0),1,1)) -> 30444.2207 | F128: =IF(A128>$A$8,"",OFFSET(InputPriceData!E$15,CalculationsAndCharts!$A128+$A$11,IF($C$5,8,0),1,1)) -> 30123.76953 | G128: =IF(A128>$A$8,"",OFFSET(InputPriceData!F$15,CalculationsAndCharts!$A128+$A$11,IF($C$5,8,0),1,1)) -> 30402.81055 | H128: 29275.30973 | I128: 305.628906 | J128: 3451.271484 | K128: 2.220703 | L128: 0.08796860999 | M128: -0.08796860999 | N128: -0.07228862561 | O128: -7.228862561 | P128: 40 | Q128: -40 | BC128: 1623605700
A129: 97 | B129: =IF(A129>$A$8,"",OFFSET(InputPriceData!B$15,$A129+$A$11,0,1,1)) -> 2018-05-07 | C129: =IF(A129>$A$8,"",OFFSET(InputPriceData!G$15,CalculationsAndCharts!$A129+$A$11,IF($C$5,8,0),1,1)) -> 1441380300 | D129: =IF(A129>$A$8,"",OFFSET(InputPriceData!C$15,CalculationsAndCharts!$A129+$A$11,IF($C$5,8,0),1,1)) -> 30102.06055 | E129: =IF(A129>$A$8,"",OFFSET(InputPriceData!D$15,CalculationsAndCharts!$A129+$A$11,IF($C$5,8,0),1,1)) -> 30138.33008 | F129: =IF(A129>$A$8,"",OFFSET(InputPriceData!E$15,CalculationsAndCharts!$A129+$A$11,IF($C$5,8,0),1,1)) -> 29791.86914 | G129: =IF(A129>$A$8,"",OFFSET(InputPriceData!F$15,CalculationsAndCharts!$A129+$A$11,IF($C$5,8,0),1,1)) -> 29994.25977 | H129: 29263.97807 | I129: 289.990234 | J129: 3451.271484 | K129: 2.220703 | L129: 0.08343441407 | M129: -0.08343441407 | N129: -0.05660864123 | O129: -5.660864123 | P129: 40 | Q129: -40 | BC129: 1441380300
A130: 98 | B130: =IF(A130>$A$8,"",OFFSET(InputPriceData!B$15,$A130+$A$11,0,1,1)) -> 2018-05-04 | C130: =IF(A130>$A$8,"",OFFSET(InputPriceData!G$15,CalculationsAndCharts!$A130+$A$11,IF($C$5,8,0),1,1)) -> 1754754700 | D130: =IF(A130>$A$8,"",OFFSET(InputPriceData!C$15,CalculationsAndCharts!$A130+$A$11,IF($C$5,8,0),1,1)) -> 30316.98047 | E130: =IF(A130>$A$8,"",OFFSET(InputPriceData!D$15,CalculationsAndCharts!$A130+$A$11,IF($C$5,8,0),1,1)) -> 30341.46094 | F130: =IF(A130>$A$8,"",OFFSET(InputPriceData!E$15,CalculationsAndCharts!$A130+$A$11,IF($C$5,8,0),1,1)) -> 29859.30078 | G130: =IF(A130>$A$8,"",OFFSET(InputPriceData!F$15,CalculationsAndCharts!$A130+$A$11,IF($C$5,8,0),1,1)) -> 29926.5 | H130: 29256.63855 | I130: 136.25 | J130: 3451.271484 | K130: 2.220703 | L130: 0.03885976331 | M130: -0.03885976331 | N130: -0.02978286838 | O130: -2.978286838 | P130: 40 | Q130: -40 | BD130: 1754754700
A131: 99 | B131: =IF(A131>$A$8,"",OFFSET(InputPriceData!B$15,$A131+$A$11,0,1,1)) -> 2018-05-03 | C131: =IF(A131>$A$8,"",OFFSET(InputPriceData!G$15,CalculationsAndCharts!$A131+$A$11,IF($C$5,8,0),1,1)) -> 1736327100 | D131: =IF(A131>$A$8,"",OFFSET(InputPriceData!C$15,CalculationsAndCharts!$A131+$A$11,IF($C$5,8,0),1,1)) -> 30405.48047 | E131: =IF(A131>$A$8,"",OFFSET(InputPriceData!D$15,CalculationsAndCharts!$A131+$A$11,IF($C$5,8,0),1,1)) -> 30432.07031 | F131: =IF(A131>$A$8,"",OFFSET(InputPriceData!E$15,CalculationsAndCharts!$A131+$A$11,IF($C$5,8,0),1,1)) -> 30118.65039 | G131: =IF(A131>$A$8,"",OFFSET(InputPriceData!F$15,CalculationsAndCharts!$A131+$A$11,IF($C$5,8,0),1,1)) -> 30313.36914 | H131: 29249.90628 | I131: 2.220703 | J131: 3451.271484 | K131: 2.220703 | L131: 0 | M131: 0 | N131: -0.02070597346 | O131: -2.070597346 | P131: 40 | Q131: -40 | BD131: 1736327100
A132: 100 | B132: =IF(A132>$A$8,"",OFFSET(InputPriceData!B$15,$A132+$A$11,0,1,1)) -> 2018-05-02 | C132: =IF(A132>$A$8,"",OFFSET(InputPriceData!G$15,CalculationsAndCharts!$A132+$A$11,IF($C$5,8,0),1,1)) -> 1643135500 | D132: =IF(A132>$A$8,"",OFFSET(InputPriceData!C$15,CalculationsAndCharts!$A132+$A$11,IF($C$5,8,0),1,1)) -> 30782.21094 | E132: =IF(A132>$A$8,"",OFFSET(InputPriceData!D$15,CalculationsAndCharts!$A132+$A$11,IF($C$5,8,0),1,1)) -> 30824.76953 | F132: =IF(A132>$A$8,"",OFFSET(InputPriceData!E$15,CalculationsAndCharts!$A132+$A$11,IF($C$5,8,0),1,1)) -> 30570.81055 | G132: =IF(A132>$A$8,"",OFFSET(InputPriceData!F$15,CalculationsAndCharts!$A132+$A$11,IF($C$5,8,0),1,1)) -> 30723.88086 | H132: 29239.21821 | I132: 84.5 | J132: 3451.271484 | K132: 4.86914 | L132: 0.02310550309 | M132: -0.02310550309 | N132: -0.04141194691 | O132: -4.141194691 | P132: 40 | Q132: -40 | BD132: 1643135500
A133: 101 | B133: =IF(A133>$A$8,"",OFFSET(InputPriceData!B$15,$A133+$A$11,0,1,1)) -> 2018-04-30 | C133: =IF(A133>$A$8,"",OFFSET(InputPriceData!G$15,CalculationsAndCharts!$A133+$A$11,IF($C$5,8,0),1,1)) -> 1923280800 | D133: =IF(A133>$A$8,"",OFFSET(InputPriceData!C$15,CalculationsAndCharts!$A133+$A$11,IF($C$5,8,0),1,1)) -> 30530.40039 | E133: =IF(A133>$A$8,"",OFFSET(InputPriceData!D$15,CalculationsAndCharts!$A133+$A$11,IF($C$5,8,0),1,1)) -> 30853.13086 | F133: =IF(A133>$A$8,"",OFFSET(InputPriceData!E$15,CalculationsAndCharts!$A133+$A$11,IF($C$5,8,0),1,1)) -> 30483.91016 | G133: =IF(A133>$A$8,"",OFFSET(InputPriceData!F$15,CalculationsAndCharts!$A133+$A$11,IF($C$5,8,0),1,1)) -> 30808.44922 | H133: 29224.29698 | I133: 22.830078 | J133: 3451.271484 | K133: 4.86914 | L133: 0.005211503535 | M133: -0.005211503535 | N133: -0.05971839074 | O133: -5.971839074 | P133: 40 | Q133: -40 | BC133: 1923280800
A134: 102 | B134: =IF(A134>$A$8,"",OFFSET(InputPriceData!B$15,$A134+$A$11,0,1,1)) -> 2018-04-27 | C134: =IF(A134>$A$8,"",OFFSET(InputPriceData!G$15,CalculationsAndCharts!$A134+$A$11,IF($C$5,8,0),1,1)) -> 1610929100 | D134: =IF(A134>$A$8,"",OFFSET(InputPriceData!C$15,CalculationsAndCharts!$A134+$A$11,IF($C$5,8,0),1,1)) -> 30300.83008 | E134: =IF(A134>$A$8,"",OFFSET(InputPriceData!D$15,CalculationsAndCharts!$A134+$A$11,IF($C$5,8,0),1,1)) -> 30336 | F134: =IF(A134>$A$8,"",OFFSET(InputPriceData!E$15,CalculationsAndCharts!$A134+$A$11,IF($C$5,8,0),1,1)) -> 30019.11914 | G134: =IF(A134>$A$8,"",OFFSET(InputPriceData!F$15,CalculationsAndCharts!$A134+$A$11,IF($C$5,8,0),1,1)) -> 30280.66992 | H134: 29208.37585 | I134: 617.041016 | J134: 3451.271484 | K134: 4.86914 | L134: 0.177626352 | M134: -0.177626352 | N134: -0.1142252779 | O134: -11.42252779 | P134: 40 | Q134: -40 | BC134: 1610929100
A135: 103 | B135: =IF(A135>$A$8,"",OFFSET(InputPriceData!B$15,$A135+$A$11,0,1,1)) -> 2018-04-26 | C135: =IF(A135>$A$8,"",OFFSET(InputPriceData!G$15,CalculationsAndCharts!$A135+$A$11,IF($C$5,8,0),1,1)) -> 1765452500 | D135: =IF(A135>$A$8,"",OFFSET(InputPriceData!C$15,CalculationsAndCharts!$A135+$A$11,IF($C$5,8,0),1,1)) -> 30378.15039 | E135: =IF(A135>$A$8,"",OFFSET(InputPriceData!D$15,CalculationsAndCharts!$A135+$A$11,IF($C$5,8,0),1,1)) -> 30463.41992 | F135: =IF(A135>$A$8,"",OFFSET(InputPriceData!E$15,CalculationsAndCharts!$A135+$A$11,IF($C$5,8,0),1,1)) -> 29871.19922 | G135: =IF(A135>$A$8,"",OFFSET(InputPriceData!F$15,CalculationsAndCharts!$A135+$A$11,IF($C$5,8,0),1,1)) -> 30007.67969 | H135: 29197.59902 | I135: 721.060546 | J135: 3451.271484 | K135: 4.86914 | L135: 0.2078084143 | M135: -0.2078084143 | N135: -0.05082420385 | O135: -5.082420385 | P135: 40 | Q135: -40 | BD135: 1765452500
A136: 104 | B136: =IF(A136>$A$8,"",OFFSET(InputPriceData!B$15,$A136+$A$11,0,1,1)) -> 2018-04-25 | C136: =IF(A136>$A$8,"",OFFSET(InputPriceData!G$15,CalculationsAndCharts!$A136+$A$11,IF($C$5,8,0),1,1)) -> 1674472500 | D136: =IF(A136>$A$8,"",OFFSET(InputPriceData!C$15,CalculationsAndCharts!$A136+$A$11,IF($C$5,8,0),1,1)) -> 30486.85938 | E136: =IF(A136>$A$8,"",OFFSET(InputPriceData!D$15,CalculationsAndCharts!$A136+$A$11,IF($C$5,8,0),1,1)) -> 30507.18945 | F136: =IF(A136>$A$8,"",OFFSET(InputPriceData!E$15,CalculationsAndCharts!$A136+$A$11,IF($C$5,8,0),1,1)) -> 30244.16016 | G136: =IF(A136>$A$8,"",OFFSET(InputPriceData!F$15,CalculationsAndCharts!$A136+$A$11,IF($C$5,8,0),1,1)) -> 30328.15039 | H136: 29189.45751 | I136: 98.570313 | J136: 3451.271484 | K136: 4.86914 | L136: 0.02718811202 | M136: 0.02718811202 | N136: 0.1061600066 | O136: 10.61600066 | P136: 40 | Q136: -40 | BD136: 1674472500
A137: 105 | B137: =IF(A137>$A$8,"",OFFSET(InputPriceData!B$15,$A137+$A$11,0,1,1)) -> 2018-04-24 | C137: =IF(A137>$A$8,"",OFFSET(InputPriceData!G$15,CalculationsAndCharts!$A137+$A$11,IF($C$5,8,0),1,1)) -> 1741299100 | D137: =IF(A137>$A$8,"",OFFSET(InputPriceData!C$15,CalculationsAndCharts!$A137+$A$11,IF($C$5,8,0),1,1)) -> 30353.83008 | E137: =IF(A137>$A$8,"",OFFSET(InputPriceData!D$15,CalculationsAndCharts!$A137+$A$11,IF($C$5,8,0),1,1)) -> 30665.09961 | F137: =IF(A137>$A$8,"",OFFSET(InputPriceData!E$15,CalculationsAndCharts!$A137+$A$11,IF($C$5,8,0),1,1)) -> 30335.28906 | G137: =IF(A137>$A$8,"",OFFSET(InputPriceData!F$15,CalculationsAndCharts!$A137+$A$11,IF($C$5,8,0),1,1)) -> 30636.24023 | H137: 29178.01336 | I137: 791.300781 | J137: 3451.271484 | K137: 4.86914 | L137: 0.2281891557 | M137: 0.2281891557 | N137: 0.1851319011 | O137: 18.51319011 | P137: 40 | Q137: -40 | BC137: 1741299100
A138: 106 | B138: =IF(A138>$A$8,"",OFFSET(InputPriceData!B$15,$A138+$A$11,0,1,1)) -> 2018-04-23 | C138: =IF(A138>$A$8,"",OFFSET(InputPriceData!G$15,CalculationsAndCharts!$A138+$A$11,IF($C$5,8,0),1,1)) -> 1516737400 | D138: =IF(A138>$A$8,"",OFFSET(InputPriceData!C$15,CalculationsAndCharts!$A138+$A$11,IF($C$5,8,0),1,1)) -> 30327.0293 | E138: =IF(A138>$A$8,"",OFFSET(InputPriceData!D$15,CalculationsAndCharts!$A138+$A$11,IF($C$5,8,0),1,1)) -> 30481.85938 | F138: =IF(A138>$A$8,"",OFFSET(InputPriceData!E$15,CalculationsAndCharts!$A138+$A$11,IF($C$5,8,0),1,1)) -> 30184.44922 | G138: =IF(A138>$A$8,"",OFFSET(InputPriceData!F$15,CalculationsAndCharts!$A138+$A$11,IF($C$5,8,0),1,1)) -> 30254.40039 | H138: 29163.35781 | I138: 735.710938 | J138: 3451.271484 | K138: 4.86914 | L138: 0.2120593376 | M138: 0.2120593376 | N138: 0.1420746465 | O138: 14.20746465 | P138: 40 | Q138: -40 | BD138: 1516737400
A139: 107 | B139: =IF(A139>$A$8,"",OFFSET(InputPriceData!B$15,$A139+$A$11,0,1,1)) -> 2018-04-20 | C139: =IF(A139>$A$8,"",OFFSET(InputPriceData!G$15,CalculationsAndCharts!$A139+$A$11,IF($C$5,8,0),1,1)) -> 1661298600 | D139: =IF(A139>$A$8,"",OFFSET(InputPriceData!C$15,CalculationsAndCharts!$A139+$A$11,IF($C$5,8,0),1,1)) -> 30647.93945 | E139: =IF(A139>$A$8,"",OFFSET(InputPriceData!D$15,CalculationsAndCharts!$A139+$A$11,IF($C$5,8,0),1,1)) -> 30848.4707 | F139: =IF(A139>$A$8,"",OFFSET(InputPriceData!E$15,CalculationsAndCharts!$A139+$A$11,IF($C$5,8,0),1,1)) -> 30355.78906 | G139: =IF(A139>$A$8,"",OFFSET(InputPriceData!F$15,CalculationsAndCharts!$A139+$A$11,IF($C$5,8,0),1,1)) -> 30418.33008 | H139: 29152.39256 | I139: 238.230469 | J139: 3451.271484 | K139: 4.86914 | L139: 0.06771157448 | M139: 0.06771157448 | N139: 0.07208995551 | O139: 7.208995551 | P139: 40 | Q139: -40 | BD139: 1661298600
A140: 108 | B140: =IF(A140>$A$8,"",OFFSET(InputPriceData!B$15,$A140+$A$11,0,1,1)) -> 2018-04-19 | C140: =IF(A140>$A$8,"",OFFSET(InputPriceData!G$15,CalculationsAndCharts!$A140+$A$11,IF($C$5,8,0),1,1)) -> 2221670500 | D140: =IF(A140>$A$8,"",OFFSET(InputPriceData!C$15,CalculationsAndCharts!$A140+$A$11,IF($C$5,8,0),1,1)) -> 30532.94922 | E140: =IF(A140>$A$8,"",OFFSET(InputPriceData!D$15,CalculationsAndCharts!$A140+$A$11,IF($C$5,8,0),1,1)) -> 30761.4707 | F140: =IF(A140>$A$8,"",OFFSET(InputPriceData!E$15,CalculationsAndCharts!$A140+$A$11,IF($C$5,8,0),1,1)) -> 30451 | G140: =IF(A140>$A$8,"",OFFSET(InputPriceData!F$15,CalculationsAndCharts!$A140+$A$11,IF($C$5,8,0),1,1)) -> 30708.43945 | H140: 29139.66957 | I140: 615.058594 | J140: 3451.271484 | K140: 4.86914 | L140: 0.1770511371 | M140: 0.1770511371 | N140: 0.07646833654 | O140: 7.646833654 | P140: 40 | Q140: -40 | BC140: 2221670500
A141: 109 | B141: =IF(A141>$A$8,"",OFFSET(InputPriceData!B$15,$A141+$A$11,0,1,1)) -> 2018-04-18 | C141: =IF(A141>$A$8,"",OFFSET(InputPriceData!G$15,CalculationsAndCharts!$A141+$A$11,IF($C$5,8,0),1,1)) -> 2001652800 | D141: =IF(A141>$A$8,"",OFFSET(InputPriceData!C$15,CalculationsAndCharts!$A141+$A$11,IF($C$5,8,0),1,1)) -> 30469.94922 | E141: =IF(A141>$A$8,"",OFFSET(InputPriceData!D$15,CalculationsAndCharts!$A141+$A$11,IF($C$5,8,0),1,1)) -> 30487.16992 | F141: =IF(A141>$A$8,"",OFFSET(InputPriceData!E$15,CalculationsAndCharts!$A141+$A$11,IF($C$5,8,0),1,1)) -> 29979.40039 | G141: =IF(A141>$A$8,"",OFFSET(InputPriceData!F$15,CalculationsAndCharts!$A141+$A$11,IF($C$5,8,0),1,1)) -> 30284.25 | H141: 29123.90304 | I141: 261.720703 | J141: 3451.271484 | K141: 4.86914 | L141: 0.07452744554 | M141: 0.07452744554 | N141: -0.02411446405 | O141: -2.411446405 | P141: 40 | Q141: -40 | BC141: 2001652800
A142: 110 | B142: =IF(A142>$A$8,"",OFFSET(InputPriceData!B$15,$A142+$A$11,0,1,1)) -> 2018-04-17 | C142: =IF(A142>$A$8,"",OFFSET(InputPriceData!G$15,CalculationsAndCharts!$A142+$A$11,IF($C$5,8,0),1,1)) -> 1916884600 | D142: =IF(A142>$A$8,"",OFFSET(InputPriceData!C$15,CalculationsAndCharts!$A142+$A$11,IF($C$5,8,0),1,1)) -> 30354.89062 | E142: =IF(A142>$A$8,"",OFFSET(InputPriceData!D$15,CalculationsAndCharts!$A142+$A$11,IF($C$5,8,0),1,1)) -> 30477.78906 | F142: =IF(A142>$A$8,"",OFFSET(InputPriceData!E$15,CalculationsAndCharts!$A142+$A$11,IF($C$5,8,0),1,1)) -> 30012.69922 | G142: =IF(A142>$A$8,"",OFFSET(InputPriceData!F$15,CalculationsAndCharts!$A142+$A$11,IF($C$5,8,0),1,1)) -> 30062.75 | H142: 29112.24126 | I142: 728.080078 | J142: 3451.271484 | K142: 4.86914 | L142: 0.2098451852 | M142: -0.2098451852 | N142: -0.1227563736 | O142: -12.27563736 | P142: 40 | Q142: -40 | BD142: 1916884600
A143: 111 | B143: =IF(A143>$A$8,"",OFFSET(InputPriceData!B$15,$A143+$A$11,0,1,1)) -> 2018-04-16 | C143: =IF(A143>$A$8,"",OFFSET(InputPriceData!G$15,CalculationsAndCharts!$A143+$A$11,IF($C$5,8,0),1,1)) -> 1827774700 | D143: =IF(A143>$A$8,"",OFFSET(InputPriceData!C$15,CalculationsAndCharts!$A143+$A$11,IF($C$5,8,0),1,1)) -> 30849.7207 | E143: =IF(A143>$A$8,"",OFFSET(InputPriceData!D$15,CalculationsAndCharts!$A143+$A$11,IF($C$5,8,0),1,1)) -> 30849.7207 | F143: =IF(A143>$A$8,"",OFFSET(InputPriceData!E$15,CalculationsAndCharts!$A143+$A$11,IF($C$5,8,0),1,1)) -> 30190.75 | G143: =IF(A143>$A$8,"",OFFSET(InputPriceData!F$15,CalculationsAndCharts!$A143+$A$11,IF($C$5,8,0),1,1)) -> 30315.58984 | H143: 29102.68841 | I143: 233.179687 | J143: 3451.271484 | K143: 4.86914 | L143: 0.06624605145 | M143: -0.06624605145 | N143: -0.03566756213 | O143: -3.566756213 | P143: 40 | Q143: -40 | BD143: 1827774700
A144: 112 | B144: =IF(A144>$A$8,"",OFFSET(InputPriceData!B$15,$A144+$A$11,0,1,1)) -> 2018-04-13 | C144: =IF(A144>$A$8,"",OFFSET(InputPriceData!G$15,CalculationsAndCharts!$A144+$A$11,IF($C$5,8,0),1,1)) -> 1406304600 | D144: =IF(A144>$A$8,"",OFFSET(InputPriceData!C$15,CalculationsAndCharts!$A144+$A$11,IF($C$5,8,0),1,1)) -> 31076.75977 | E144: =IF(A144>$A$8,"",OFFSET(InputPriceData!D$15,CalculationsAndCharts!$A144+$A$11,IF($C$5,8,0),1,1)) -> 31076.75977 | F144: =IF(A144>$A$8,"",OFFSET(InputPriceData!E$15,CalculationsAndCharts!$A144+$A$11,IF($C$5,8,0),1,1)) -> 30707.76953 | G144: =IF(A144>$A$8,"",OFFSET(InputPriceData!F$15,CalculationsAndCharts!$A144+$A$11,IF($C$5,8,0),1,1)) -> 30808.38086 | H144: 29090.49845 | I144: 499.091796 | J144: 3451.271484 | K144: 4.86914 | L144: 0.1434024837 | M144: 0.1434024837 | N144: -0.005089072804 | O144: -0.5089072804 | P144: 40 | Q144: -40 | BD144: 1406304600
A145: 113 | B145: =IF(A145>$A$8,"",OFFSET(InputPriceData!B$15,$A145+$A$11,0,1,1)) -> 2018-04-12 | C145: =IF(A145>$A$8,"",OFFSET(InputPriceData!G$15,CalculationsAndCharts!$A145+$A$11,IF($C$5,8,0),1,1)) -> 1754477200 | D145: =IF(A145>$A$8,"",OFFSET(InputPriceData!C$15,CalculationsAndCharts!$A145+$A$11,IF($C$5,8,0),1,1)) -> 31094.10938 | E145: =IF(A145>$A$8,"",OFFSET(InputPriceData!D$15,CalculationsAndCharts!$A145+$A$11,IF($C$5,8,0),1,1)) -> 31094.10938 | F145: =IF(A145>$A$8,"",OFFSET(InputPriceData!E$15,CalculationsAndCharts!$A145+$A$11,IF($C$5,8,0),1,1)) -> 30637.14062 | G145: =IF(A145>$A$8,"",OFFSET(InputPriceData!F$15,CalculationsAndCharts!$A145+$A$11,IF($C$5,8,0),1,1)) -> 30831.2793 | H145: 29073.2333 | I145: 239.771484 | J145: 3451.271484 | K145: 4.86914 | L145: 0.06815871177 | M145: -0.06815871177 | N145: -0.1535806293 | O145: -15.35806293 | P145: 40 | Q145: -40 | BD145: 1754477200
A146: 114 | B146: =IF(A146>$A$8,"",OFFSET(InputPriceData!B$15,$A146+$A$11,0,1,1)) -> 2018-04-11 | C146: =IF(A146>$A$8,"",OFFSET(InputPriceData!G$15,CalculationsAndCharts!$A146+$A$11,IF($C$5,8,0),1,1)) -> 2291863000 | D146: =IF(A146>$A$8,"",OFFSET(InputPriceData!C$15,CalculationsAndCharts!$A146+$A$11,IF($C$5,8,0),1,1)) -> 30761.23047 | E146: =IF(A146>$A$8,"",OFFSET(InputPriceData!D$15,CalculationsAndCharts!$A146+$A$11,IF($C$5,8,0),1,1)) -> 31021.11914 | F146: =IF(A146>$A$8,"",OFFSET(InputPriceData!E$15,CalculationsAndCharts!$A146+$A$11,IF($C$5,8,0),1,1)) -> 30723.07031 | G146: =IF(A146>$A$8,"",OFFSET(InputPriceData!F$15,CalculationsAndCharts!$A146+$A$11,IF($C$5,8,0),1,1)) -> 30897.71094 | H146: 29055.56449 | I146: 516.808593 | J146: 3451.271484 | K146: 4.86914 | L146: 0.1485431479 | M146: -0.1485431479 | N146: -0.2390025469 | O146: -23.90025469 | P146: 40 | Q146: -40 | BC146: 2291863000
A147: 115 | B147: =IF(A147>$A$8,"",OFFSET(InputPriceData!B$15,$A147+$A$11,0,1,1)) -> 2018-04-10 | C147: =IF(A147>$A$8,"",OFFSET(InputPriceData!G$15,CalculationsAndCharts!$A147+$A$11,IF($C$5,8,0),1,1)) -> 2270263700 | D147: =IF(A147>$A$8,"",OFFSET(InputPriceData!C$15,CalculationsAndCharts!$A147+$A$11,IF($C$5,8,0),1,1)) -> 30205.08984 | E147: =IF(A147>$A$8,"",OFFSET(InputPriceData!D$15,CalculationsAndCharts!$A147+$A$11,IF($C$5,8,0),1,1)) -> 30806.85938 | F147: =IF(A147>$A$8,"",OFFSET(InputPriceData!E$15,CalculationsAndCharts!$A147+$A$11,IF($C$5,8,0),1,1)) -> 30163.08984 | G147: =IF(A147>$A$8,"",OFFSET(InputPriceData!F$15,CalculationsAndCharts!$A147+$A$11,IF($C$5,8,0),1,1)) -> 30728.74023 | H147: 29037.05046 | I147: 821.189454 | J147: 3451.271484 | K147: 4.86914 | L147: 0.2368615828 | M147: -0.2368615828 | N147: -0.3294619459 | O147: -32.94619459 | P147: 40 | Q147: -40 | BC147: 2270263700
A148: 116 | B148: =IF(A148>$A$8,"",OFFSET(InputPriceData!B$15,$A148+$A$11,0,1,1)) -> 2018-04-09 | C148: =IF(A148>$A$8,"",OFFSET(InputPriceData!G$15,CalculationsAndCharts!$A148+$A$11,IF($C$5,8,0),1,1)) -> 1841272200 | D148: =IF(A148>$A$8,"",OFFSET(InputPriceData!C$15,CalculationsAndCharts!$A148+$A$11,IF($C$5,8,0),1,1)) -> 30104.32031 | E148: =IF(A148>$A$8,"",OFFSET(InputPriceData!D$15,CalculationsAndCharts!$A148+$A$11,IF($C$5,8,0),1,1)) -> 30514.80078 | F148: =IF(A148>$A$8,"",OFFSET(InputPriceData!E$15,CalculationsAndCharts!$A148+$A$11,IF($C$5,8,0),1,1)) -> 29909.36914 | G148: =IF(A148>$A$8,"",OFFSET(InputPriceData!F$15,CalculationsAndCharts!$A148+$A$11,IF($C$5,8,0),1,1)) -> 30229.58008 | H148: 29020.04855 | I148: 1284.179688 | J148: 3451.271484 | K148: 4.86914 | L148: 0.3712017403 | M148: -0.3712017403 | N148: -0.422062309 | O148: -42.2062309 | P148: 40 | Q148: -40 | BC148: 1841272200
A149: 117 | B149: =IF(A149>$A$8,"",OFFSET(InputPriceData!B$15,$A149+$A$11,0,1,1)) -> 2018-04-06 | C149: =IF(A149>$A$8,"",OFFSET(InputPriceData!G$15,CalculationsAndCharts!$A149+$A$11,IF($C$5,8,0),1,1)) -> 1698284100 | D149: =IF(A149>$A$8,"",OFFSET(InputPriceData!C$15,CalculationsAndCharts!$A149+$A$11,IF($C$5,8,0),1,1)) -> 29750.24023 | E149: =IF(A149>$A$8,"",OFFSET(InputPriceData!D$15,CalculationsAndCharts!$A149+$A$11,IF($C$5,8,0),1,1)) -> 29980.56055 | F149: =IF(A149>$A$8,"",OFFSET(InputPriceData!E$15,CalculationsAndCharts!$A149+$A$11,IF($C$5,8,0),1,1)) -> 29608.33008 | G149: =IF(A149>$A$8,"",OFFSET(InputPriceData!F$15,CalculationsAndCharts!$A149+$A$11,IF($C$5,8,0),1,1)) -> 29844.93945 | H149: 29007.89245 | I149: 1657.03125 | J149: 3451.271484 | K149: 4.86914 | L149: 0.4793874728 | M149: -0.4793874728 | N149: -0.4729228777 | O149: -47.29228777 | P149: 40 | Q149: -40 | BC149: 1698284100
A150: 118 | B150: =IF(A150>$A$8,"",OFFSET(InputPriceData!B$15,$A150+$A$11,0,1,1)) -> 2018-04-04 | C150: =IF(A150>$A$8,"",OFFSET(InputPriceData!G$15,CalculationsAndCharts!$A150+$A$11,IF($C$5,8,0),1,1)) -> 1816082600 | D150: =IF(A150>$A$8,"",OFFSET(InputPriceData!C$15,CalculationsAndCharts!$A150+$A$11,IF($C$5,8,0),1,1)) -> 30244.2207 | E150: =IF(A150>$A$8,"",OFFSET(InputPriceData!D$15,CalculationsAndCharts!$A150+$A$11,IF($C$5,8,0),1,1)) -> 30329.08008 | F150: =IF(A150>$A$8,"",OFFSET(InputPriceData!E$15,CalculationsAndCharts!$A150+$A$11,IF($C$5,8,0),1,1)) -> 29518.68945 | G150: =IF(A150>$A$8,"",OFFSET(InputPriceData!F$15,CalculationsAndCharts!$A150+$A$11,IF($C$5,8,0),1,1)) -> 29518.68945 | H150: 28999.47992 | I150: 2022.410156 | J150: 3451.271484 | K150: 4.86914 | L150: 0.585404957 | M150: -0.585404957 | N150: -0.4664582825 | O150: -46.64582825 | P150: 40 | Q150: -40 | BD150: 1816082600
A151: 119 | B151: =IF(A151>$A$8,"",OFFSET(InputPriceData!B$15,$A151+$A$11,0,1,1)) -> 2018-04-03 | C151: =IF(A151>$A$8,"",OFFSET(InputPriceData!G$15,CalculationsAndCharts!$A151+$A$11,IF($C$5,8,0),1,1)) -> 1908642500 | D151: =IF(A151>$A$8,"",OFFSET(InputPriceData!C$15,CalculationsAndCharts!$A151+$A$11,IF($C$5,8,0),1,1)) -> 29927.88086 | E151: =IF(A151>$A$8,"",OFFSET(InputPriceData!D$15,CalculationsAndCharts!$A151+$A$11,IF($C$5,8,0),1,1)) -> 30269.2793 | F151: =IF(A151>$A$8,"",OFFSET(InputPriceData!E$15,CalculationsAndCharts!$A151+$A$11,IF($C$5,8,0),1,1)) -> 29755.35938 | G151: =IF(A151>$A$8,"",OFFSET(InputPriceData!F$15,CalculationsAndCharts!$A151+$A$11,IF($C$5,8,0),1,1)) -> 30180.09961 | H151: 28994.26173 | I151: 1254.910157 | J151: 3451.271484 | K151: 4.86914 | L151: 0.3627089621 | M151: -0.3627089621 | N151: -0.347511608 | O151: -34.7511608 | P151: 40 | Q151: -40 | BC151: 1908642500
A152: 120 | B152: =IF(A152>$A$8,"",OFFSET(InputPriceData!B$15,$A152+$A$11,0,1,1)) -> 2018-03-29 | C152: =IF(A152>$A$8,"",OFFSET(InputPriceData!G$15,CalculationsAndCharts!$A152+$A$11,IF($C$5,8,0),1,1)) -> 2167328200 | D152: =IF(A152>$A$8,"",OFFSET(InputPriceData!C$15,CalculationsAndCharts!$A152+$A$11,IF($C$5,8,0),1,1)) -> 30154.17969 | E152: =IF(A152>$A$8,"",OFFSET(InputPriceData!D$15,CalculationsAndCharts!$A152+$A$11,IF($C$5,8,0),1,1)) -> 30252.94922 | F152: =IF(A152>$A$8,"",OFFSET(InputPriceData!E$15,CalculationsAndCharts!$A152+$A$11,IF($C$5,8,0),1,1)) -> 29819.63086 | G152: =IF(A152>$A$8,"",OFFSET(InputPriceData!F$15,CalculationsAndCharts!$A152+$A$11,IF($C$5,8,0),1,1)) -> 30093.38086 | H152: 28982.34377 | I152: 1508.06836 | J152: 3451.271484 | K152: 4.86914 | L152: 0.4361647509 | M152: -0.4361647509 | N152: -0.3323142539 | O152: -33.23142539 | P152: 40 | Q152: -40 | BC152: 2167328200
A153: 121 | B153: =IF(A153>$A$8,"",OFFSET(InputPriceData!B$15,$A153+$A$11,0,1,1)) -> 2018-03-28 | C153: =IF(A153>$A$8,"",OFFSET(InputPriceData!G$15,CalculationsAndCharts!$A153+$A$11,IF($C$5,8,0),1,1)) -> 2209028300 | D153: =IF(A153>$A$8,"",OFFSET(InputPriceData!C$15,CalculationsAndCharts!$A153+$A$11,IF($C$5,8,0),1,1)) -> 30510.38086 | E153: =IF(A153>$A$8,"",OFFSET(InputPriceData!D$15,CalculationsAndCharts!$A153+$A$11,IF($C$5,8,0),1,1)) -> 30637.21094 | F153: =IF(A153>$A$8,"",OFFSET(InputPriceData!E$15,CalculationsAndCharts!$A153+$A$11,IF($C$5,8,0),1,1)) -> 30022.5293 | G153: =IF(A153>$A$8,"",OFFSET(InputPriceData!F$15,CalculationsAndCharts!$A153+$A$11,IF($C$5,8,0),1,1)) -> 30022.5293 | H153: 28971.17756 | I153: 1571.800781 | J153: 3451.271484 | K153: 4.86914 | L153: 0.4546572003 | M153: -0.4546572003 | N153: -0.2284637569 | O153: -22.84637569 | P153: 40 | Q153: -40 | BD153: 2209028300
A154: 122 | B154: =IF(A154>$A$8,"",OFFSET(InputPriceData!B$15,$A154+$A$11,0,1,1)) -> 2018-03-27 | C154: =IF(A154>$A$8,"",OFFSET(InputPriceData!G$15,CalculationsAndCharts!$A154+$A$11,IF($C$5,8,0),1,1)) -> 2049855800 | D154: =IF(A154>$A$8,"",OFFSET(InputPriceData!C$15,CalculationsAndCharts!$A154+$A$11,IF($C$5,8,0),1,1)) -> 30985.75 | E154: =IF(A154>$A$8,"",OFFSET(InputPriceData!D$15,CalculationsAndCharts!$A154+$A$11,IF($C$5,8,0),1,1)) -> 30985.75 | F154: =IF(A154>$A$8,"",OFFSET(InputPriceData!E$15,CalculationsAndCharts!$A154+$A$11,IF($C$5,8,0),1,1)) -> 30738.75977 | G154: =IF(A154>$A$8,"",OFFSET(InputPriceData!F$15,CalculationsAndCharts!$A154+$A$11,IF($C$5,8,0),1,1)) -> 30790.83008 | H154: 28960.61121 | I154: 205.38086 | J154: 3451.271484 | K154: 4.86914 | L154: 0.05818000918 | M154: -0.05818000918 | N154: -0.002270313417 | O154: -0.2270313417 | P154: 40 | Q154: -40 | BC154: 2049855800
A155: 123 | B155: =IF(A155>$A$8,"",OFFSET(InputPriceData!B$15,$A155+$A$11,0,1,1)) -> 2018-03-26 | C155: =IF(A155>$A$8,"",OFFSET(InputPriceData!G$15,CalculationsAndCharts!$A155+$A$11,IF($C$5,8,0),1,1)) -> 2317282800 | D155: =IF(A155>$A$8,"",OFFSET(InputPriceData!C$15,CalculationsAndCharts!$A155+$A$11,IF($C$5,8,0),1,1)) -> 30267.07031 | E155: =IF(A155>$A$8,"",OFFSET(InputPriceData!D$15,CalculationsAndCharts!$A155+$A$11,IF($C$5,8,0),1,1)) -> 30548.76953 | F155: =IF(A155>$A$8,"",OFFSET(InputPriceData!E$15,CalculationsAndCharts!$A155+$A$11,IF($C$5,8,0),1,1)) -> 29995.16016 | G155: =IF(A155>$A$8,"",OFFSET(InputPriceData!F$15,CalculationsAndCharts!$A155+$A$11,IF($C$5,8,0),1,1)) -> 30548.76953 | H155: 28942.21706 | I155: 105.75 | J155: 3451.271484 | K155: 4.86914 | L155: 0.02927135312 | M155: -0.02927135312 | N155: 0.05363938234 | O155: 5.363938234 | P155: 40 | Q155: -40 | BC155: 2317282800
A156: 124 | B156: =IF(A156>$A$8,"",OFFSET(InputPriceData!B$15,$A156+$A$11,0,1,1)) -> 2018-03-23 | C156: =IF(A156>$A$8,"",OFFSET(InputPriceData!G$15,CalculationsAndCharts!$A156+$A$11,IF($C$5,8,0),1,1)) -> 3522395400 | D156: =IF(A156>$A$8,"",OFFSET(InputPriceData!C$15,CalculationsAndCharts!$A156+$A$11,IF($C$5,8,0),1,1)) -> 29930.23047 | E156: =IF(A156>$A$8,"",OFFSET(InputPriceData!D$15,CalculationsAndCharts!$A156+$A$11,IF($C$5,8,0),1,1)) -> 30320.31055 | F156: =IF(A156>$A$8,"",OFFSET(InputPriceData!E$15,CalculationsAndCharts!$A156+$A$11,IF($C$5,8,0),1,1)) -> 29930.23047 | G156: =IF(A156>$A$8,"",OFFSET(InputPriceData!F$15,CalculationsAndCharts!$A156+$A$11,IF($C$5,8,0),1,1)) -> 30309.28906 | H156: 28926.0708 | I156: 112.369141 | J156: 3451.271484 | K156: 4.86914 | L156: 0.03119194751 | M156: 0.03119194751 | N156: 0.1365501178 | O156: 13.65501178 | P156: 40 | Q156: -40 | BD156: 3522395400
A157: 125 | B157: =IF(A157>$A$8,"",OFFSET(InputPriceData!B$15,$A157+$A$11,0,1,1)) -> 2018-03-22 | C157: =IF(A157>$A$8,"",OFFSET(InputPriceData!G$15,CalculationsAndCharts!$A157+$A$11,IF($C$5,8,0),1,1)) -> 2103533300 | D157: =IF(A157>$A$8,"",OFFSET(InputPriceData!C$15,CalculationsAndCharts!$A157+$A$11,IF($C$5,8,0),1,1)) -> 31575.92969 | E157: =IF(A157>$A$8,"",OFFSET(InputPriceData!D$15,CalculationsAndCharts!$A157+$A$11,IF($C$5,8,0),1,1)) -> 31686.66992 | F157: =IF(A157>$A$8,"",OFFSET(InputPriceData!E$15,CalculationsAndCharts!$A157+$A$11,IF($C$5,8,0),1,1)) -> 31018.43945 | G157: =IF(A157>$A$8,"",OFFSET(InputPriceData!F$15,CalculationsAndCharts!$A157+$A$11,IF($C$5,8,0),1,1)) -> 31071.05078 | H157: 28912.16911 | I157: 560.320312 | J157: 3451.271484 | K157: 4.86914 | L157: 0.1611684059 | M157: 0.1611684059 | N157: 0.2419082881 | O157: 24.19082881 | P157: 40 | Q157: -40 | BD157: 2103533300
A158: 126 | B158: =IF(A158>$A$8,"",OFFSET(InputPriceData!B$15,$A158+$A$11,0,1,1)) -> 2018-03-21 | C158: =IF(A158>$A$8,"",OFFSET(InputPriceData!G$15,CalculationsAndCharts!$A158+$A$11,IF($C$5,8,0),1,1)) -> 2309098300 | D158: =IF(A158>$A$8,"",OFFSET(InputPriceData!C$15,CalculationsAndCharts!$A158+$A$11,IF($C$5,8,0),1,1)) -> 31811.98047 | E158: =IF(A158>$A$8,"",OFFSET(InputPriceData!D$15,CalculationsAndCharts!$A158+$A$11,IF($C$5,8,0),1,1)) -> 31978.14062 | F158: =IF(A158>$A$8,"",OFFSET(InputPriceData!E$15,CalculationsAndCharts!$A158+$A$11,IF($C$5,8,0),1,1)) -> 31381.53906 | G158: =IF(A158>$A$8,"",OFFSET(InputPriceData!F$15,CalculationsAndCharts!$A158+$A$11,IF($C$5,8,0),1,1)) -> 31414.51953 | H158: 28890.47181 | I158: 1528.128906 | J158: 3451.271484 | K158: 4.86914 | L158: 0.4419854718 | M158: 0.4419854718 | N158: 0.3226481703 | O158: 32.26481703 | P158: 40 | Q158: -40 | BD158: 2309098300
A159: 127 | B159: =IF(A159>$A$8,"",OFFSET(InputPriceData!B$15,$A159+$A$11,0,1,1)) -> 2018-03-20 | C159: =IF(A159>$A$8,"",OFFSET(InputPriceData!G$15,CalculationsAndCharts!$A159+$A$11,IF($C$5,8,0),1,1)) -> 1746878600 | D159: =IF(A159>$A$8,"",OFFSET(InputPriceData!C$15,CalculationsAndCharts!$A159+$A$11,IF($C$5,8,0),1,1)) -> 31315.41992 | E159: =IF(A159>$A$8,"",OFFSET(InputPriceData!D$15,CalculationsAndCharts!$A159+$A$11,IF($C$5,8,0),1,1)) -> 31576.05078 | F159: =IF(A159>$A$8,"",OFFSET(InputPriceData!E$15,CalculationsAndCharts!$A159+$A$11,IF($C$5,8,0),1,1)) -> 31183.40039 | G159: =IF(A159>$A$8,"",OFFSET(InputPriceData!F$15,CalculationsAndCharts!$A159+$A$11,IF($C$5,8,0),1,1)) -> 31549.92969 | H159: 28865.10449 | I159: 966.480469 | J159: 3451.271484 | K159: 4.86914 | L159: 0.279018882 | M159: 0.279018882 | N159: 0.2033108687 | O159: 20.33108687 | P159: 40 | Q159: -40 | BC159: 1746878600
A160: 128 | B160: =IF(A160>$A$8,"",OFFSET(InputPriceData!B$15,$A160+$A$11,0,1,1)) -> 2018-03-19 | C160: =IF(A160>$A$8,"",OFFSET(InputPriceData!G$15,CalculationsAndCharts!$A160+$A$11,IF($C$5,8,0),1,1)) -> 1440844700 | D160: =IF(A160>$A$8,"",OFFSET(InputPriceData!C$15,CalculationsAndCharts!$A160+$A$11,IF($C$5,8,0),1,1)) -> 31370.4707 | E160: =IF(A160>$A$8,"",OFFSET(InputPriceData!D$15,CalculationsAndCharts!$A160+$A$11,IF($C$5,8,0),1,1)) -> 31656.30078 | F160: =IF(A160>$A$8,"",OFFSET(InputPriceData!E$15,CalculationsAndCharts!$A160+$A$11,IF($C$5,8,0),1,1)) -> 31244.61914 | G160: =IF(A160>$A$8,"",OFFSET(InputPriceData!F$15,CalculationsAndCharts!$A160+$A$11,IF($C$5,8,0),1,1)) -> 31513.75977 | H160: 28838.12132 | I160: 469.509766 | J160: 3451.271484 | K160: 4.86914 | L160: 0.1348190314 | M160: 0.1348190314 | N160: 0.1276028554 | O160: 12.76028554 | P160: 40 | Q160: -40 | BC160: 1440844700
A161: 129 | B161: =IF(A161>$A$8,"",OFFSET(InputPriceData!B$15,$A161+$A$11,0,1,1)) -> 2018-03-16 | C161: =IF(A161>$A$8,"",OFFSET(InputPriceData!G$15,CalculationsAndCharts!$A161+$A$11,IF($C$5,8,0),1,1)) -> 2345452800 | D161: =IF(A161>$A$8,"",OFFSET(InputPriceData!C$15,CalculationsAndCharts!$A161+$A$11,IF($C$5,8,0),1,1)) -> 31363.0293 | E161: =IF(A161>$A$8,"",OFFSET(InputPriceData!D$15,CalculationsAndCharts!$A161+$A$11,IF($C$5,8,0),1,1)) -> 31564.7793 | F161: =IF(A161>$A$8,"",OFFSET(InputPriceData!E$15,CalculationsAndCharts!$A161+$A$11,IF($C$5,8,0),1,1)) -> 31337.44922 | G161: =IF(A161>$A$8,"",OFFSET(InputPriceData!F$15,CalculationsAndCharts!$A161+$A$11,IF($C$5,8,0),1,1)) -> 31501.9707 | H161: =IF($A161>H$30,NA(),IF($A161=H$30,$G161,$C$24*($G161-H162)+H162)) -> 28811.23048 | I161: =IF(A161>$I$30,NA(),ABS(G161-OFFSET(G161,$A$18,0,1,1))) -> 657.25 | J161: =IF(A161>$J$30,NA(),MAX(OFFSET($I161,0,0,$A$17,1))) -> 3451.271484 | K161: =IF(A161>$J$30,NA(),MIN(OFFSET($I161,0,0,$A$17,1))) -> 4.86914 | L161: =IF(A161>$J$30,NA(),(I161-K161)/(J161-K161)) -> 0.1892932963 | M161: =IF(A161>$J$30,NA(),IF(G161>OFFSET(G161,$A$18,0,1,1),L161,IF(G161<OFFSET(G161,$A$18,0,1,1),-L161,0))) -> 0.1892932963 | N161: =IF(A161>$N$30,NA(),IF($A161=N$30,AVERAGE(OFFSET($M161,0,0,$A$19,1)),$C$19*($M161-N162)+N162)) -> 0.1203866794 | O161: =IF(A161>$N$30,NA(),N161*100) -> 12.03866794 | P161: 40 | Q161: -40 | BD161: 2345452800
A162: 130 | B162: =IF(A162>$A$8,"",OFFSET(InputPriceData!B$15,$A162+$A$11,0,1,1)) -> 2018-03-15 | C162: =IF(A162>$A$8,"",OFFSET(InputPriceData!G$15,CalculationsAndCharts!$A162+$A$11,IF($C$5,8,0),1,1)) -> 1496758200 | D162: =IF(A162>$A$8,"",OFFSET(InputPriceData!C$15,CalculationsAndCharts!$A162+$A$11,IF($C$5,8,0),1,1)) -> 31181.15039 | E162: =IF(A162>$A$8,"",OFFSET(InputPriceData!D$15,CalculationsAndCharts!$A162+$A$11,IF($C$5,8,0),1,1)) -> 31583.38086 | F162: =IF(A162>$A$8,"",OFFSET(InputPriceData!E$15,CalculationsAndCharts!$A162+$A$11,IF($C$5,8,0),1,1)) -> 31121.66016 | G162: =IF(A162>$A$8,"",OFFSET(InputPriceData!F$15,CalculationsAndCharts!$A162+$A$11,IF($C$5,8,0),1,1)) -> 31541.09961 | H162: 28784.18787 | I162: 272.439453 | J162: 3451.271484 | K162: 4.86914 | L162: 0.07763757283 | M162: 0.07763757283 | N162: 0.05148006259 | O162: 5.148006259 | P162: =$F$17 -> 40 | Q162: =$F$18 -> -40 | BC162: 1496758200
A163: 131 | B163: =IF(A163>$A$8,"",OFFSET(InputPriceData!B$15,$A163+$A$11,0,1,1)) -> 2018-03-14 | C163: =IF(A163>$A$8,"",OFFSET(InputPriceData!G$15,CalculationsAndCharts!$A163+$A$11,IF($C$5,8,0),1,1)) -> 1707584900 | D163: =IF(A163>$A$8,"",OFFSET(InputPriceData!C$15,CalculationsAndCharts!$A163+$A$11,IF($C$5,8,0),1,1)) -> 31321.78906 | E163: =IF(A163>$A$8,"",OFFSET(InputPriceData!D$15,CalculationsAndCharts!$A163+$A$11,IF($C$5,8,0),1,1)) -> 31453.48047 | F163: =IF(A163>$A$8,"",OFFSET(InputPriceData!E$15,CalculationsAndCharts!$A163+$A$11,IF($C$5,8,0),1,1)) -> 31141.84961 | G163: =IF(A163>$A$8,"",OFFSET(InputPriceData!F$15,CalculationsAndCharts!$A163+$A$11,IF($C$5,8,0),1,1)) -> 31435.00977 | H163: 28756.48021 | I163: 63.589843 | J163: 3451.271484 | K163: 4.86914 | L163: 0.0170382611 | M163: -0.0170382611 | N163: 0.02532255234 | O163: 2.532255234 | P163: 40 | Q163: -40 | BD163: 1707584900
A164: 132 | B164: =IF(A164>$A$8,"",OFFSET(InputPriceData!B$15,$A164+$A$11,0,1,1)) -> 2018-03-13 | C164: =IF(A164>$A$8,"",OFFSET(InputPriceData!G$15,CalculationsAndCharts!$A164+$A$11,IF($C$5,8,0),1,1)) -> 2111965400 | D164: =IF(A164>$A$8,"",OFFSET(InputPriceData!C$15,CalculationsAndCharts!$A164+$A$11,IF($C$5,8,0),1,1)) -> 31570.19922 | E164: =IF(A164>$A$8,"",OFFSET(InputPriceData!D$15,CalculationsAndCharts!$A164+$A$11,IF($C$5,8,0),1,1)) -> 31709.99023 | F164: =IF(A164>$A$8,"",OFFSET(InputPriceData!E$15,CalculationsAndCharts!$A164+$A$11,IF($C$5,8,0),1,1)) -> 31461.4707 | G164: =IF(A164>$A$8,"",OFFSET(InputPriceData!F$15,CalculationsAndCharts!$A164+$A$11,IF($C$5,8,0),1,1)) -> 31601.44922 | H164: 28729.56032 | I164: 334.279297 | J164: 3451.271484 | K164: 4.86914 | L164: 0.09558087655 | M164: 0.09558087655 | N164: 0.06768336579 | O164: 6.768336579 | P164: 40 | Q164: -40 | BC164: 2111965400
A165: 133 | B165: =IF(A165>$A$8,"",OFFSET(InputPriceData!B$15,$A165+$A$11,0,1,1)) -> 2018-03-12 | C165: =IF(A165>$A$8,"",OFFSET(InputPriceData!G$15,CalculationsAndCharts!$A165+$A$11,IF($C$5,8,0),1,1)) -> 2173275800 | D165: =IF(A165>$A$8,"",OFFSET(InputPriceData!C$15,CalculationsAndCharts!$A165+$A$11,IF($C$5,8,0),1,1)) -> 31536.30078 | E165: =IF(A165>$A$8,"",OFFSET(InputPriceData!D$15,CalculationsAndCharts!$A165+$A$11,IF($C$5,8,0),1,1)) -> 31607.58008 | F165: =IF(A165>$A$8,"",OFFSET(InputPriceData!E$15,CalculationsAndCharts!$A165+$A$11,IF($C$5,8,0),1,1)) -> 31342.48047 | G165: =IF(A165>$A$8,"",OFFSET(InputPriceData!F$15,CalculationsAndCharts!$A165+$A$11,IF($C$5,8,0),1,1)) -> 31594.33008 | H165: 28700.69711 | I165: 628.65039 | J165: 3451.271484 | K165: 4.86914 | L165: 0.1809949007 | M165: 0.1809949007 | N165: 0.03978585503 | O165: 3.978585503 | P165: 40 | Q165: -40 | BC165: 2173275800
A166: 134 | B166: =IF(A166>$A$8,"",OFFSET(InputPriceData!B$15,$A166+$A$11,0,1,1)) -> 2018-03-09 | C166: =IF(A166>$A$8,"",OFFSET(InputPriceData!G$15,CalculationsAndCharts!$A166+$A$11,IF($C$5,8,0),1,1)) -> 1470749100 | D166: =IF(A166>$A$8,"",OFFSET(InputPriceData!C$15,CalculationsAndCharts!$A166+$A$11,IF($C$5,8,0),1,1)) -> 30858.26953 | E166: =IF(A166>$A$8,"",OFFSET(InputPriceData!D$15,CalculationsAndCharts!$A166+$A$11,IF($C$5,8,0),1,1)) -> 30996.21094 | F166: =IF(A166>$A$8,"",OFFSET(InputPriceData!E$15,CalculationsAndCharts!$A166+$A$11,IF($C$5,8,0),1,1)) -> 30840.80078 | G166: =IF(A166>$A$8,"",OFFSET(InputPriceData!F$15,CalculationsAndCharts!$A166+$A$11,IF($C$5,8,0),1,1)) -> 30996.21094 | H166: 28671.61538 | I166: 435.679687 | J166: 3451.271484 | K166: 4.86914 | L166: 0.1250029753 | M166: -0.1250029753 | N166: -0.1014231906 | O166: -10.14231906 | P166: 40 | Q166: -40 | BC166: 1470749100
A167: 135 | B167: =IF(A167>$A$8,"",OFFSET(InputPriceData!B$15,$A167+$A$11,0,1,1)) -> 2018-03-08 | C167: =IF(A167>$A$8,"",OFFSET(InputPriceData!G$15,CalculationsAndCharts!$A167+$A$11,IF($C$5,8,0),1,1)) -> 1529390000 | D167: =IF(A167>$A$8,"",OFFSET(InputPriceData!C$15,CalculationsAndCharts!$A167+$A$11,IF($C$5,8,0),1,1)) -> 30523.67969 | E167: =IF(A167>$A$8,"",OFFSET(InputPriceData!D$15,CalculationsAndCharts!$A167+$A$11,IF($C$5,8,0),1,1)) -> 30724.0293 | F167: =IF(A167>$A$8,"",OFFSET(InputPriceData!E$15,CalculationsAndCharts!$A167+$A$11,IF($C$5,8,0),1,1)) -> 30428.60938 | G167: =IF(A167>$A$8,"",OFFSET(InputPriceData!F$15,CalculationsAndCharts!$A167+$A$11,IF($C$5,8,0),1,1)) -> 30654.51953 | H167: 28648.25261 | I167: 219.111328 | J167: 3451.271484 | K167: 4.86914 | L167: 0.06216400948 | M167: -0.06216400948 | N167: -0.07784340601 | O167: -7.784340601 | P167: 40 | Q167: -40 | BC167: 1529390000
A168: 136 | B168: =IF(A168>$A$8,"",OFFSET(InputPriceData!B$15,$A168+$A$11,0,1,1)) -> 2018-03-07 | C168: =IF(A168>$A$8,"",OFFSET(InputPriceData!G$15,CalculationsAndCharts!$A168+$A$11,IF($C$5,8,0),1,1)) -> 2135337500 | D168: =IF(A168>$A$8,"",OFFSET(InputPriceData!C$15,CalculationsAndCharts!$A168+$A$11,IF($C$5,8,0),1,1)) -> 30323.76953 | E168: =IF(A168>$A$8,"",OFFSET(InputPriceData!D$15,CalculationsAndCharts!$A168+$A$11,IF($C$5,8,0),1,1)) -> 30673.08008 | F168: =IF(A168>$A$8,"",OFFSET(InputPriceData!E$15,CalculationsAndCharts!$A168+$A$11,IF($C$5,8,0),1,1)) -> 30117.40039 | G168: =IF(A168>$A$8,"",OFFSET(InputPriceData!F$15,CalculationsAndCharts!$A168+$A$11,IF($C$5,8,0),1,1)) -> 30196.91992 | H168: 28628.08912 | I168: 918.509766 | J168: 3451.271484 | K168: 4.86914 | L168: 0.2650998156 | M168: -0.2650998156 | N168: -0.09352280253 | O168: -9.352280253 | P168: 40 | Q168: -40 | BD168: 2135337500
A169: 137 | B169: =IF(A169>$A$8,"",OFFSET(InputPriceData!B$15,$A169+$A$11,0,1,1)) -> 2018-03-06 | C169: =IF(A169>$A$8,"",OFFSET(InputPriceData!G$15,CalculationsAndCharts!$A169+$A$11,IF($C$5,8,0),1,1)) -> 2270403000 | D169: =IF(A169>$A$8,"",OFFSET(InputPriceData!C$15,CalculationsAndCharts!$A169+$A$11,IF($C$5,8,0),1,1)) -> 30380.96094 | E169: =IF(A169>$A$8,"",OFFSET(InputPriceData!D$15,CalculationsAndCharts!$A169+$A$11,IF($C$5,8,0),1,1)) -> 30620.06055 | F169: =IF(A169>$A$8,"",OFFSET(InputPriceData!E$15,CalculationsAndCharts!$A169+$A$11,IF($C$5,8,0),1,1)) -> 30129.80078 | G169: =IF(A169>$A$8,"",OFFSET(InputPriceData!F$15,CalculationsAndCharts!$A169+$A$11,IF($C$5,8,0),1,1)) -> 30510.73047 | H169: 28612.32198 | I169: 4.86914 | J169: 3451.271484 | K169: 4.86914 | L169: 0 | M169: 0 | N169: 0.07805421058 | O169: 7.805421058 | P169: 40 | Q169: -40 | BC169: 2270403000
A170: 138 | B170: =IF(A170>$A$8,"",OFFSET(InputPriceData!B$15,$A170+$A$11,0,1,1)) -> 2018-03-05 | C170: =IF(A170>$A$8,"",OFFSET(InputPriceData!G$15,CalculationsAndCharts!$A170+$A$11,IF($C$5,8,0),1,1)) -> 2279546200 | D170: =IF(A170>$A$8,"",OFFSET(InputPriceData!C$15,CalculationsAndCharts!$A170+$A$11,IF($C$5,8,0),1,1)) -> 30524.25977 | E170: =IF(A170>$A$8,"",OFFSET(InputPriceData!D$15,CalculationsAndCharts!$A170+$A$11,IF($C$5,8,0),1,1)) -> 30679.4707 | F170: =IF(A170>$A$8,"",OFFSET(InputPriceData!E$15,CalculationsAndCharts!$A170+$A$11,IF($C$5,8,0),1,1)) -> 29852.41992 | G170: =IF(A170>$A$8,"",OFFSET(InputPriceData!F$15,CalculationsAndCharts!$A170+$A$11,IF($C$5,8,0),1,1)) -> 29886.39062 | H170: 28593.24249 | I170: 46.861328 | J170: 3451.271484 | K170: 6.75 | L170: 0.0116449638 | M170: 0.0116449638 | N170: 0.1561084212 | O170: 15.61084212 | P170: 40 | Q170: -40 | BD170: 2279546200
A171: 139 | B171: =IF(A171>$A$8,"",OFFSET(InputPriceData!B$15,$A171+$A$11,0,1,1)) -> 2018-03-02 | C171: =IF(A171>$A$8,"",OFFSET(InputPriceData!G$15,CalculationsAndCharts!$A171+$A$11,IF($C$5,8,0),1,1)) -> 2955637100 | D171: =IF(A171>$A$8,"",OFFSET(InputPriceData!C$15,CalculationsAndCharts!$A171+$A$11,IF($C$5,8,0),1,1)) -> 30611.09961 | E171: =IF(A171>$A$8,"",OFFSET(InputPriceData!D$15,CalculationsAndCharts!$A171+$A$11,IF($C$5,8,0),1,1)) -> 30670.93945 | F171: =IF(A171>$A$8,"",OFFSET(InputPriceData!E$15,CalculationsAndCharts!$A171+$A$11,IF($C$5,8,0),1,1)) -> 30477.94922 | G171: =IF(A171>$A$8,"",OFFSET(InputPriceData!F$15,CalculationsAndCharts!$A171+$A$11,IF($C$5,8,0),1,1)) -> 30583.44922 | H171: 28580.24603 | I171: 1123.81836 | J171: 3451.271484 | K171: 6.75 | L171: 0.3243029156 | M171: 0.3243029156 | N171: 0.3005718785 | O171: 30.05718785 | P171: 40 | Q171: -40 | BD171: 2955637100
A172: 140 | B172: =IF(A172>$A$8,"",OFFSET(InputPriceData!B$15,$A172+$A$11,0,1,1)) -> 2018-03-01 | C172: =IF(A172>$A$8,"",OFFSET(InputPriceData!G$15,CalculationsAndCharts!$A172+$A$11,IF($C$5,8,0),1,1)) -> 2116269800 | D172: =IF(A172>$A$8,"",OFFSET(InputPriceData!C$15,CalculationsAndCharts!$A172+$A$11,IF($C$5,8,0),1,1)) -> 30476.99023 | E172: =IF(A172>$A$8,"",OFFSET(InputPriceData!D$15,CalculationsAndCharts!$A172+$A$11,IF($C$5,8,0),1,1)) -> 31081.67969 | F172: =IF(A172>$A$8,"",OFFSET(InputPriceData!E$15,CalculationsAndCharts!$A172+$A$11,IF($C$5,8,0),1,1)) -> 30453.82031 | G172: =IF(A172>$A$8,"",OFFSET(InputPriceData!F$15,CalculationsAndCharts!$A172+$A$11,IF($C$5,8,0),1,1)) -> 31044.25 | H172: 28560.11333 | I172: 1536.830078 | J172: 3451.271484 | K172: 6.75 | L172: 0.4442068616 | M172: 0.4442068616 | N172: 0.2768408414 | O172: 27.68408414 | P172: 40 | Q172: -40 | BC172: 2116269800
A173: 141 | B173: =IF(A173>$A$8,"",OFFSET(InputPriceData!B$15,$A173+$A$11,0,1,1)) -> 2018-02-28 | C173: =IF(A173>$A$8,"",OFFSET(InputPriceData!G$15,CalculationsAndCharts!$A173+$A$11,IF($C$5,8,0),1,1)) -> 2407877200 | D173: =IF(A173>$A$8,"",OFFSET(InputPriceData!C$15,CalculationsAndCharts!$A173+$A$11,IF($C$5,8,0),1,1)) -> 31037.41016 | E173: =IF(A173>$A$8,"",OFFSET(InputPriceData!D$15,CalculationsAndCharts!$A173+$A$11,IF($C$5,8,0),1,1)) -> 31061.75977 | F173: =IF(A173>$A$8,"",OFFSET(InputPriceData!E$15,CalculationsAndCharts!$A173+$A$11,IF($C$5,8,0),1,1)) -> 30703.90039 | G173: =IF(A173>$A$8,"",OFFSET(InputPriceData!F$15,CalculationsAndCharts!$A173+$A$11,IF($C$5,8,0),1,1)) -> 30844.7207 | H173: 28535.14714 | I173: 393.451172 | J173: 3451.271484 | K173: 6.75 | L173: 0.1122655712 | M173: 0.1122655712 | N173: 0.1094748213 | O173: 10.94748213 | P173: 40 | Q173: -40 | BC173: =IF(G173>=G174,C173,NA()) ->  | BD173: =IF(G173<G174,C173,NA()) -> 2407877200
A174: 142 | B174: =IF(A174>$A$8,"",OFFSET(InputPriceData!B$15,$A174+$A$11,0,1,1)) -> 2018-02-27 | C174: =IF(A174>$A$8,"",OFFSET(InputPriceData!G$15,CalculationsAndCharts!$A174+$A$11,IF($C$5,8,0),1,1)) -> 2579124300 | D174: =IF(A174>$A$8,"",OFFSET(InputPriceData!C$15,CalculationsAndCharts!$A174+$A$11,IF($C$5,8,0),1,1)) -> 31790.84961 | E174: =IF(A174>$A$8,"",OFFSET(InputPriceData!D$15,CalculationsAndCharts!$A174+$A$11,IF($C$5,8,0),1,1)) -> 31798.98047 | F174: =IF(A174>$A$8,"",OFFSET(InputPriceData!E$15,CalculationsAndCharts!$A174+$A$11,IF($C$5,8,0),1,1)) -> 31141.51953 | G174: =IF(A174>$A$8,"",OFFSET(InputPriceData!F$15,CalculationsAndCharts!$A174+$A$11,IF($C$5,8,0),1,1)) -> 31268.66016 | H174: 28511.93534 | I174: 945.460937 | J174: 3451.271484 | K174: 6.75 | L174: 0.2725228864 | M174: 0.2725228864 | N174: 0.1066840714 | O174: 10.66840714 | P174: 40 | Q174: -40 | BD174: 2579124300
A175: 143 | B175: =IF(A175>$A$8,"",OFFSET(InputPriceData!B$15,$A175+$A$11,0,1,1)) -> 2018-02-26 | C175: =IF(A175>$A$8,"",OFFSET(InputPriceData!G$15,CalculationsAndCharts!$A175+$A$11,IF($C$5,8,0),1,1)) -> 2025591300 | D175: =IF(A175>$A$8,"",OFFSET(InputPriceData!C$15,CalculationsAndCharts!$A175+$A$11,IF($C$5,8,0),1,1)) -> 31528.28906 | E175: =IF(A175>$A$8,"",OFFSET(InputPriceData!D$15,CalculationsAndCharts!$A175+$A$11,IF($C$5,8,0),1,1)) -> 31567.46094 | F175: =IF(A175>$A$8,"",OFFSET(InputPriceData!E$15,CalculationsAndCharts!$A175+$A$11,IF($C$5,8,0),1,1)) -> 31273.94922 | G175: =IF(A175>$A$8,"",OFFSET(InputPriceData!F$15,CalculationsAndCharts!$A175+$A$11,IF($C$5,8,0),1,1)) -> 31498.59961 | H175: 28484.22956 | I175: 903.179687 | J175: 3451.271484 | K175: 6.75 | L175: 0.2602479593 | M175: 0.2602479593 | N175: -0.05915474357 | O175: -5.915474357 | P175: 40 | Q175: -40 | BC175: 2025591300
A176: 144 | B176: =IF(A176>$A$8,"",OFFSET(InputPriceData!B$15,$A176+$A$11,0,1,1)) -> 2018-02-23 | C176: =IF(A176>$A$8,"",OFFSET(InputPriceData!G$15,CalculationsAndCharts!$A176+$A$11,IF($C$5,8,0),1,1)) -> 1667179100 | D176: =IF(A176>$A$8,"",OFFSET(InputPriceData!C$15,CalculationsAndCharts!$A176+$A$11,IF($C$5,8,0),1,1)) -> 31289.08008 | E176: =IF(A176>$A$8,"",OFFSET(InputPriceData!D$15,CalculationsAndCharts!$A176+$A$11,IF($C$5,8,0),1,1)) -> 31386.81055 | F176: =IF(A176>$A$8,"",OFFSET(InputPriceData!E$15,CalculationsAndCharts!$A176+$A$11,IF($C$5,8,0),1,1)) -> 31149.32031 | G176: =IF(A176>$A$8,"",OFFSET(InputPriceData!F$15,CalculationsAndCharts!$A176+$A$11,IF($C$5,8,0),1,1)) -> 31267.16992 | H176: 28453.93439 | I176: 978.050781 | J176: 3451.271484 | K176: 6.75 | L176: 0.2819842424 | M176: -0.2819842424 | N176: -0.3785574464 | O176: -37.85574464 | P176: 40 | Q176: -40 | BC176: 1667179100
A177: 145 | B177: =IF(A177>$A$8,"",OFFSET(InputPriceData!B$15,$A177+$A$11,0,1,1)) -> 2018-02-22 | C177: =IF(A177>$A$8,"",OFFSET(InputPriceData!G$15,CalculationsAndCharts!$A177+$A$11,IF($C$5,8,0),1,1)) -> 2391326700 | D177: =IF(A177>$A$8,"",OFFSET(InputPriceData!C$15,CalculationsAndCharts!$A177+$A$11,IF($C$5,8,0),1,1)) -> 31084.44922 | E177: =IF(A177>$A$8,"",OFFSET(InputPriceData!D$15,CalculationsAndCharts!$A177+$A$11,IF($C$5,8,0),1,1)) -> 31195.26953 | F177: =IF(A177>$A$8,"",OFFSET(InputPriceData!E$15,CalculationsAndCharts!$A177+$A$11,IF($C$5,8,0),1,1)) -> 30930.09961 | G177: =IF(A177>$A$8,"",OFFSET(InputPriceData!F$15,CalculationsAndCharts!$A177+$A$11,IF($C$5,8,0),1,1)) -> 30965.67969 | H177: 28425.66066 | I177: 1636.099609 | J177: 3451.271484 | K177: 6.75 | L177: 0.4730264034 | M177: -0.4730264034 | N177: -0.4751306505 | O177: -47.51306505 | P177: 40 | Q177: -40 | BD177: 2391326700
A178: 146 | B178: =IF(A178>$A$8,"",OFFSET(InputPriceData!B$15,$A178+$A$11,0,1,1)) -> 2018-02-21 | C178: =IF(A178>$A$8,"",OFFSET(InputPriceData!G$15,CalculationsAndCharts!$A178+$A$11,IF($C$5,8,0),1,1)) -> 1933845300 | D178: =IF(A178>$A$8,"",OFFSET(InputPriceData!C$15,CalculationsAndCharts!$A178+$A$11,IF($C$5,8,0),1,1)) -> 31050.51953 | E178: =IF(A178>$A$8,"",OFFSET(InputPriceData!D$15,CalculationsAndCharts!$A178+$A$11,IF($C$5,8,0),1,1)) -> 31477.84961 | F178: =IF(A178>$A$8,"",OFFSET(InputPriceData!E$15,CalculationsAndCharts!$A178+$A$11,IF($C$5,8,0),1,1)) -> 30885.94922 | G178: =IF(A178>$A$8,"",OFFSET(InputPriceData!F$15,CalculationsAndCharts!$A178+$A$11,IF($C$5,8,0),1,1)) -> 31431.89062 | H178: 28400.13284 | I178: 1210.199219 | J178: 3451.271484 | K178: 6.75 | L178: 0.3493806686 | M178: -0.3493806686 | N178: -0.4772348976 | O178: -47.72348976 | P178: 40 | Q178: -40 | BC178: 1933845300
A179: 147 | B179: =IF(A179>$A$8,"",OFFSET(InputPriceData!B$15,$A179+$A$11,0,1,1)) -> 2018-02-20 | C179: =IF(A179>$A$8,"",OFFSET(InputPriceData!G$15,CalculationsAndCharts!$A179+$A$11,IF($C$5,8,0),1,1)) -> 2033432100 | D179: =IF(A179>$A$8,"",OFFSET(InputPriceData!C$15,CalculationsAndCharts!$A179+$A$11,IF($C$5,8,0),1,1)) -> 31165.28906 | E179: =IF(A179>$A$8,"",OFFSET(InputPriceData!D$15,CalculationsAndCharts!$A179+$A$11,IF($C$5,8,0),1,1)) -> 31339.68945 | F179: =IF(A179>$A$8,"",OFFSET(InputPriceData!E$15,CalculationsAndCharts!$A179+$A$11,IF($C$5,8,0),1,1)) -> 30720.48047 | G179: =IF(A179>$A$8,"",OFFSET(InputPriceData!F$15,CalculationsAndCharts!$A179+$A$11,IF($C$5,8,0),1,1)) -> 30873.63086 | H179: 28369.66291 | I179: 2013.638672 | J179: 3451.271484 | K179: 6.75 | L179: 0.582632067 | M179: -0.582632067 | N179: -0.6050891267 | O179: -60.50891267 | P179: 40 | Q179: -40 | BD179: 2033432100
A180: 148 | B180: =IF(A180>$A$8,"",OFFSET(InputPriceData!B$15,$A180+$A$11,0,1,1)) -> 2018-02-15 | C180: =IF(A180>$A$8,"",OFFSET(InputPriceData!G$15,CalculationsAndCharts!$A180+$A$11,IF($C$5,8,0),1,1)) -> 2070618100 | D180: =IF(A180>$A$8,"",OFFSET(InputPriceData!C$15,CalculationsAndCharts!$A180+$A$11,IF($C$5,8,0),1,1)) -> 30958.71094 | E180: =IF(A180>$A$8,"",OFFSET(InputPriceData!D$15,CalculationsAndCharts!$A180+$A$11,IF($C$5,8,0),1,1)) -> 31145.09961 | F180: =IF(A180>$A$8,"",OFFSET(InputPriceData!E$15,CalculationsAndCharts!$A180+$A$11,IF($C$5,8,0),1,1)) -> 30816.65039 | G180: =IF(A180>$A$8,"",OFFSET(InputPriceData!F$15,CalculationsAndCharts!$A180+$A$11,IF($C$5,8,0),1,1)) -> 31115.42969 | H180: 28344.4974 | I180: 1491.859375 | J180: 3451.271484 | K180: 6.75 | L180: 0.431151143 | M180: -0.431151143 | N180: -0.6275461864 | O180: -62.75461864 | P180: 40 | Q180: -40 | BC180: 2070618100
A181: 149 | B181: =IF(A181>$A$8,"",OFFSET(InputPriceData!B$15,$A181+$A$11,0,1,1)) -> 2018-02-14 | C181: =IF(A181>$A$8,"",OFFSET(InputPriceData!G$15,CalculationsAndCharts!$A181+$A$11,IF($C$5,8,0),1,1)) -> 2408651200 | D181: =IF(A181>$A$8,"",OFFSET(InputPriceData!C$15,CalculationsAndCharts!$A181+$A$11,IF($C$5,8,0),1,1)) -> 30024.4707 | E181: =IF(A181>$A$8,"",OFFSET(InputPriceData!D$15,CalculationsAndCharts!$A181+$A$11,IF($C$5,8,0),1,1)) -> 30637.23047 | F181: =IF(A181>$A$8,"",OFFSET(InputPriceData!E$15,CalculationsAndCharts!$A181+$A$11,IF($C$5,8,0),1,1)) -> 29968.53906 | G181: =IF(A181>$A$8,"",OFFSET(InputPriceData!F$15,CalculationsAndCharts!$A181+$A$11,IF($C$5,8,0),1,1)) -> 30515.59961 | H181: 28316.64884 | I181: 2451.291016 | J181: 3451.271484 | K181: 6.75 | L181: 0.7096895831 | M181: -0.7096895831 | N181: -0.8239412298 | O181: -82.39412298 | P181: 40 | Q181: -40 | BC181: 2408651200
A182: 150 | B182: =IF(A182>$A$8,"",OFFSET(InputPriceData!B$15,$A182+$A$11,0,1,1)) -> 2018-02-13 | C182: =IF(A182>$A$8,"",OFFSET(InputPriceData!G$15,CalculationsAndCharts!$A182+$A$11,IF($C$5,8,0),1,1)) -> 2709197500 | D182: =IF(A182>$A$8,"",OFFSET(InputPriceData!C$15,CalculationsAndCharts!$A182+$A$11,IF($C$5,8,0),1,1)) -> 29850.15039 | E182: =IF(A182>$A$8,"",OFFSET(InputPriceData!D$15,CalculationsAndCharts!$A182+$A$11,IF($C$5,8,0),1,1)) -> 30169 | F182: =IF(A182>$A$8,"",OFFSET(InputPriceData!E$15,CalculationsAndCharts!$A182+$A$11,IF($C$5,8,0),1,1)) -> 29783.09961 | G182: =IF(A182>$A$8,"",OFFSET(InputPriceData!F$15,CalculationsAndCharts!$A182+$A$11,IF($C$5,8,0),1,1)) -> 29839.5293 | H182: 28294.54883 | I182: 3314.591797 | J182: 3451.271484 | K182: 6.75 | L182: 0.9603196881 | M182: -0.9603196881 | N182: -0.9381928766 | O182: -93.81928766 | P182: 40 | Q182: -40 | BC182: 2709197500
A183: 151 | B183: =IF(A183>$A$8,"",OFFSET(InputPriceData!B$15,$A183+$A$11,0,1,1)) -> 2018-02-12 | C183: =IF(A183>$A$8,"",OFFSET(InputPriceData!G$15,CalculationsAndCharts!$A183+$A$11,IF($C$5,8,0),1,1)) -> 2815461600 | D183: =IF(A183>$A$8,"",OFFSET(InputPriceData!C$15,CalculationsAndCharts!$A183+$A$11,IF($C$5,8,0),1,1)) -> 29713.08008 | E183: =IF(A183>$A$8,"",OFFSET(InputPriceData!D$15,CalculationsAndCharts!$A183+$A$11,IF($C$5,8,0),1,1)) -> 29801.51953 | F183: =IF(A183>$A$8,"",OFFSET(InputPriceData!E$15,CalculationsAndCharts!$A183+$A$11,IF($C$5,8,0),1,1)) -> 29459.63086 | G183: =IF(A183>$A$8,"",OFFSET(InputPriceData!F$15,CalculationsAndCharts!$A183+$A$11,IF($C$5,8,0),1,1)) -> 29459.63086 | H183: 28279.02139 | I183: 3194.81836 | J183: 3451.271484 | K183: 6.75 | L183: 0.9255475325 | M183: -0.9255475325 | N183: -0.9160660651 | O183: -91.60660651 | P183: 40 | Q183: -40 | BD183: 2815461600
A184: 152 | B184: =IF(A184>$A$8,"",OFFSET(InputPriceData!B$15,$A184+$A$11,0,1,1)) -> 2018-02-09 | C184: =IF(A184>$A$8,"",OFFSET(InputPriceData!G$15,CalculationsAndCharts!$A184+$A$11,IF($C$5,8,0),1,1)) -> 5171294500 | D184: =IF(A184>$A$8,"",OFFSET(InputPriceData!C$15,CalculationsAndCharts!$A184+$A$11,IF($C$5,8,0),1,1)) -> 29679.21094 | E184: =IF(A184>$A$8,"",OFFSET(InputPriceData!D$15,CalculationsAndCharts!$A184+$A$11,IF($C$5,8,0),1,1)) -> 29679.21094 | F184: =IF(A184>$A$8,"",OFFSET(InputPriceData!E$15,CalculationsAndCharts!$A184+$A$11,IF($C$5,8,0),1,1)) -> 29129.25977 | G184: =IF(A184>$A$8,"",OFFSET(InputPriceData!F$15,CalculationsAndCharts!$A184+$A$11,IF($C$5,8,0),1,1)) -> 29507.41992 | H184: 28267.15596 | I184: 3451.271484 | J184: 3451.271484 | K184: 6.75 | L184: 1 | M184: -1 | N184: -0.9065845977 | O184: -90.65845977 | P184: 40 | Q184: -40 | BD184: 5171294500
A185: 153 | B185: =IF(A185>$A$8,"",OFFSET(InputPriceData!B$15,$A185+$A$11,0,1,1)) -> 2018-02-08 | C185: =IF(A185>$A$8,"",OFFSET(InputPriceData!G$15,CalculationsAndCharts!$A185+$A$11,IF($C$5,8,0),1,1)) -> 3145081200 | D185: =IF(A185>$A$8,"",OFFSET(InputPriceData!C$15,CalculationsAndCharts!$A185+$A$11,IF($C$5,8,0),1,1)) -> 30555.80078 | E185: =IF(A185>$A$8,"",OFFSET(InputPriceData!D$15,CalculationsAndCharts!$A185+$A$11,IF($C$5,8,0),1,1)) -> 30739.10938 | F185: =IF(A185>$A$8,"",OFFSET(InputPriceData!E$15,CalculationsAndCharts!$A185+$A$11,IF($C$5,8,0),1,1)) -> 30251.32031 | G185: =IF(A185>$A$8,"",OFFSET(InputPriceData!F$15,CalculationsAndCharts!$A185+$A$11,IF($C$5,8,0),1,1)) -> 30451.26953 | H185: 28254.691 | I185: 2479.429688 | J185: 2479.429688 | K185: 6.75 | L185: 1 | M185: -1 | N185: -0.8131691955 | O185: -81.31691955 | P185: 40 | Q185: -40 | BC185: 3145081200
A186: 154 | B186: =IF(A186>$A$8,"",OFFSET(InputPriceData!B$15,$A186+$A$11,0,1,1)) -> 2018-02-07 | C186: =IF(A186>$A$8,"",OFFSET(InputPriceData!G$15,CalculationsAndCharts!$A186+$A$11,IF($C$5,8,0),1,1)) -> 4620281500 | D186: =IF(A186>$A$8,"",OFFSET(InputPriceData!C$15,CalculationsAndCharts!$A186+$A$11,IF($C$5,8,0),1,1)) -> 31378.34961 | E186: =IF(A186>$A$8,"",OFFSET(InputPriceData!D$15,CalculationsAndCharts!$A186+$A$11,IF($C$5,8,0),1,1)) -> 31472.4707 | F186: =IF(A186>$A$8,"",OFFSET(InputPriceData!E$15,CalculationsAndCharts!$A186+$A$11,IF($C$5,8,0),1,1)) -> 30292.15039 | G186: =IF(A186>$A$8,"",OFFSET(InputPriceData!F$15,CalculationsAndCharts!$A186+$A$11,IF($C$5,8,0),1,1)) -> 30323.19922 | H186: 28232.61483 | I186: 2070.210937 | J186: 2116.058594 | K186: 6.75 | L186: 0.9782641302 | M186: -0.9782641302 | N186: -0.626338391 | O186: -62.6338391 | P186: 40 | Q186: -40 | BD186: 4620281500
A187: 155 | B187: =IF(A187>$A$8,"",OFFSET(InputPriceData!B$15,$A187+$A$11,0,1,1)) -> 2018-02-06 | C187: =IF(A187>$A$8,"",OFFSET(InputPriceData!G$15,CalculationsAndCharts!$A187+$A$11,IF($C$5,8,0),1,1)) -> 5531270100 | D187: =IF(A187>$A$8,"",OFFSET(InputPriceData!C$15,CalculationsAndCharts!$A187+$A$11,IF($C$5,8,0),1,1)) -> 31028.67969 | E187: =IF(A187>$A$8,"",OFFSET(InputPriceData!D$15,CalculationsAndCharts!$A187+$A$11,IF($C$5,8,0),1,1)) -> 31286.0293 | F187: =IF(A187>$A$8,"",OFFSET(InputPriceData!E$15,CalculationsAndCharts!$A187+$A$11,IF($C$5,8,0),1,1)) -> 30577.83008 | G187: =IF(A187>$A$8,"",OFFSET(InputPriceData!F$15,CalculationsAndCharts!$A187+$A$11,IF($C$5,8,0),1,1)) -> 30595.41992 | H187: 28211.60393 | I187: 1659.470703 | J187: 2116.058594 | K187: 6.75 | L187: 0.7835367038 | M187: -0.7835367038 | N187: -0.2744126518 | O187: -27.44126518 | P187: 40 | Q187: -40 | BD187: 5531270100
A188: 156 | B188: =IF(A188>$A$8,"",OFFSET(InputPriceData!B$15,$A188+$A$11,0,1,1)) -> 2018-02-05 | C188: =IF(A188>$A$8,"",OFFSET(InputPriceData!G$15,CalculationsAndCharts!$A188+$A$11,IF($C$5,8,0),1,1)) -> 3135015100 | D188: =IF(A188>$A$8,"",OFFSET(InputPriceData!C$15,CalculationsAndCharts!$A188+$A$11,IF($C$5,8,0),1,1)) -> 31715.56055 | E188: =IF(A188>$A$8,"",OFFSET(InputPriceData!D$15,CalculationsAndCharts!$A188+$A$11,IF($C$5,8,0),1,1)) -> 32394.86914 | F188: =IF(A188>$A$8,"",OFFSET(InputPriceData!E$15,CalculationsAndCharts!$A188+$A$11,IF($C$5,8,0),1,1)) -> 31712.01953 | G188: =IF(A188>$A$8,"",OFFSET(InputPriceData!F$15,CalculationsAndCharts!$A188+$A$11,IF($C$5,8,0),1,1)) -> 32245.2207 | H188: 28187.64598 | I188: 123.28125 | J188: 2116.058594 | K188: 6.75 | L188: 0.05524618367 | M188: 0.05524618367 | N188: 0.2347114002 | O188: 23.47114002 | P188: 40 | Q188: -40 | BD188: 3135015100
A189: 157 | B189: =IF(A189>$A$8,"",OFFSET(InputPriceData!B$15,$A189+$A$11,0,1,1)) -> 2018-02-02 | C189: =IF(A189>$A$8,"",OFFSET(InputPriceData!G$15,CalculationsAndCharts!$A189+$A$11,IF($C$5,8,0),1,1)) -> 2571367100 | D189: =IF(A189>$A$8,"",OFFSET(InputPriceData!C$15,CalculationsAndCharts!$A189+$A$11,IF($C$5,8,0),1,1)) -> 32569.00977 | E189: =IF(A189>$A$8,"",OFFSET(InputPriceData!D$15,CalculationsAndCharts!$A189+$A$11,IF($C$5,8,0),1,1)) -> 32778.51172 | F189: =IF(A189>$A$8,"",OFFSET(InputPriceData!E$15,CalculationsAndCharts!$A189+$A$11,IF($C$5,8,0),1,1)) -> 32321.41992 | G189: =IF(A189>$A$8,"",OFFSET(InputPriceData!F$15,CalculationsAndCharts!$A189+$A$11,IF($C$5,8,0),1,1)) -> 32601.7793 | H189: 28146.86634 | I189: 618.369141 | J189: 2116.058594 | K189: 6.75 | L189: 0.2899619064 | M189: 0.2899619064 | N189: 0.4141766168 | O189: 41.41766168 | P189: 40 | Q189: -40 | BD189: 2571367100
A190: 158 | B190: =IF(A190>$A$8,"",OFFSET(InputPriceData!B$15,$A190+$A$11,0,1,1)) -> 2018-02-01 | C190: =IF(A190>$A$8,"",OFFSET(InputPriceData!G$15,CalculationsAndCharts!$A190+$A$11,IF($C$5,8,0),1,1)) -> 2769125200 | D190: =IF(A190>$A$8,"",OFFSET(InputPriceData!C$15,CalculationsAndCharts!$A190+$A$11,IF($C$5,8,0),1,1)) -> 32950.30078 | E190: =IF(A190>$A$8,"",OFFSET(InputPriceData!D$15,CalculationsAndCharts!$A190+$A$11,IF($C$5,8,0),1,1)) -> 33048.03906 | F190: =IF(A190>$A$8,"",OFFSET(InputPriceData!E$15,CalculationsAndCharts!$A190+$A$11,IF($C$5,8,0),1,1)) -> 32642.08984 | G190: =IF(A190>$A$8,"",OFFSET(InputPriceData!F$15,CalculationsAndCharts!$A190+$A$11,IF($C$5,8,0),1,1)) -> 32642.08984 | H190: 28102.09335 | I190: 737.339844 | J190: 2116.058594 | K190: 6.75 | L190: 0.3463646079 | M190: 0.3463646079 | N190: 0.5383913272 | O190: 53.83913272 | P190: 40 | Q190: -40 | BD190: 2769125200
A191: 159 | B191: =IF(A191>$A$8,"",OFFSET(InputPriceData!B$15,$A191+$A$11,0,1,1)) -> 2018-01-31 | C191: =IF(A191>$A$8,"",OFFSET(InputPriceData!G$15,CalculationsAndCharts!$A191+$A$11,IF($C$5,8,0),1,1)) -> 3314255500 | D191: =IF(A191>$A$8,"",OFFSET(InputPriceData!C$15,CalculationsAndCharts!$A191+$A$11,IF($C$5,8,0),1,1)) -> 32435.75977 | E191: =IF(A191>$A$8,"",OFFSET(InputPriceData!D$15,CalculationsAndCharts!$A191+$A$11,IF($C$5,8,0),1,1)) -> 32933.98047 | F191: =IF(A191>$A$8,"",OFFSET(InputPriceData!E$15,CalculationsAndCharts!$A191+$A$11,IF($C$5,8,0),1,1)) -> 32330.39062 | G191: =IF(A191>$A$8,"",OFFSET(InputPriceData!F$15,CalculationsAndCharts!$A191+$A$11,IF($C$5,8,0),1,1)) -> 32887.26953 | H191: 28056.46524 | I191: 1548.40039 | J191: 2116.058594 | K191: 6.75 | L191: 0.7308794903 | M191: 0.7308794903 | N191: 0.7304180465 | O191: 73.04180465 | P191: 40 | Q191: -40 | BC191: 3314255500
A192: 160 | B192: =IF(A192>$A$8,"",OFFSET(InputPriceData!B$15,$A192+$A$11,0,1,1)) -> 2018-01-30 | C192: =IF(A192>$A$8,"",OFFSET(InputPriceData!G$15,CalculationsAndCharts!$A192+$A$11,IF($C$5,8,0),1,1)) -> 3177122400 | D192: =IF(A192>$A$8,"",OFFSET(InputPriceData!C$15,CalculationsAndCharts!$A192+$A$11,IF($C$5,8,0),1,1)) -> 32751.7207 | E192: =IF(A192>$A$8,"",OFFSET(InputPriceData!D$15,CalculationsAndCharts!$A192+$A$11,IF($C$5,8,0),1,1)) -> 32976.75 | F192: =IF(A192>$A$8,"",OFFSET(InputPriceData!E$15,CalculationsAndCharts!$A192+$A$11,IF($C$5,8,0),1,1)) -> 32501.34961 | G192: =IF(A192>$A$8,"",OFFSET(InputPriceData!F$15,CalculationsAndCharts!$A192+$A$11,IF($C$5,8,0),1,1)) -> 32607.28906 | H192: 28007.91444 | I192: 1194.75 | J192: 2116.058594 | K192: 6.75 | L192: 0.5632177309 | M192: 0.5632177309 | N192: 0.7299566028 | O192: 72.99566028 | P192: 40 | Q192: -40 | BD192: 3177122400
A193: 161 | B193: =IF(A193>$A$8,"",OFFSET(InputPriceData!B$15,$A193+$A$11,0,1,1)) -> 2018-01-29 | C193: =IF(A193>$A$8,"",OFFSET(InputPriceData!G$15,CalculationsAndCharts!$A193+$A$11,IF($C$5,8,0),1,1)) -> 3605090600 | D193: =IF(A193>$A$8,"",OFFSET(InputPriceData!C$15,CalculationsAndCharts!$A193+$A$11,IF($C$5,8,0),1,1)) -> 33335.48047 | E193: =IF(A193>$A$8,"",OFFSET(InputPriceData!D$15,CalculationsAndCharts!$A193+$A$11,IF($C$5,8,0),1,1)) -> 33484.07812 | F193: =IF(A193>$A$8,"",OFFSET(InputPriceData!E$15,CalculationsAndCharts!$A193+$A$11,IF($C$5,8,0),1,1)) -> 32897.03906 | G193: =IF(A193>$A$8,"",OFFSET(InputPriceData!F$15,CalculationsAndCharts!$A193+$A$11,IF($C$5,8,0),1,1)) -> 32966.89062 | H193: 27961.68957 | I193: 1846.5 | J193: 2116.058594 | K193: 6.75 | L193: 0.872205236 | M193: 0.872205236 | N193: 0.8966954747 | O193: 89.66954747 | P193: 40 | Q193: -40 | BD193: 3605090600
A194: 162 | B194: =IF(A194>$A$8,"",OFFSET(InputPriceData!B$15,$A194+$A$11,0,1,1)) -> 2018-01-26 | C194: =IF(A194>$A$8,"",OFFSET(InputPriceData!G$15,CalculationsAndCharts!$A194+$A$11,IF($C$5,8,0),1,1)) -> 3892652400 | D194: =IF(A194>$A$8,"",OFFSET(InputPriceData!C$15,CalculationsAndCharts!$A194+$A$11,IF($C$5,8,0),1,1)) -> 32836.28125 | E194: =IF(A194>$A$8,"",OFFSET(InputPriceData!D$15,CalculationsAndCharts!$A194+$A$11,IF($C$5,8,0),1,1)) -> 33223.57812 | F194: =IF(A194>$A$8,"",OFFSET(InputPriceData!E$15,CalculationsAndCharts!$A194+$A$11,IF($C$5,8,0),1,1)) -> 32794.12891 | G194: =IF(A194>$A$8,"",OFFSET(InputPriceData!F$15,CalculationsAndCharts!$A194+$A$11,IF($C$5,8,0),1,1)) -> 33154.12109 | H194: 27911.38604 | I194: 2080.400391 | J194: 2116.058594 | K194: 6.75 | L194: 0.9830948382 | M194: 0.9830948382 | N194: 0.9211857135 | O194: 92.11857135 | P194: 40 | Q194: -40 | BC194: 3892652400
A195: 163 | B195: =IF(A195>$A$8,"",OFFSET(InputPriceData!B$15,$A195+$A$11,0,1,1)) -> 2018-01-25 | C195: =IF(A195>$A$8,"",OFFSET(InputPriceData!G$15,CalculationsAndCharts!$A195+$A$11,IF($C$5,8,0),1,1)) -> 3554766400 | D195: =IF(A195>$A$8,"",OFFSET(InputPriceData!C$15,CalculationsAndCharts!$A195+$A$11,IF($C$5,8,0),1,1)) -> 32979.37891 | E195: =IF(A195>$A$8,"",OFFSET(InputPriceData!D$15,CalculationsAndCharts!$A195+$A$11,IF($C$5,8,0),1,1)) -> 32998.05078 | F195: =IF(A195>$A$8,"",OFFSET(InputPriceData!E$15,CalculationsAndCharts!$A195+$A$11,IF($C$5,8,0),1,1)) -> 32650.2207 | G195: =IF(A195>$A$8,"",OFFSET(InputPriceData!F$15,CalculationsAndCharts!$A195+$A$11,IF($C$5,8,0),1,1)) -> 32654.44922 | H195: 27858.69524 | I195: 1643.039063 | J195: 2116.058594 | K195: 6.75 | L195: 0.775746644 | M195: 0.775746644 | N195: 0.8592765887 | O195: 85.92765887 | P195: 40 | Q195: -40 | BD195: 3554766400
A196: 164 | B196: =IF(A196>$A$8,"",OFFSET(InputPriceData!B$15,$A196+$A$11,0,1,1)) -> 2018-01-24 | C196: =IF(A196>$A$8,"",OFFSET(InputPriceData!G$15,CalculationsAndCharts!$A196+$A$11,IF($C$5,8,0),1,1)) -> 3897512100 | D196: =IF(A196>$A$8,"",OFFSET(InputPriceData!C$15,CalculationsAndCharts!$A196+$A$11,IF($C$5,8,0),1,1)) -> 32907.23047 | E196: =IF(A196>$A$8,"",OFFSET(InputPriceData!D$15,CalculationsAndCharts!$A196+$A$11,IF($C$5,8,0),1,1)) -> 33018.71094 | F196: =IF(A196>$A$8,"",OFFSET(InputPriceData!E$15,CalculationsAndCharts!$A196+$A$11,IF($C$5,8,0),1,1)) -> 32728.50977 | G196: =IF(A196>$A$8,"",OFFSET(InputPriceData!F$15,CalculationsAndCharts!$A196+$A$11,IF($C$5,8,0),1,1)) -> 32958.69141 | H196: 27810.49671 | I196: 2059.162109 | J196: 2116.058594 | K196: 6.75 | L196: 0.9730260024 | M196: 0.9730260024 | N196: 0.9428065333 | O196: 94.28065333 | P196: 40 | Q196: -40 | BC196: 3897512100
A197: 165 | B197: =IF(A197>$A$8,"",OFFSET(InputPriceData!B$15,$A197+$A$11,0,1,1)) -> 2018-01-23 | C197: =IF(A197>$A$8,"",OFFSET(InputPriceData!G$15,CalculationsAndCharts!$A197+$A$11,IF($C$5,8,0),1,1)) -> 3954770600 | D197: =IF(A197>$A$8,"",OFFSET(InputPriceData!C$15,CalculationsAndCharts!$A197+$A$11,IF($C$5,8,0),1,1)) -> 32606.14062 | E197: =IF(A197>$A$8,"",OFFSET(InputPriceData!D$15,CalculationsAndCharts!$A197+$A$11,IF($C$5,8,0),1,1)) -> 32930.69922 | F197: =IF(A197>$A$8,"",OFFSET(InputPriceData!E$15,CalculationsAndCharts!$A197+$A$11,IF($C$5,8,0),1,1)) -> 32554.23047 | G197: =IF(A197>$A$8,"",OFFSET(InputPriceData!F$15,CalculationsAndCharts!$A197+$A$11,IF($C$5,8,0),1,1)) -> 32930.69922 | H197: 27758.75606 | I197: 2116.058594 | J197: 2116.058594 | K197: 6.75 | L197: 1 | M197: 1 | N197: 0.9125870643 | O197: 91.25870643 | P197: 40 | Q197: -40 | BC197: 3954770600
A198: 166 | B198: =IF(A198>$A$8,"",OFFSET(InputPriceData!B$15,$A198+$A$11,0,1,1)) -> 2018-01-22 | C198: =IF(A198>$A$8,"",OFFSET(InputPriceData!G$15,CalculationsAndCharts!$A198+$A$11,IF($C$5,8,0),1,1)) -> 2880231400 | D198: =IF(A198>$A$8,"",OFFSET(InputPriceData!C$15,CalculationsAndCharts!$A198+$A$11,IF($C$5,8,0),1,1)) -> 32276.96094 | E198: =IF(A198>$A$8,"",OFFSET(InputPriceData!D$15,CalculationsAndCharts!$A198+$A$11,IF($C$5,8,0),1,1)) -> 32417.23047 | F198: =IF(A198>$A$8,"",OFFSET(InputPriceData!E$15,CalculationsAndCharts!$A198+$A$11,IF($C$5,8,0),1,1)) -> 32046.83984 | G198: =IF(A198>$A$8,"",OFFSET(InputPriceData!F$15,CalculationsAndCharts!$A198+$A$11,IF($C$5,8,0),1,1)) -> 32393.41016 | H198: 27706.77673 | I198: 1656.929687 | J198: 2064.259765 | K198: 6.75 | L198: 0.8020276331 | M198: 0.8020276331 | N198: 0.8251741286 | O198: 82.51741286 | P198: 40 | Q198: -40 | BC198: 2880231400
A199: 167 | B199: =IF(A199>$A$8,"",OFFSET(InputPriceData!B$15,$A199+$A$11,0,1,1)) -> 2018-01-19 | C199: =IF(A199>$A$8,"",OFFSET(InputPriceData!G$15,CalculationsAndCharts!$A199+$A$11,IF($C$5,8,0),1,1)) -> 2906627500 | D199: =IF(A199>$A$8,"",OFFSET(InputPriceData!C$15,CalculationsAndCharts!$A199+$A$11,IF($C$5,8,0),1,1)) -> 32142.16016 | E199: =IF(A199>$A$8,"",OFFSET(InputPriceData!D$15,CalculationsAndCharts!$A199+$A$11,IF($C$5,8,0),1,1)) -> 32254.89062 | F199: =IF(A199>$A$8,"",OFFSET(InputPriceData!E$15,CalculationsAndCharts!$A199+$A$11,IF($C$5,8,0),1,1)) -> 31986 | G199: =IF(A199>$A$8,"",OFFSET(InputPriceData!F$15,CalculationsAndCharts!$A199+$A$11,IF($C$5,8,0),1,1)) -> 32254.89062 | H199: 27659.67488 | I199: 1693.941406 | J199: 2064.259765 | K199: 6.75 | L199: 0.8200162326 | M199: 0.8200162326 | N199: 0.848320624 | O199: 84.8320624 | P199: 40 | Q199: -40 | BC199: 2906627500
A200: 168 | B200: =IF(A200>$A$8,"",OFFSET(InputPriceData!B$15,$A200+$A$11,0,1,1)) -> 2018-01-18 | C200: =IF(A200>$A$8,"",OFFSET(InputPriceData!G$15,CalculationsAndCharts!$A200+$A$11,IF($C$5,8,0),1,1)) -> 3741499700 | D200: =IF(A200>$A$8,"",OFFSET(InputPriceData!C$15,CalculationsAndCharts!$A200+$A$11,IF($C$5,8,0),1,1)) -> 32148.44922 | E200: =IF(A200>$A$8,"",OFFSET(InputPriceData!D$15,CalculationsAndCharts!$A200+$A$11,IF($C$5,8,0),1,1)) -> 32233.81055 | F200: =IF(A200>$A$8,"",OFFSET(InputPriceData!E$15,CalculationsAndCharts!$A200+$A$11,IF($C$5,8,0),1,1)) -> 31869.69922 | G200: =IF(A200>$A$8,"",OFFSET(InputPriceData!F$15,CalculationsAndCharts!$A200+$A$11,IF($C$5,8,0),1,1)) -> 32121.93945 | H200: 27613.49181 | I200: 1606.628906 | J200: 2064.259765 | K200: 6.75 | L200: 0.777580225 | M200: 0.777580225 | N200: 0.8766250154 | O200: 87.66250154 | P200: 40 | Q200: -40 | BC200: 3741499700
A201: 169 | B201: =IF(A201>$A$8,"",OFFSET(InputPriceData!B$15,$A201+$A$11,0,1,1)) -> 2018-01-17 | C201: =IF(A201>$A$8,"",OFFSET(InputPriceData!G$15,CalculationsAndCharts!$A201+$A$11,IF($C$5,8,0),1,1)) -> 3999243800 | D201: =IF(A201>$A$8,"",OFFSET(InputPriceData!C$15,CalculationsAndCharts!$A201+$A$11,IF($C$5,8,0),1,1)) -> 31825.51953 | E201: =IF(A201>$A$8,"",OFFSET(InputPriceData!D$15,CalculationsAndCharts!$A201+$A$11,IF($C$5,8,0),1,1)) -> 31983.41016 | F201: =IF(A201>$A$8,"",OFFSET(InputPriceData!E$15,CalculationsAndCharts!$A201+$A$11,IF($C$5,8,0),1,1)) -> 31642.26953 | G201: =IF(A201>$A$8,"",OFFSET(InputPriceData!F$15,CalculationsAndCharts!$A201+$A$11,IF($C$5,8,0),1,1)) -> 31983.41016 | H201: 27568.18078 | I201: 2064.259765 | J201: 2064.259765 | K201: 6.75 | L201: 1 | M201: 1 | N201: 0.9756698058 | O201: 97.56698058 | P201: 40 | Q201: -40 | BC201: 3999243800
A202: 170 | B202: =IF(A202>$A$8,"",OFFSET(InputPriceData!B$15,$A202+$A$11,0,1,1)) -> 2018-01-16 | C202: =IF(A202>$A$8,"",OFFSET(InputPriceData!G$15,CalculationsAndCharts!$A202+$A$11,IF($C$5,8,0),1,1)) -> 3097059200 | D202: =IF(A202>$A$8,"",OFFSET(InputPriceData!C$15,CalculationsAndCharts!$A202+$A$11,IF($C$5,8,0),1,1)) -> 31423.61914 | E202: =IF(A202>$A$8,"",OFFSET(InputPriceData!D$15,CalculationsAndCharts!$A202+$A$11,IF($C$5,8,0),1,1)) -> 31904.75 | F202: =IF(A202>$A$8,"",OFFSET(InputPriceData!E$15,CalculationsAndCharts!$A202+$A$11,IF($C$5,8,0),1,1)) -> 31423.61914 | G202: =IF(A202>$A$8,"",OFFSET(InputPriceData!F$15,CalculationsAndCharts!$A202+$A$11,IF($C$5,8,0),1,1)) -> 31904.75 | H202: 27523.80662 | I202: 2041.039062 | J202: 2041.039062 | K202: 6.75 | L202: 1 | M202: 1 | N202: 0.9513396116 | O202: 95.13396116 | P202: 40 | Q202: -40 | BC202: 3097059200
A203: 171 | B203: =IF(A203>$A$8,"",OFFSET(InputPriceData!B$15,$A203+$A$11,0,1,1)) -> 2018-01-15 | C203: =IF(A203>$A$8,"",OFFSET(InputPriceData!G$15,CalculationsAndCharts!$A203+$A$11,IF($C$5,8,0),1,1)) -> 2664144600 | D203: =IF(A203>$A$8,"",OFFSET(InputPriceData!C$15,CalculationsAndCharts!$A203+$A$11,IF($C$5,8,0),1,1)) -> 31702.56055 | E203: =IF(A203>$A$8,"",OFFSET(InputPriceData!D$15,CalculationsAndCharts!$A203+$A$11,IF($C$5,8,0),1,1)) -> 31733.17969 | F203: =IF(A203>$A$8,"",OFFSET(InputPriceData!E$15,CalculationsAndCharts!$A203+$A$11,IF($C$5,8,0),1,1)) -> 31265.25 | G203: =IF(A203>$A$8,"",OFFSET(InputPriceData!F$15,CalculationsAndCharts!$A203+$A$11,IF($C$5,8,0),1,1)) -> 31338.86914 | H203: 27479.77703 | I203: 1741.208985 | J203: 1966.53125 | K203: 6.75 | L203: 0.8850268289 | M203: 0.8850268289 | N203: 0.9026792232 | O203: 90.26792232 | P203: 40 | Q203: -40 | BD203: 2664144600
A204: 172 | B204: =IF(A204>$A$8,"",OFFSET(InputPriceData!B$15,$A204+$A$11,0,1,1)) -> 2018-01-12 | C204: =IF(A204>$A$8,"",OFFSET(InputPriceData!G$15,CalculationsAndCharts!$A204+$A$11,IF($C$5,8,0),1,1)) -> 2327417400 | D204: =IF(A204>$A$8,"",OFFSET(InputPriceData!C$15,CalculationsAndCharts!$A204+$A$11,IF($C$5,8,0),1,1)) -> 31298.05078 | E204: =IF(A204>$A$8,"",OFFSET(InputPriceData!D$15,CalculationsAndCharts!$A204+$A$11,IF($C$5,8,0),1,1)) -> 31412.53906 | F204: =IF(A204>$A$8,"",OFFSET(InputPriceData!E$15,CalculationsAndCharts!$A204+$A$11,IF($C$5,8,0),1,1)) -> 31198.35938 | G204: =IF(A204>$A$8,"",OFFSET(InputPriceData!F$15,CalculationsAndCharts!$A204+$A$11,IF($C$5,8,0),1,1)) -> 31412.53906 | H204: 27440.99219 | I204: 1834.529297 | J204: 1966.53125 | K204: 6.75 | L204: 0.9326445474 | M204: 0.9326445474 | N204: 0.9203316176 | O204: 92.03316176 | P204: 40 | Q204: -40 | BC204: 2327417400
A205: 173 | B205: =IF(A205>$A$8,"",OFFSET(InputPriceData!B$15,$A205+$A$11,0,1,1)) -> 2018-01-11 | C205: =IF(A205>$A$8,"",OFFSET(InputPriceData!G$15,CalculationsAndCharts!$A205+$A$11,IF($C$5,8,0),1,1)) -> 1794778900 | D205: =IF(A205>$A$8,"",OFFSET(InputPriceData!C$15,CalculationsAndCharts!$A205+$A$11,IF($C$5,8,0),1,1)) -> 31066.21094 | E205: =IF(A205>$A$8,"",OFFSET(InputPriceData!D$15,CalculationsAndCharts!$A205+$A$11,IF($C$5,8,0),1,1)) -> 31133.17969 | F205: =IF(A205>$A$8,"",OFFSET(InputPriceData!E$15,CalculationsAndCharts!$A205+$A$11,IF($C$5,8,0),1,1)) -> 30950.07031 | G205: =IF(A205>$A$8,"",OFFSET(InputPriceData!F$15,CalculationsAndCharts!$A205+$A$11,IF($C$5,8,0),1,1)) -> 31120.39062 | H205: 27401.07715 | I205: 1753.330078 | J205: 1966.53125 | K205: 6.75 | L205: 0.8912117503 | M205: 0.8912117503 | N205: 0.9080186877 | O205: 90.80186877 | P205: 40 | Q205: -40 | BC205: 1794778900
A206: 174 | B206: =IF(A206>$A$8,"",OFFSET(InputPriceData!B$15,$A206+$A$11,0,1,1)) -> 2018-01-10 | C206: =IF(A206>$A$8,"",OFFSET(InputPriceData!G$15,CalculationsAndCharts!$A206+$A$11,IF($C$5,8,0),1,1)) -> 2595365800 | D206: =IF(A206>$A$8,"",OFFSET(InputPriceData!C$15,CalculationsAndCharts!$A206+$A$11,IF($C$5,8,0),1,1)) -> 31009.24023 | E206: =IF(A206>$A$8,"",OFFSET(InputPriceData!D$15,CalculationsAndCharts!$A206+$A$11,IF($C$5,8,0),1,1)) -> 31267.57031 | F206: =IF(A206>$A$8,"",OFFSET(InputPriceData!E$15,CalculationsAndCharts!$A206+$A$11,IF($C$5,8,0),1,1)) -> 30928.58008 | G206: =IF(A206>$A$8,"",OFFSET(InputPriceData!F$15,CalculationsAndCharts!$A206+$A$11,IF($C$5,8,0),1,1)) -> 31073.7207 | H206: 27363.69711 | I206: 1839.630859 | J206: 1966.53125 | K206: 6.75 | L206: 0.9352476757 | M206: 0.9352476757 | N206: 0.9248256252 | O206: 92.48256252 | P206: 40 | Q206: -40 | BC206: 2595365800
... 1076 more rows

Sheet Follow
A1: Stocks and Indexes I wish to follow
A3: To ease following a stock, enter a Yahoo Finance acceptable symbol in column "A" anywhere below cell "A9".
A4: Thereafter you may doubleclick the cell containing a symbol of interest to initiate data retrieval and charting for that symbol.
A6: =COUNTA(A10:A107) -> 96
A7: Symbol
A8: To | B8: Description | C8: Last Trade as of most recent check
A9: Follow | C9: Date | D9: Time | E9: Open | F9: High | G9: Low | H9: Close | I9: Volume | J9: Change | K9: Retrieved @
A10: A | B10: Agilent Technologies, Inc. (A) -NYSE (Daily) | C10: 2022-10-07 | D10: 16:03:00 | E10: 130.449997 | F10: 130.929993 | G10: 126.959999 | H10: 127.440002 | I10: 1154700 | J10: -4.739991 | K10: 2022-10-08T20:06:52.050
A11: AA | B11: Alcoa Corporation (AA) -NYSE (Daily) | C11: 2022-10-07 | D11: 16:00:00 | E11: 39.040001 | F11: 39.355 | G11: 37.880001 | H11: 39.009998 | I11: 6270400 | J11: -0.84 | K11: 2022-10-08T20:07:08.890
A12: AAL | B12: American Airlines Group Inc. (AAL) -NasdaqGS (Daily) | C12: 2022-10-07 | D12: 16:00:00 | E12: 12.5 | F12: 12.54 | G12: 11.95 | H12: 12.18 | I12: 37269800 | J12: -0.55 | K12: 2022-10-08T20:07:23.730
A13: AAPL | B13: Apple Inc. (AAPL) -NasdaqGS (Daily) | C13: 2022-10-07 | D13: 16:00:00 | E13: 142.539993 | F13: 143.100006 | G13: 139.449997 | H13: 140.089996 | I13: 85859100 | J13: -5.339997 | K13: 2022-10-08T20:07:45.780
A14: ADM | B14: Archer-Daniels-Midland Company (ADM) -NYSE (Daily) | C14: 2022-10-07 | D14: 16:00:00 | E14: 84.980003 | F14: 86.040001 | G14: 84.330002 | H14: 85.440002 | I14: 2396100 | J14: -0.309998 | K14: 2022-10-08T20:08:02.720
A15: ADBE | B15: Adobe Inc. (ADBE) -NasdaqGS (Daily) | C15: 2022-10-07 | D15: 16:00:00 | E15: 291.359985 | F15: 293.709991 | G15: 286.829987 | H15: 288.769989 | I15: 3495300 | J15: -9.640015 | K15: 2022-10-08T20:08:17.960
A16: ALGN | B16: Align Technology, Inc. (ALGN) -NasdaqGS (Daily) | C16: 2022-10-07 | D16: 16:00:00 | E16: 217.460007 | F16: 220.089996 | G16: 210.389999 | H16: 211.580002 | I16: 779500 | J16: -10.779999 | K16: 2022-10-08T20:08:33.830
A17: AMC | B17: AMC Entertainment Holdings, Inc. (AMC) -NYSE (Daily) | C17: 2022-10-07 | D17: 16:00:00 | E17: 7.1 | F17: 7.1 | G17: 6.4 | H17: 6.53 | I17: 23363000 | J17: -0.59 | K17: 2022-10-08T20:08:50.750
A18: AMD | B18: Advanced Micro Devices, Inc. (AMD) -NasdaqGS (Daily) | C18: 2022-10-07 | D18: 16:00:00 | E18: 64.010002 | F18: 64.029999 | G18: 58.220001 | H18: 58.439999 | I18: 163577800 | J18: -9.409999 | K18: 2022-10-08T20:09:06.770
A19: AR | B19: Antero Resources Corporation (AR) -NYSE (Daily) | C19: 2022-10-07 | D19: 16:01:00 | E19: 32.290001 | F19: 33.41 | G19: 31.85 | H19: 32.32 | I19: 4245800 | J19: -0.02 | K19: 2022-10-08T20:09:24.440
A20: BA | B20: The Boeing Company (BA) -NYSE (Daily) | C20: 2022-10-07 | D20: 16:00:00 | E20: 130.360001 | F20: 130.610001 | G20: 128.020004 | H20: 129.789993 | I20: 5092500 | J20: -2.410004 | K20: 2022-10-08T20:09:42.050
A21: BSX | B21: Boston Scientific Corporation (BSX) -NYSE (Daily) | C21: 2022-10-07 | D21: 16:00:00 | E21: 40.27 | F21: 40.43 | G21: 39.599998 | H21: 39.759998 | I21: 9640800 | J21: -0.890004 | K21: 2022-10-08T20:10:00.290
A22: CASY | B22: Casey's General Stores, Inc. (CASY) -NasdaqGS (Daily) | C22: 2022-10-07 | D22: 16:00:00 | E22: 202.550003 | F22: 203.470001 | G22: 199.199997 | H22: 200.179993 | I22: 250900 | J22: -3.11 | K22: 2022-10-08T20:10:21.540
A23: CAT | B23: Caterpillar Inc. (CAT) -NYSE (Daily) | C23: 2022-10-07 | D23: 16:00:00 | E23: 176.720001 | F23: 178.960007 | G23: 175.139999 | H23: 177.550003 | I23: 2757700 | J23: -1.259995 | K23: 2022-10-08T20:10:40.670
A24: COST | B24: Costco Wholesale Corporation (COST) -NasdaqGS (Daily) | C24: 2023-03-06 | D24: 16:00:00 | E24: 476.519989 | F24: 488.817413 | G24: 475.609985 | H24: 483.079987 | I24: 3005250 | J24: 7.819977 | K24: 2023-03-06T21:04:51.590
A25: CSCO | B25: Cisco Systems, Inc. (CSCO) -NasdaqGS (Daily) | C25: 2022-10-07 | D25: 16:00:00 | E25: 41.25 | F25: 41.25 | G25: 40.080002 | H25: 40.27 | I25: 19048500 | J25: -1.25 | K25: 2022-10-08T20:11:00.020
A26: CVS | B26: CVS Health Corporation (CVS) -NYSE (Daily) | C26: 2022-10-07 | D26: 16:00:00 | E26: 93.18 | F26: 94 | G26: 87.129997 | H26: 88.25 | I26: 19711900 | J26: -10.330002 | K26: 2022-10-08T20:11:20.560
A27: DELL | B27: Dell Technologies Inc. (DELL) -NYSE (Daily) | C27: 2022-10-07 | D27: 16:00:00 | E27: 36.049999 | F27: 36.490002 | G27: 34.540001 | H27: 34.599998 | I27: 5613900 | J27: -2.880002 | K27: 2022-10-08T20:11:39.920
A28: DG | B28: Dollar General Corporation (DG) -NYSE (Daily) | C28: 2022-10-07 | D28: 16:04:00 | E28: 240.110001 | F28: 240.610001 | G28: 238.149994 | H28: 239.5 | I28: 1595000 | J28: -2.169998 | K28: 2022-10-08T20:11:58.850
A29: DIS | B29: The Walt Disney Company (DIS) -NYSE (Daily) | C29: 2022-10-07 | D29: 16:03:00 | E29: 98.510002 | F29: 98.800003 | G29: 96.449997 | H29: 97.160004 | I29: 7045300 | J29: -2.879997 | K29: 2022-10-08T20:12:16.860
A30: DLTR | B30: Dollar Tree, Inc. (DLTR) -NasdaqGS (Daily) | C30: 2022-10-07 | D30: 16:00:00 | E30: 142.100006 | F30: 142.869995 | G30: 139.979996 | H30: 141.949997 | I30: 3123100 | J30: -0.180008 | K30: 2022-10-08T20:12:34.510
A31: EPD | B31: Enterprise Products Partners L.P. (EPD) -NYSE (Daily) | C31: 2023-04-18 | D31: 11:05:00 | E31: 27 | F31: 27.084999 | G31: 26.93 | H31: 27.055 | I31: 801822 | J31: 0.125 | K31: 2023-04-18T11:06:02.260
A32: F | B32: Ford Motor Company (F) -NYSE (Daily) | C32: 2022-10-07 | D32: 16:03:00 | E32: 12.18 | F32: 12.3 | G32: 12 | H32: 12.2 | I32: 56437700 | J32: -0.16 | K32: 2022-10-08T20:12:53.600
A33: FAS | B33: Direxion Daily Financial Bull 3X Shares (FAS) -NYSEArca (Daily) | C33: 2022-10-07 | D33: 16:00:00 | E33: 59.529999 | F33: 59.849998 | G33: 55.689999 | H33: 56.790001 | I33: 1488400 | J33: -4.290001 | K33: 2022-10-08T20:13:13.080
A34: GSK | B34: GSK plc (GSK) -NYSE (Daily) | C34: 2022-10-07 | D34: 16:00:00 | E34: 30.190001 | F34: 30.42 | G34: 30.040001 | H34: 30.110001 | I34: 5486300 | J34: 0.110001 | K34: 2022-10-08T20:13:33.450
A35: GDX | B35: VanEck Gold Miners ETF (GDX) -NYSEArca (Daily) | C35: 2023-04-18 | D35: 11:14:00 | E35: 34.41 | F35: 35.189999 | G35: 34.389999 | H35: 34.955002 | I35: 8764787 | J35: 0.655003 | K35: 2023-04-18T11:14:52.640
A36: GILD | B36: Gilead Sciences, Inc. (GILD) -NasdaqGS (Daily) | C36: 2022-10-07 | D36: 16:00:00 | E36: 64.639999 | F36: 65.099998 | G36: 63.959999 | H36: 64.290001 | I36: 6722600 | J36: -0.659996 | K36: 2022-10-08T20:14:12.060
A37: GOOG | B37: Alphabet Inc. (GOOG) -NasdaqGS (Daily) | C37: 2022-10-07 | D37: 16:00:00 | E37: 100.650002 | F37: 101.419998 | G37: 99.209999 | H37: 99.57 | I37: 24232300 | J37: 99.57 | K37: 2022-10-08T20:14:29.790
A38: HD | B38: The Home Depot, Inc. (HD) -NYSE (Daily) | C38: 2022-10-07 | D38: 16:00:00 | E38: 287.529999 | F38: 288.630005 | G38: 282.420013 | H38: 284.320007 | I38: 2404900 | J38: -6.070008 | K38: 2022-10-08T20:14:54.380
A39: HSY | B39: The Hershey Company (HSY) -NYSE (Daily) | C39: 2023-04-18 | D39: 11:18:00 | E39: 258.850006 | F39: 259.779999 | G39: 257.970001 | H39: 258.350006 | I39: 154143 | J39: -0.679993 | K39: 2023-04-18T11:19:09.130
A40: HTLD | B40: Heartland Express, Inc. (HTLD) -NasdaqGS (Daily) | C40: 2022-10-07 | D40: 16:00:00 | E40: 14.5 | F40: 14.66 | G40: 14.26 | H40: 14.32 | I40: 596000 | J40: -0.4 | K40: 2022-10-08T20:15:33.020
A41: IBM | B41: International Business Machines Corporation (IBM) -NYSE (Daily) | C41: 2022-10-07 | D41: 16:00:00 | E41: 121.5 | F41: 121.800003 | G41: 118.07 | H41: 118.82 | I41: 4498200 | J41: -3.410003 | K41: 2022-10-08T20:15:53.020
A42: ILMN | B42: Illumina, Inc. (ILMN) -NasdaqGS (Daily) | C42: 2022-10-07 | D42: 16:00:00 | E42: 208.279999 | F42: 212.070007 | G42: 205.179993 | H42: 206.179993 | I42: 1618600 | J42: -6.540008 | K42: 2022-10-08T20:16:12.660
A43: INTC | B43: Intel Corporation (INTC) -NasdaqGS (Daily) | C43: 2023-04-18 | D43: 11:18:00 | E43: 32.43 | F43: 32.459999 | G43: 31.799999 | H43: 31.99 | I43: 6962610 | J43: -0.149999 | K43: 2023-04-18T11:18:35.600
A44: JNJ | B44: Johnson & Johnson (JNJ) -NYSE (Daily) | C44: 2022-10-07 | D44: 16:00:00 | E44: 161.770004 | F44: 162.220001 | G44: 159.169998 | H44: 160.199997 | I44: 6363000 | J44: -1.710007 | K44: 2022-10-08T20:16:52.840
A45: KO | B45: The Coca-Cola Company (KO) -NYSE (Daily) | C45: 2023-04-18 | D45: 11:12:00 | E45: 63.509998 | F45: 63.59 | G45: 63.23 | H45: 63.285 | I45: 2167705 | J45: -0.174999 | K45: 2023-04-18T11:12:39.640
A46: LOW | B46: Lowe's Companies, Inc. (LOW) -NYSE (Daily) | C46: 2023-04-18 | D46: 11:13:00 | E46: 206.279999 | F46: 208.430603 | G46: 205.559998 | H46: 207.660004 | I46: 779404 | J46: 2.660004 | K46: 2023-04-18T11:13:32.230
A47: LMT | B47: Lockheed Martin Corporation (LMT) -NYSE (Daily) | C47: 2023-04-18 | D47: 11:13:00 | E47: 499 | F47: 508.089996 | G47: 498 | H47: 502.61499 | I47: 1159148 | J47: 12.974975 | K47: 2023-04-18T11:14:17.500
A48: M | B48: Macy's, Inc. (M) -NYSE (Daily) | C48: 2022-10-07 | D48: 16:00:00 | E48: 17.110001 | F48: 17.51 | G48: 17.030001 | H48: 17.440001 | I48: 7775700 | J48: -0.09 | K48: 2022-10-08T20:18:13.160
A49: MCD | B49: McDonald's Corporation (MCD) -NYSE (Daily) | C49: 2023-04-18 | D49: 11:10:00 | E49: 289.399994 | F49: 290.549988 | G49: 289 | H49: 290.109985 | I49: 520722 | J49: 0.799987 | K49: 2023-04-18T11:11:03.160
A50: MDT | B50: Medtronic plc (MDT) -NYSE (Daily) | C50: 2022-10-07 | D50: 16:00:00 | E50: 83.910004 | F50: 84.040001 | G50: 82.010002 | H50: 82.419998 | I50: 4267900 | J50: -2 | K50: 2022-10-08T20:18:53.860
A51: META | B51: Meta Platforms, Inc. (META) -NasdaqGS (Daily) | C51: 2022-10-07 | D51: 16:00:00 | E51: 136.759995 | F51: 138.289993 | G51: 132.440002 | H51: 133.449997 | I51: 33179700 | J51: -5.62001 | K51: 2022-10-08T20:19:13.140
A52: MGM | B52: MGM Resorts International (MGM) -NYSE (Daily) | C52: 2022-10-07 | D52: 16:00:00 | E52: 32.830002 | F52: 33.139999 | G52: 32.34 | H52: 32.68 | I52: 4439700 | J52: -0.64 | K52: 2022-10-08T20:19:32.570
A53: MO | B53: Altria Group, Inc. (MO) -NYSE (Daily) | C53: 2023-04-18 | D53: 11:09:00 | E53: 45.450001 | F53: 45.700001 | G53: 45.405201 | H53: 45.615002 | I53: 1343286 | J53: 0.175003 | K53: 2023-04-18T11:10:23.550
A54: MRNA | B54: Moderna, Inc. (MRNA) -NasdaqGS (Daily) | C54: 2022-10-07 | D54: 16:00:00 | E54: 121.5 | F54: 123.360001 | G54: 118.459999 | H54: 119.32 | I54: 3149000 | J54: -5.830002 | K54: 2022-10-08T20:20:13.090
A55: MSFT | B55: Microsoft Corporation (MSFT) -NasdaqGS (Daily) | C55: 2022-10-07 | D55: 16:00:00 | E55: 240.899994 | F55: 241.320007 | G55: 233.169998 | H55: 234.240005 | I55: 37732400 | J55: -12.549988 | K55: 2022-10-08T20:20:33
A56: MU | B56: Micron Technology, Inc. (MU) -NasdaqGS (Daily) | C56: 2023-03-08 | D56: 13:53:00 | E56: 55.84 | F56: 56.490002 | G56: 55.349998 | H56: 56.48 | I56: 5740982 | J56: 0.919999 | K56: 2023-03-08T13:54:12.310
A57: NFLX | B57: Netflix, Inc. (NFLX) -NasdaqGS (Daily) | C57: 2022-10-07 | D57: 16:00:00 | E57: 235.770004 | F57: 237.330002 | G57: 224.279999 | H57: 224.75 | I57: 9784800 | J57: -15.270004 | K57: 2022-10-08T20:20:51.730
A58: NUGT | B58: Direxion Daily Gold Miners Index Bull 2X Shares (NUGT) -NYSEArca (Daily) | C58: 2023-04-18 | D58: 11:15:00 | E58: 47.110001 | F58: 49.1688 | G58: 47 | H58: 48.517601 | I58: 939091 | J58: 1.647602 | K58: 2023-04-18T11:16:03.120
A59: NVS | B59: Novartis AG (NVS) -NYSE (Daily) | C59: 2022-10-07 | D59: 16:00:00 | E59: 76.160004 | F59: 76.230003 | G59: 75.360001 | H59: 75.650002 | I59: 1517700 | J59: -0.389999 | K59: 2022-10-08T20:21:29.870
A60: NVDA | B60: NVIDIA Corporation (NVDA) -NasdaqGS (Daily) | C60: 2023-04-18 | D60: 11:17:00 | E60: 275.334991 | F60: 281.0802 | G60: 275.25 | H60: 279.100006 | I60: 30613444 | J60: 9.080017 | K60: 2023-04-18T11:17:48.710
A61: NWL | B61: Newell Brands Inc. (NWL) -NasdaqGS (Daily) | C61: 2022-10-07 | D61: 16:00:00 | E61: 14.18 | F61: 14.25 | G61: 13.89 | H61: 13.96 | I61: 2832700 | J61: -0.42 | K61: 2022-10-08T20:22:10.460
A62: PFE | B62: Pfizer Inc. (PFE) -NYSE (Daily) | C62: 2022-10-07 | D62: 16:03:00 | E62: 43.049999 | F62: 43.049999 | G62: 41.919998 | H62: 42.32 | I62: 20093100 | J62: -0.77 | K62: 2022-10-08T20:22:31.070
A63: PRU | B63: Prudential Financial, Inc. (PRU) -NYSE (Daily) | C63: 2023-04-18 | D63: 11:16:00 | E63: 87.800003 | F63: 87.809998 | G63: 86.630997 | H63: 86.93 | I63: 345478 | J63: -0.150002 | K63: 2023-04-18T11:17:23.150
A64: PSA | B64: Public Storage (PSA) -NYSE (Daily) | C64: 2023-03-08 | D64: 13:52:00 | E64: 301.850006 | F64: 305.119995 | G64: 300.910004 | H64: 302.279999 | I64: 329019 | J64: -0.070007 | K64: 2023-03-08T13:53:27.260
A65: PSEC | B65: Prospect Capital Corporation (PSEC) -NasdaqGS (Daily) | C65: 2022-10-07 | D65: 16:00:00 | E65: 6.62 | F65: 6.64 | G65: 6.51 | H65: 6.53 | I65: 1109800 | J65: -0.13 | K65: 2022-10-08T20:23:11.800
A66: RPM | B66: RPM International Inc. (RPM) -NYSE (Daily) | C66: 2022-10-07 | D66: 16:00:00 | E66: 94.110001 | F66: 94.110001 | G66: 90.900002 | H66: 91.050003 | I66: 955600 | J66: -3.869995 | K66: 2022-10-08T20:23:34.870
A67: RY | B67: Royal Bank of Canada (RY) -NYSE (Daily) | C67: 2023-04-18 | D67: 11:09:00 | E67: 100 | F67: 100.319901 | G67: 99.779999 | H67: 100.040001 | I67: 96124 | J67: 0.309998 | K67: 2023-04-18T11:09:28.800
A68: SCHW | B68: The Charles Schwab Corporation (SCHW) -NYSE (Daily) | C68: 2023-04-18 | D68: 11:11:00 | E68: 52.5 | F68: 53.48 | G68: 52.279999 | H68: 53.400002 | I68: 12431383 | J68: 0.630002 | K68: 2023-04-18T11:11:49.210
A69: SPR | B69: Spirit AeroSystems Holdings, Inc. (SPR) -NYSE (Daily) | C69: 2022-10-07 | D69: 16:00:00 | E69: 24.26 | F69: 24.700001 | G69: 23.559999 | H69: 24.68 | I69: 1823200 | J69: -0.06 | K69: 2022-10-08T20:24:37.430
A70: SQ | B70: Block, Inc. (SQ) -NYSE (Daily) | C70: 2022-10-07 | D70: 16:00:00 | E70: 59.860001 | F70: 60.450001 | G70: 56.889999 | H70: 57.41 | I70: 11209700 | J70: -4.52 | K70: 2022-10-08T20:24:56.170
A71: SWKS | B71: Skyworks Solutions, Inc. (SWKS) -NasdaqGS (Daily) | C71: 2022-10-07 | D71: 16:00:00 | E71: 90.18 | F71: 90.400002 | G71: 86.949997 | H71: 87.199997 | I71: 2592400 | J71: -5.410004 | K71: 2022-10-08T20:25:16.990
A72: TOL | B72: Toll Brothers, Inc. (TOL) -NYSE (Daily) | C72: 2022-10-07 | D72: 16:00:00 | E72: 45.34 | F72: 45.66 | G72: 44.330002 | H72: 44.57 | I72: 1863400 | J72: -1.52 | K72: 2022-10-08T20:25:36.490
A73: TSLA | B73: Tesla, Inc. (TSLA) -NasdaqGS (Daily) | C73: 2022-10-07 | D73: 16:00:00 | E73: 233.940002 | F73: 234.570007 | G73: 222.020004 | H73: 223.070007 | I73: 83592300 | J73: -15.059998 | K73: 2022-10-08T20:25:55.990
A74: TSN | B74: Tyson Foods, Inc. (TSN) -NYSE (Daily) | C74: 2022-12-30 | D74: 16:00:00 | E74: 61.68 | F74: 62.25 | G74: 61.450001 | H74: 62.25 | I74: 2182900 | J74: 0.459999 | K74: 2023-01-02T09:34:07.600
A75: TXN | B75: Texas Instruments Incorporated (TXN) -NasdaqGS (Daily) | C75: 2022-10-07 | D75: 16:00:00 | E75: 164.020004 | F75: 165.059998 | G75: 158.610001 | H75: 159.279999 | I75: 8305200 | J75: -7.259994 | K75: 2022-10-08T20:26:16.920
A76: UNP | B76: Union Pacific Corporation (UNP) -NYSE (Daily) | C76: 2022-10-07 | D76: 16:00:00 | E76: 196.020004 | F76: 197.160004 | G76: 193.610001 | H76: 195.619995 | I76: 2874700 | J76: -2.590012 | K76: 2022-10-08T20:26:36.270
A77: VZ | B77: Verizon Communications Inc. (VZ) -NYSE (Daily) | C77: 2023-04-18 | D77: 11:16:00 | E77: 39.470001 | F77: 39.490002 | G77: 39.100101 | H77: 39.139999 | I77: 3100726 | J77: -0.32 | K77: 2023-04-18T11:16:51.420
A78: WBA | B78: Walgreens Boots Alliance, Inc. (WBA) -NasdaqGS (Daily) | C78: 2022-10-07 | D78: 16:00:00 | E78: 32.029999 | F78: 32.07 | G78: 30.389999 | H78: 30.52 | I78: 11281000 | J78: -1.73 | K78: 2022-10-08T20:27:18.330
A79: WMT | B79: Walmart Inc. (WMT) -NYSE (Daily) | C79: 2022-10-07 | D79: 16:00:00 | E79: 131.309998 | F79: 131.649994 | G79: 128.070007 | H79: 128.559998 | I79: 5690500 | J79: -3.119995 | K79: 2022-10-08T20:27:38.680
A81: ^AEX | B81: AEX-Index (^AEX) -Amsterdam (Daily) | C81: 2022-10-07 | D81: 18:05:00 | E81: 655.869995 | F81: 660.320007 | G81: 646.809998 | H81: 647.109985 | I81: 68900 | J81: -14.27002 | K81: 2022-10-08T20:27:56.300
A82: ^AORD | B82: ALL ORDINARIES (^AORD) -ASX (Daily) | C82: 2023-03-03 | D82: 16:46:00 | E82: 7460 | F82: 7493.299805 | G82: 7460 | H82: 7484 | I82: 915646200 | J82: 24 | K82: 2023-03-05T16:26:16.030
A83: ^AXJO | B83: S&P/ASX 200 (^AXJO) -ASX (Daily) | C83: 2023-03-15 | D83: 16:44:00 | E83: 7008.899902 | F83: 7068.899902 | G83: 7008.899902 | H83: 7068.899902 | I83: 0 | J83: 60 | K83: 2023-03-15T11:43:59.040
A84: DIA | B84: SPDR Dow Jones Industrial Average ETF Trust (DIA) -NYSEArca (Daily) | C84: 2022-10-07 | D84: 16:00:00 | E84: 296.730011 | F84: 296.890015 | G84: 291.440002 | H84: 292.970001 | I84: 3026900 | J84: -6.26001 | K84: 2022-10-08T20:28:35.330
A85: ^DJI | B85: Dow Jones Industrial Average (^DJI) -DJI (Daily) | C85: 2022-10-07 | D85: 17:28:00 | E85: 29685.26953 | F85: 29685.26953 | G85: 29142.66016 | H85: 29296.78906 | I85: 367950000 | J85: -630.15039 | K85: 2022-10-08T20:28:54.910
A86: ^FTSE | B86: FTSE 100 (^FTSE) -FTSE Index (Daily) | C86: 2022-10-07 | D86: 16:35:00 | E86: 6997.299805 | F86: 7022.399902 | G86: 6960.399902 | H86: 6991.100098 | I86: 807923600 | J86: -6.199707 | K86: 2022-10-08T20:29:14.340
A87: ^GSPC | B87: S&P 500 (^GSPC) -SNP (Daily) | C87: 2023-02-10 | D87: 17:04:00 | E87: 4068.919922 | F87: 4094.360107 | G87: 4060.790039 | H87: 4090.459961 | I87: 3891520000 | J87: 8.959961 | K87: 2023-02-12T10:01:40.360
A88: ^HSI | B88: HANG SENG INDEX (^HSI) -HKSE (Daily) | C88: 2023-04-18 | D88: 16:09:00 | E88: 20643.41016 | F88: 20742.39062 | G88: 20559.08008 | H88: 20650.50977 | I88: 0 | J88: -131.939453 | K88: 2023-04-18T11:21:48.850
A89: ^MID | B89: S&P MID CAP 400 INDEX (^MID) -NYSE (Daily) | C89: 2022-10-07 | D89: 16:04:00 | E89: 2325.449951 | F89: 2325.449951 | G89: 2255.810059 | H89: 2266.889893 | I89: 0 | J89: -58.560058 | K89: 2022-10-08T20:30:12.560
A90: ^NDX | B90: NASDAQ 100 (^NDX) -Nasdaq GIDS (Daily) | C90: 2022-10-07 | D90: 17:15:00 | E90: 11272.45996 | F90: 11293.65039 | G90: 10991.66016 | H90: 11039.46973 | I90: 4634190000 | J90: -446.030273 | K90: 2022-10-08T20:30:31.220
A91: ^NYA | B91: NYSE COMPOSITE (DJ) (^NYA) -NYSE (Daily) | C91: 2022-10-07 | D91: 16:20:00 | E91: 14087.37988 | F91: 14087.37988 | G91: 13727.79004 | H91: 13798.25977 | I91: 4449660000 | J91: -289.120117 | K91: 2022-10-08T20:30:51.020
A92: ^OEX | B92: S&P 100 INDEX (^OEX) -Chicago Options (Daily) | C92: 2022-10-07 | D92: 17:28:00 | E92: 1674.359985 | F92: 1674.359985 | G92: 1634.599976 | H92: 1642.890015 | I92: 4449660000 | J92: -51.380005 | K92: 2022-10-08T20:31:10.140
A93: RSP | B93: Invesco S&P 500 Equal Weight ETF (RSP) -NYSEArca (Daily) | C93: 2022-10-07 | D93: 16:00:00 | E93: 132.009995 | F93: 132.199997 | G93: 129.389999 | H93: 130.149994 | I93: 3197700 | J93: -3.160004 | K93: 2022-10-08T20:31:31.900
A94: ^RUT | B94: Russell 2000 (^RUT) -Chicago Options (Daily) | C94: 2022-10-07 | D94: 16:30:00 | E94: 1734.650024 | F94: 1734.920044 | G94: 1694.959961 | H94: 1702.150024 | I94: 4449660000 | J94: -50.359986 | K94: 2022-10-08T20:31:50.530
A95: ^VIX | B95: CBOE Volatility Index (^VIX) -Chicago Options (Daily) | C95: 2022-10-07 | D95: 16:15:00 | E95: 30.370001 | F95: 32.02 | G95: 29.879999 | H95: 31.360001 | I95: 0 | J95: 0.840001 | K95: 2022-10-08T20:32:09.750
A96: IWM | B96: iShares Russell 2000 ETF (IWM) -NYSEArca (Daily) | C96: 2022-10-07 | D96: 16:00:00 | E96: 171.929993 | F96: 172.470001 | G96: 167.919998 | H96: 168.610001 | I96: 26504500 | J96: -5.11 | K96: 2022-10-08T20:32:29.720
A97: QQQ | B97: Invesco QQQ Trust (QQQ) -NasdaqGM (Daily) | C97: 2022-10-07 | D97: 16:00:00 | E97: 275.019989 | F97: 275.149994 | G97: 267.73999 | H97: 269.100006 | I97: 71263400 | J97: -10.660004 | K97: 2022-10-08T20:32:50.270
A98: XLE | B98: Energy Select Sector SPDR Fund (XLE) -NYSEArca (Daily) | C98: 2022-10-07 | D98: 16:00:00 | E98: 82.610001 | F98: 83.540001 | G98: 81.209999 | H98: 81.800003 | I98: 28449900 | J98: -0.639999 | K98: 2022-10-08T20:33:10.770
A99: SOXL | B99: Direxion Daily Semiconductor Bull 3X Shares (SOXL) -NYSEArca (Daily) | C99: 2022-10-07 | D99: 16:00:00 | E99: 10.18 | F99: 10.28 | G99: 9 | H99: 9.21 | I99: 134291600 | J99: -1.98 | K99: 2022-10-08T20:33:31.210
A100: SPY | B100: SPDR S&P 500 ETF Trust (SPY) -NYSEArca (Daily) | C100: 2022-10-07 | D100: 16:00:00 | E100: 368.970001 | F100: 373.290009 | G100: 360.940002 | H100: 362.790009 | I100: 107680800 | J100: -10.410003 | K100: 2022-10-08T20:33:50.980
A102: ACAD | B102: ACADIA Pharmaceuticals Inc. (ACAD) -NasdaqGS (Daily) | C102: 2022-10-07 | D102: 16:00:00 | E102: 18.219999 | F102: 18.27 | G102: 16.030001 | H102: 16.290001 | I102: 2891100 | J102: -2.339998 | K102: 2022-10-08T20:34:10.690
A103: CLDX | B103: Celldex Therapeutics, Inc. (CLDX) -NasdaqCM (Daily) | C103: 2022-10-07 | D103: 16:00:00 | E103: 28.530001 | F103: 29.16 | G103: 28.01 | H103: 28.07 | I103: 426400 | J103: -0.91 | K103: 2022-10-08T20:34:27.670
A104: ICPT | B104: Intercept Pharmaceuticals, Inc. (ICPT) -NasdaqGS (Daily) | C104: 2022-10-07 | D104: 16:00:00 | E104: 13.97 | F104: 14.06 | G104: 13.64 | H104: 13.66 | I104: 691500 | J104: -0.28 | K104: 2022-10-08T20:34:46.490
A105: INO | B105: Inovio Pharmaceuticals, Inc. (INO) -NasdaqGS (Daily) | C105: 2022-10-07 | D105: 16:00:00 | E105: 1.69 | F105: 1.7 | G105: 1.6 | H105: 1.61 | I105: 4513100 | J105: -0.13 | K105: 2022-10-08T20:35:05.980
A106: LCI | B106: Lannett Company, Inc. (LCI) -NYSE (Daily) | C106: 2022-10-07 | D106: 16:00:00 | E106: 0.48 | F106: 0.493 | G106: 0.471 | H106: 0.471 | I106: 105400 | J106: -0.011 | K106: 2022-10-08T20:35:25.780
A107: PBYI | B107: Puma Biotechnology, Inc. (PBYI) -NasdaqGS (Daily) | C107: 2022-10-07 | D107: 16:00:00 | E107: 2.47 | F107: 2.5 | G107: 2.32 | H107: 2.37 | I107: 123700 | J107: -0.15 | K107: 2022-10-08T20:35:44.300
